Workbook

Sheet Welcome
B1: EPA Cost Savings Calculator for Pollution Prevention Projects
B3: Purpose. This calculator estimates the annual net cost savings realized from avoided fees and expenses associated with buying fewer hazardous inputs, shipping less hazardous waste, emitting fewer regulated air emissions, using less water, sending less wastewater through pre-treatment and treatment works, and buying less fuel and energy. The cost differences of buying greener materials, fuel and energy is also calculated. Users can use the tool to estimate prospective cost savings. This calculator is ideal for P2 program grantees and partners to use in reporting project results to EPA’s P2 Program. Functionality. This Excel program converts activity metrics into net dollars saved, according to the type of activity conducted. Find a tab for a type of activity conducted in your project and be guided through entering your activity metrics in a project row. Enter annual activity metrics to get annual cost savings. You will see a running total of cost savings from all project rows. The activity tabs are hazardous wastes and inputs (reductions and substitutions), air emissions, water pollution, water use, fuel use (stationary and mobile sources), electricity management (including green energy purchases), and non-hazardous inputs and solid waste. Each of these provides an example in a yellow row to show an annual input and associated cost savings. To see a total of annual MTCO2e results from all activity types within a project, use the aggregate tab.

Sheet Aggregate
B1: Aggregated P2 Cost Savings
B2: This tab computes the cost savings from all tabs, per project. This only works if a project is named on this aggregate tab first. Once you name a project here in column A, the name will appear automatically in the same row on all other tabs.
B4: Hazardous Inputs | C4: Hazardous Waste | D4: Air Emissions | E4: Water Pollution | F4: Water Use | G4: Fuel Use | H4: Electricity Use | I4: Non-Hazardous Inputs | J4: Non-Hazardous Waste | K4: Total by Project
B5: cost savings ($) | C5: cost savings ($) | D5: cost savings ($) | E5: cost savings ($) | F5: cost savings ($) | G5: cost savings ($) | H5: cost savings ($) | I5: cost savings ($) | J5: cost savings ($) | K5: cost savings ($)
A6: Aggregate (all projects) | B6: =SUM(B8:B18) -> 0 | C6: =SUM(C8:C18) -> 0 | D6: 0 | E6: 0 | F6: 0 | G6: 0 | H6: 0 | I6: 0 | J6: 0 | K6: 0
A8: Project 1 | B8: ='Haz Inputs & Wastes'!E14 -> 0 | C8: ='Haz Inputs & Wastes'!I14+'Haz Inputs & Wastes'!M14+'Haz Inputs & Wastes'!Q14 -> 0 | D8: =SUM('Air Emissions'!F13,'Air Emissions'!D13,'Air Emissions'!G13 ) -> 0 | E8: =SUM('Water Pollution'!Z12) -> 0 | F8: ='Water Use'!E12 -> - | G8: ='Fuel Use'!F13+'Fuel Use'!I13+'Fuel Use'!L13+'Fuel Use'!O13+'Fuel Use'!R13+'Fuel Use'!U13+'Fuel Use'!X13+'Fuel Use'!AA13+'Fuel Use'!AD13+'Fuel Use'!AG13 -> 0 | H8: =IF(ISERROR('Electricity Use'!G13+'Electricity Use'!L13), 0, 'Electricity Use'!G13+'Electricity Use'!L13) -> 0 | I8: ='Non-Haz Inputs & Solid Wa'!E14 -> 0 | J8: ='Non-Haz Inputs & Solid Wa'!I14 -> 0 | K8: =SUM(B8:J8) -> 0
A9: Project 2 | B9: ='Haz Inputs & Wastes'!E15 -> 0 | C9: ='Haz Inputs & Wastes'!I15+'Haz Inputs & Wastes'!M15+'Haz Inputs & Wastes'!Q15 -> 0 | D9: =SUM('Air Emissions'!F14,'Air Emissions'!D14,'Air Emissions'!G14 ) -> 0 | E9: =SUM('Water Pollution'!Z13) -> 0 | F9: ='Water Use'!E13 -> - | G9: ='Fuel Use'!F14+'Fuel Use'!I14+'Fuel Use'!L14+'Fuel Use'!O14+'Fuel Use'!R14+'Fuel Use'!U14+'Fuel Use'!X14+'Fuel Use'!AA14+'Fuel Use'!AD14+'Fuel Use'!AG14 -> 0 | H9: =IF(ISERROR('Electricity Use'!G14+'Electricity Use'!L14), 0, 'Electricity Use'!G14+'Electricity Use'!L14) -> 0 | I9: ='Non-Haz Inputs & Solid Wa'!E15 -> 0 | J9: ='Non-Haz Inputs & Solid Wa'!I15 -> 0 | K9: =SUM(B9:J9) -> 0
A10: Project 3 | B10: ='Haz Inputs & Wastes'!E16 -> 0 | C10: ='Haz Inputs & Wastes'!I16+'Haz Inputs & Wastes'!M16+'Haz Inputs & Wastes'!Q16 -> 0 | D10: =SUM('Air Emissions'!F15,'Air Emissions'!D15,'Air Emissions'!G15 ) -> 0 | E10: =SUM('Water Pollution'!Z14) -> 0 | F10: ='Water Use'!E14 -> - | G10: ='Fuel Use'!F15+'Fuel Use'!I15+'Fuel Use'!L15+'Fuel Use'!O15+'Fuel Use'!R15+'Fuel Use'!U15+'Fuel Use'!X15+'Fuel Use'!AA15+'Fuel Use'!AD15+'Fuel Use'!AG15 -> 0 | H10: =IF(ISERROR('Electricity Use'!G15+'Electricity Use'!L15), 0, 'Electricity Use'!G15+'Electricity Use'!L15) -> 0 | I10: ='Non-Haz Inputs & Solid Wa'!E16 -> 0 | J10: ='Non-Haz Inputs & Solid Wa'!I16 -> 0 | K10: =SUM(B10:J10) -> 0
A11: Project 4 | B11: ='Haz Inputs & Wastes'!E17 -> 0 | C11: ='Haz Inputs & Wastes'!I17+'Haz Inputs & Wastes'!M17+'Haz Inputs & Wastes'!Q17 -> 0 | D11: =SUM('Air Emissions'!F16,'Air Emissions'!D16,'Air Emissions'!G16 ) -> 0 | E11: =SUM('Water Pollution'!Z15) -> 0 | F11: ='Water Use'!E15 -> - | G11: ='Fuel Use'!F16+'Fuel Use'!I16+'Fuel Use'!L16+'Fuel Use'!O16+'Fuel Use'!R16+'Fuel Use'!U16+'Fuel Use'!X16+'Fuel Use'!AA16+'Fuel Use'!AD16+'Fuel Use'!AG16 -> 0 | H11: =IF(ISERROR('Electricity Use'!G16+'Electricity Use'!L16), 0, 'Electricity Use'!G16+'Electricity Use'!L16) -> 0 | I11: ='Non-Haz Inputs & Solid Wa'!E17 -> 0 | J11: ='Non-Haz Inputs & Solid Wa'!I17 -> 0 | K11: 0
A12: Project 5 | B12: ='Haz Inputs & Wastes'!E18 -> 0 | C12: ='Haz Inputs & Wastes'!I18+'Haz Inputs & Wastes'!M18+'Haz Inputs & Wastes'!Q18 -> 0 | D12: =SUM('Air Emissions'!F17,'Air Emissions'!D17,'Air Emissions'!G17 ) -> 0 | E12: =SUM('Water Pollution'!Z16) -> 0 | F12: ='Water Use'!E16 -> - | G12: ='Fuel Use'!F17+'Fuel Use'!I17+'Fuel Use'!L17+'Fuel Use'!O17+'Fuel Use'!R17+'Fuel Use'!U17+'Fuel Use'!X17+'Fuel Use'!AA17+'Fuel Use'!AD17+'Fuel Use'!AG17 -> 0 | H12: =IF(ISERROR('Electricity Use'!G17+'Electricity Use'!L17), 0, 'Electricity Use'!G17+'Electricity Use'!L17) -> 0 | I12: ='Non-Haz Inputs & Solid Wa'!E18 -> 0 | J12: ='Non-Haz Inputs & Solid Wa'!I18 -> 0 | K12: 0
A13: Project 6 | B13: ='Haz Inputs & Wastes'!E19 -> 0 | C13: ='Haz Inputs & Wastes'!I19+'Haz Inputs & Wastes'!M19+'Haz Inputs & Wastes'!Q19 -> 0 | D13: =SUM('Air Emissions'!F18,'Air Emissions'!D18,'Air Emissions'!G18 ) -> 0 | E13: =SUM('Water Pollution'!Z17) -> 0 | F13: ='Water Use'!E17 -> - | G13: ='Fuel Use'!F18+'Fuel Use'!I18+'Fuel Use'!L18+'Fuel Use'!O18+'Fuel Use'!R18+'Fuel Use'!U18+'Fuel Use'!X18+'Fuel Use'!AA18+'Fuel Use'!AD18+'Fuel Use'!AG18 -> 0 | H13: =IF(ISERROR('Electricity Use'!G18+'Electricity Use'!L18), 0, 'Electricity Use'!G18+'Electricity Use'!L18) -> 0 | I13: ='Non-Haz Inputs & Solid Wa'!E19 -> 0 | J13: ='Non-Haz Inputs & Solid Wa'!I19 -> 0 | K13: 0
A14: Project 7 | B14: ='Haz Inputs & Wastes'!E20 -> 0 | C14: ='Haz Inputs & Wastes'!I20+'Haz Inputs & Wastes'!M20+'Haz Inputs & Wastes'!Q20 -> 0 | D14: =SUM('Air Emissions'!F19,'Air Emissions'!D19,'Air Emissions'!G19 ) -> 0 | E14: =SUM('Water Pollution'!Z18) -> 0 | F14: ='Water Use'!E18 -> - | G14: ='Fuel Use'!F19+'Fuel Use'!I19+'Fuel Use'!L19+'Fuel Use'!O19+'Fuel Use'!R19+'Fuel Use'!U19+'Fuel Use'!X19+'Fuel Use'!AA19+'Fuel Use'!AD19+'Fuel Use'!AG19 -> 0 | H14: =IF(ISERROR('Electricity Use'!G19+'Electricity Use'!L19), 0, 'Electricity Use'!G19+'Electricity Use'!L19) -> 0 | I14: ='Non-Haz Inputs & Solid Wa'!E20 -> 0 | J14: ='Non-Haz Inputs & Solid Wa'!I20 -> 0 | K14: 0
A15: Project 8 | B15: ='Haz Inputs & Wastes'!E21 -> 0 | C15: ='Haz Inputs & Wastes'!I21+'Haz Inputs & Wastes'!M21+'Haz Inputs & Wastes'!Q21 -> 0 | D15: =SUM('Air Emissions'!F20,'Air Emissions'!D20,'Air Emissions'!G20 ) -> 0 | E15: =SUM('Water Pollution'!Z19) -> 0 | F15: ='Water Use'!E19 -> - | G15: ='Fuel Use'!F20+'Fuel Use'!I20+'Fuel Use'!L20+'Fuel Use'!O20+'Fuel Use'!R20+'Fuel Use'!U20+'Fuel Use'!X20+'Fuel Use'!AA20+'Fuel Use'!AD20+'Fuel Use'!AG20 -> 0 | H15: =IF(ISERROR('Electricity Use'!G20+'Electricity Use'!L20), 0, 'Electricity Use'!G20+'Electricity Use'!L20) -> 0 | I15: ='Non-Haz Inputs & Solid Wa'!E21 -> 0 | J15: ='Non-Haz Inputs & Solid Wa'!I21 -> 0 | K15: 0
A16: Project 9 | B16: ='Haz Inputs & Wastes'!E22 -> 0 | C16: ='Haz Inputs & Wastes'!I22+'Haz Inputs & Wastes'!M22+'Haz Inputs & Wastes'!Q22 -> 0 | D16: =SUM('Air Emissions'!F21,'Air Emissions'!D21,'Air Emissions'!G21 ) -> 0 | E16: =SUM('Water Pollution'!Z20) -> 0 | F16: ='Water Use'!E20 -> - | G16: ='Fuel Use'!F21+'Fuel Use'!I21+'Fuel Use'!L21+'Fuel Use'!O21+'Fuel Use'!R21+'Fuel Use'!U21+'Fuel Use'!X21+'Fuel Use'!AA21+'Fuel Use'!AD21+'Fuel Use'!AG21 -> 0 | H16: =IF(ISERROR('Electricity Use'!G21+'Electricity Use'!L21), 0, 'Electricity Use'!G21+'Electricity Use'!L21) -> 0 | I16: ='Non-Haz Inputs & Solid Wa'!E22 -> 0 | J16: ='Non-Haz Inputs & Solid Wa'!I22 -> 0 | K16: 0
A17: Project 10 | B17: ='Haz Inputs & Wastes'!E23 -> 0 | C17: ='Haz Inputs & Wastes'!I23+'Haz Inputs & Wastes'!M23+'Haz Inputs & Wastes'!Q23 -> 0 | D17: =SUM('Air Emissions'!F22,'Air Emissions'!D22,'Air Emissions'!G22 ) -> 0 | E17: =SUM('Water Pollution'!Z21) -> 0 | F17: ='Water Use'!E21 -> - | G17: ='Fuel Use'!F22+'Fuel Use'!I22+'Fuel Use'!L22+'Fuel Use'!O22+'Fuel Use'!R22+'Fuel Use'!U22+'Fuel Use'!X22+'Fuel Use'!AA22+'Fuel Use'!AD22+'Fuel Use'!AG22 -> 0 | H17: =IF(ISERROR('Electricity Use'!G22+'Electricity Use'!L22), 0, 'Electricity Use'!G22+'Electricity Use'!L22) -> 0 | I17: ='Non-Haz Inputs & Solid Wa'!E23 -> 0 | J17: ='Non-Haz Inputs & Solid Wa'!I23 -> 0 | K17: 0
A18: ="Project "&(ROW()-7) -> Project 11 | B18: ='Haz Inputs & Wastes'!E24 -> 0 | C18: ='Haz Inputs & Wastes'!I24+'Haz Inputs & Wastes'!M24+'Haz Inputs & Wastes'!Q24 -> 0 | D18: =SUM('Air Emissions'!F23,'Air Emissions'!D23,'Air Emissions'!G23 ) -> 0 | E18: =SUM('Water Pollution'!Z22) -> 0 | F18: ='Water Use'!E22 -> - | G18: ='Fuel Use'!F23+'Fuel Use'!I23+'Fuel Use'!L23+'Fuel Use'!O23+'Fuel Use'!R23+'Fuel Use'!U23+'Fuel Use'!X23+'Fuel Use'!AA23+'Fuel Use'!AD23+'Fuel Use'!AG23 -> 0 | H18: =IF(ISERROR('Electricity Use'!G23+'Electricity Use'!L23), 0, 'Electricity Use'!G23+'Electricity Use'!L23) -> 0 | I18: ='Non-Haz Inputs & Solid Wa'!E24 -> 0 | J18: ='Non-Haz Inputs & Solid Wa'!I24 -> 0 | K18: 0

Sheet Haz Inputs & Wastes
B1: Hazardous Inputs & Wastes
B2: This tab computes dollar savings from reducing hazardous inputs and hazardous waste.
A4: Type of Reduction | B4: Hazardous Input Reduction | F4: Hazardous Waste Reduction - Average across management methods | J4: Hazardous Waste Reduction - Landfill | N4: Hazardous Waste Reduction - Incineration
A5: How to use this tab | B5: Enter the quantity and unit of hazardous input reduced, and a unit cost. Savings appear on the right. | F5: Work here if you don't know where the hazardous waste would've been managed. Enter the quantity reduced and a unit, and leave the unit cost blank. Savings will be on the right, based on an averaged unit cost of landfill and incineration nationwide. | J5: Enter the quantity and unit of hazardous waste that would have been landfilled. Enter unit cost if known. Savings appear on the right using your unit cost or the national default unit.cost. | N5: Enter the quantity and unit of hazardous waste that would've been incinerated. Enter the unit cost if known. The last column will show savings using your unit cost or the national default unit cost.
A6: Calculation Description | B6: Quantity of hazardous input reduced (in user-specified units) * user-specified unit cost = Dollars saved | F6: Quantity of hazardous waste no longer disposed (in user-specified unit) * default unit cost = Dollars saved | J6: Quantity of hazardous waste no longer landfilled (in user-specified units) * unit cost (user-specified or default) = Dollars saved. | N6: Quantity of hazardous waste no longer incinerated (in user-specified units) * unit cost (user-specified or default) = Dollars saved.
A7: Default Unit Cost ($) | F7: 1.5 | G7: /lbs | J7: 1.38 | K7: /lbs | N7: 1.61 | O7: /lbs
F8: 12.45 | G8: /gal | J8: 11.45 | K8: /gal | N8: 13.36 | O8: /gal
B9: Reduced Quantity of Haz. Inputs | C9: Unit (select) | D9: Unit Cost ($/unit selected) | E9: Dollar Savings | F9: Reduced Quantity of Waste | G9: Unit (select) | H9: Unit Cost ($/unit selected) | I9: Dollar Savings | J9: Reduced Quantity of Waste | K9: Unit (select) | L9: Unit Cost ($/unit selected) | M9: Dollar Savings | N9: Reduced Quantity of Waste | O9: Unit (select) | P9: Unit Cost ($/unit selected) | Q9: Dollar Savings
A10: Example | B10: A cutlery manufacturer replaced trichloroethylene (TCE) for cleaning with aqueous wash boxes and an alcohol-based vapor degreaser. | F10: New process reduces 55-gallon waste drums annually from 100 to 20.
B11: 110000 | C11: lbs | D11: 2.25 | E11: 247500 | F11: 4400 | G11: gal | I11: =IF(G11="lbs",F11*$F$7,IF(G11="gal",F11*$F$8,0)) -> 54780
A12: Totals - All Projects | B12: =SUMIF(C$14:C$24,"gal",B$14:B$24)&" gal"&"; "&SUMIF(C$14:C$24,"lbs",B$14:B$24)&" lbs" -> 0 gal; 0 lbs | E12: =SUM(E14:E24) -> 0 | F12: =SUMIF(G$14:G$24,"gal",F$14:F$24)&" gal"&"; "&SUMIF(G$14:G$24,"lbs",F$14:F$24)&" lbs" -> 0 gal; 0 lbs | I12: =SUM(I14:I24) -> 0 | J12: =SUMIF(K$14:K$24,"gal",J$14:J$24)&" gal"&"; "&SUMIF(K$14:K$24,"lbs",J$14:J$24)&" lbs" -> 0 gal; 0 lbs | M12: =SUM(M14:M24) -> 0 | N12: =SUMIF(O$14:O$24,"gal",N$14:N$24)&" gal"&"; "&SUMIF(O$14:O$24,"lbs",N$14:N$24)&" lbs" -> 0 gal; 0 lbs | Q12: =SUM(Q14:Q24) -> 0
A14: =Aggregate!A8 -> Project 1 | C14: (Select) | E14: =B14*D14 -> 0 | G14: (Select) | I14: =IF(AND(H14="",G14="lbs"),F14*$F$7,IF(AND(H14="",G14="gal"),F14*$F$8,F14*H14)) -> 0 | K14: (Select) | M14: =IF(AND(L14="",K14="lbs"),J14*$J$7,IF(AND(L14="",K14="gal"),J14*$J$8,J14*L14)) -> 0 | O14: (Select) | Q14: =IF(AND(P14="",O14="lbs"),N14*$N$7,IF(AND(P14="",O14="gal"),N14*$N$8,N14*P14)) -> 0
A15: =Aggregate!A9 -> Project 2 | C15: (Select) | E15: =B15*D15 -> 0 | G15: (Select) | I15: =IF(AND(H15="",G15="lbs"),F15*$F$7,IF(AND(H15="",G15="gal"),F15*$F$8,F15*H15)) -> 0 | K15: (Select) | M15: =IF(AND(L15="",K15="lbs"),J15*$J$7,IF(AND(L15="",K15="gal"),J15*$J$8,J15*L15)) -> 0 | O15: (Select) | Q15: =IF(AND(P15="",O15="lbs"),N15*$N$7,IF(AND(P15="",O15="gal"),N15*$N$8,N15*P15)) -> 0
A16: =Aggregate!A10 -> Project 3 | C16: (Select) | E16: 0 | G16: (Select) | I16: 0 | K16: (Select) | M16: 0 | O16: (Select) | Q16: 0
A17: =Aggregate!A11 -> Project 4 | C17: (Select) | E17: 0 | G17: (Select) | I17: 0 | K17: (Select) | M17: 0 | O17: (Select) | Q17: 0
A18: =Aggregate!A12 -> Project 5 | C18: (Select) | E18: 0 | G18: (Select) | I18: 0 | K18: (Select) | M18: 0 | O18: (Select) | Q18: 0
A19: =Aggregate!A13 -> Project 6 | C19: (Select) | E19: 0 | G19: (Select) | I19: 0 | K19: (Select) | M19: 0 | O19: (Select) | Q19: 0
A20: =Aggregate!A14 -> Project 7 | C20: (Select) | E20: 0 | G20: (Select) | I20: 0 | K20: (Select) | M20: 0 | O20: (Select) | Q20: 0
A21: =Aggregate!A15 -> Project 8 | C21: (Select) | E21: 0 | G21: (Select) | I21: 0 | K21: (Select) | M21: 0 | O21: (Select) | Q21: 0
A22: =Aggregate!A16 -> Project 9 | C22: (Select) | E22: 0 | G22: (Select) | I22: 0 | K22: (Select) | M22: 0 | O22: (Select) | Q22: 0
A23: =Aggregate!A17 -> Project 10 | C23: (Select) | E23: 0 | G23: (Select) | I23: 0 | K23: (Select) | M23: 0 | O23: (Select) | Q23: 0
A24: =Aggregate!A18 -> Project 11 | C24: (Select) | E24: =B24*D24 -> 0 | G24: (Select) | I24: =IF(AND(H24="",G24="lbs"),F24*$F$7,IF(AND(H24="",G24="gal"),F24*$F$8,F24*H24)) -> 0 | K24: (Select) | M24: =IF(AND(L24="",K24="lbs"),J24*$J$7,IF(AND(L24="",K24="gal"),J24*$J$8,J24*L24)) -> 0 | O24: (Select) | Q24: =IF(AND(P24="",O24="lbs"),N24*$N$7,IF(AND(P24="",O24="gal"),N24*$N$8,N24*P24)) -> 0
A26: Color Key
A27: Enter value
A28: Use drop-down menu
A29: Do not change - calculation
A31: Sources
A32: HAZARDOUS INPUT REDUCTION | B32: Will vary- user provides source.
A33: HAZARDOUS INPUT SUBSTITUTION | B33: Will vary- user provides source.
A34: HAZARDOUS WASTE REDUCTION- AVERAGE | B34: 1) Hazardous Waste Resource Center, Environmental Technology Council (ETC) Survey 2) 2011 RCRA Biennial Report 3) Economics Background Document, Regulatory Impact Analysis for USEPA’s 2007 Supplemental Proposed Revisions to the Industrial Recycling Exclusions of the RCRA Definition of Solid Waste (Jan 22, 2007) 4) Mark Eads, EPA/OSW/EMRAD 5) Dept. of Defense Environmental Cost Analysis Methodology (ECAM) Handbook (Mar 29, 1999). See Supplemental Info tabs in this spreadsheet.
A35: HAZARDOUS WASTE REDUCTION-LANDFILL | B35: 1) Hazardous Waste Resource Center, Environmental Technology Council (ETC) Survey 2) 2011 RCRA Biennial Report 3) Economics Background Document, Regulatory Impact Analysis for USEPA’s 2007 Supplemental Proposed Revisions to the Industrial Recycling Exclusions of the RCRA Definition of Solid Waste (Jan 22, 2007) 4) Mark Eads, EPA/OSW/EMRAD 5) Dept. of Defense Environmental Cost Analysis Methodology (ECAM) Handbook (Mar 29, 1999). See Supplemental Info tabs in this spreadsheet.
A36: HAZARDOUS WASTE REDUCTION- INCINERATION | B36: 1) Hazardous Waste Resource Center, Environmental Technology Council (ETC) Survey 2) 2011 RCRA Biennial Report 3) Economics Background Document, Regulatory Impact Analysis for USEPA’s 2007 Supplemental Proposed Revisions to the Industrial Recycling Exclusions of the RCRA Definition of Solid Waste (Jan 22, 2007) 4) Mark Eads, EPA/OSW/EMRAD 5) Dept. of Defense Environmental Cost Analysis Methodology (ECAM) Handbook (Mar 29, 1999). See Supplemental Info tabs in this spreadsheet.

Sheet Air Emissions
B1: Air Emissions
B2: This tab computes cost savings for permitted facilities that reduce onsite air emissions. The columns for Criteria Pollutants and HAPs use state emission-tonnage fees to show cost savings from reducing emissions. The Other Permitting Fees column has fields to enter avoided permit maintenance or renewal fees when a facility so lowers its emissions that it can get a cheaper permit or skip permitting entirely.
A4: Type of Reduction | C4: Hazardous Air Pollutants (HAPs) | E4: Clean Air Act Title V Air pollutants* (*including Nitrogen Oxides (NOX), Sulfur Oxides (SOX), Particulate Matter of 10 micrometers or less (PM10), Volatile Organic Compounds (VOCs)) | G4: Other Permitting Fees
A5: How to use this tab | C5: Select a State or US National default for where emissions were abated. Enter the quantity and unit of HAPs reduced. Savings will be on the right. | E5: Select a state or national default for where emissions were abated. Enter the quantity and unit of air pollutants reduced. Savings will be on the right. | G5: If air emissions reductions have eliminated or reduced the costs for permit renewal or maintenance, enter the value for fees saved. | H5: VLOOKUP Category
A6: Calculation Description | C6: Quantity of reduced HAPs (user specified units) * conversion factor (tons /user specified unit)* state or national unit cost ($/tons) = Dollars saved. | E6: Quantity of reduced CAPs (user specified units) * conversion factor (tons /user specified unit)* state or national unit cost ($/tons) = Dollars saved. | H6: CAPs | L6: HAPs
B7: State or U.S. (select) | C7: Quantity HAPs Reduced (tons) | D7: Dollar Savings | E7: Reduced Quantity of Criteria Pollutants Reduced (tons) | F7: Dollar Savings | G7: Dollar Savings
A8: Example | C8: A cutlery manufacturer replaced trichloroethylene (TCE) for cleaning with aqueous wash boxes and an alcohol-based vapor degreaser. Over three years, TCE air emissions fell from 110,000 pounds to zero. | E8: In undertaking activities to get New Hampshire’s Green Lodging certification, a dozen or so lodgings adopted, among other things, the practice of using lower-VOC paints. | G8: Same scenario at left with cutlery manufacturer: about $3,300 of the annual $250,000 savings was from avoiding maintenance fees for its CAA Title V permit. By eliminating trichloroethylene emissions, it became a true minor, unpermitted source.
B9: NH | C9: 110000 | D9: 8091.957374 | E9: 2000 | F9: 147.1264977 | G9: 250000 | H9: =IF(VLOOKUP($B9,stairemiss,3,FALSE)<>3,"",IF(VLOOKUP($B9,blockstates,2,FALSE)<>1,"",IF(#REF!<VLOOKUP($B9,blockstates,3,FALSE),$B9&"_<"&VLOOKUP($B9,blockstates,3,FALSE),$B9&"_>="&VLOOKUP($B9,blockstates,3,FALSE)))) ->  | I9: =IF(VLOOKUP($B9,stairemiss,3,FALSE)<>3,"",IF(VLOOKUP($B9,blockstates,2,FALSE)<>2,"",IF(#REF!<VLOOKUP($B9,blockstates,3,FALSE),$B9&"_<"&VLOOKUP($B9,blockstates,3,FALSE),IF(#REF!<VLOOKUP($B9,blockstates,4,FALSE),$B9&"_"&VLOOKUP($B9,blockstates,3,FALSE)&"-"&VLOOKUP($B9,blockstates,4,FALSE),$B9&"_>="&VLOOKUP($B9,blockstates,4,FALSE))))) ->  | J9: =IF(VLOOKUP($B9,stairemiss,3,FALSE)<>3,"",IF(VLOOKUP($B9,blockstates,2,FALSE)<>3,"",IF(#REF!<VLOOKUP($B9,blockstates,3,FALSE),$B9&"_<"&VLOOKUP($B9,blockstates,3,FALSE),IF(#REF!<VLOOKUP($B9,blockstates,4,FALSE),$B9&"_"&VLOOKUP($B9,blockstates,3,FALSE)&"-"&VLOOKUP($B9,blockstates,4,FALSE),IF(#REF!<VLOOKUP($B9,blockstates,5,FALSE),$B9&"_"&VLOOKUP($B9,blockstates,4,FALSE)&"-"&VLOOKUP($B9,blockstates,5,FALSE),$B9&"_>="&VLOOKUP($B9,blockstates,5,FALSE)))))) ->  | K9: =IF(B9="(Select)","",IF(VLOOKUP($B9,stairemiss,3,FALSE)=1,$B9,IF(VLOOKUP($B9,stairemiss,3,FALSE)=2,"National",IF($H9<>"",$H9,IF($I9<>"",$I9,$J9))))) -> NH | L9: =IF(VLOOKUP($B9,stairemiss,8,FALSE)<>3,"",IF(VLOOKUP($B9,blockstates_haps,2,FALSE)<>1,"",IF(#REF!<VLOOKUP($B9,blockstates_haps,3,FALSE),$B9&"_<"&VLOOKUP($B9,blockstates_haps,3,FALSE),$B9&"_>="&VLOOKUP($B9,blockstates_haps,3,FALSE)))) ->  | M9: =IF(VLOOKUP($B9,stairemiss,8,FALSE)<>3,"",IF(VLOOKUP($B9,blockstates_haps,2,FALSE)<>2,"",IF(#REF!<VLOOKUP($B9,blockstates_haps,3,FALSE),$B9&"_<"&VLOOKUP($B9,blockstates_haps,3,FALSE),IF(#REF!<VLOOKUP($B9,blockstates_haps,4,FALSE),$B9&"_"&VLOOKUP($B9,blockstates_haps,3,FALSE)&"-"&VLOOKUP($B9,blockstates_haps,4,FALSE),$B9&"_>="&VLOOKUP($B9,blockstates_haps,4,FALSE))))) ->  | N9: =IF(VLOOKUP($B9,stairemiss,8,FALSE)<>3,"",IF(VLOOKUP($B9,blockstates_haps,2,FALSE)<>3,"",IF(#REF!<VLOOKUP($B9,blockstates_haps,3,FALSE),$B9&"_<"&VLOOKUP($B9,blockstates_haps,3,FALSE),IF(#REF!<VLOOKUP($B9,blockstates_haps,4,FALSE),$B9&"_"&VLOOKUP($B9,blockstates_haps,3,FALSE)&"-"&VLOOKUP($B9,blockstates_haps,4,FALSE),IF(#REF!<VLOOKUP($B9,blockstates_haps,5,FALSE),$B9&"_"&VLOOKUP($B9,blockstates_haps,4,FALSE)&"-"&VLOOKUP($B9,blockstates_haps,5,FALSE),$B9&"_>="&VLOOKUP($B9,blockstates_haps,5,FALSE)))))) ->  | O9: =IF(B9="(Select)","",IF(VLOOKUP($B9,stairemiss,3,FALSE)=1,$B9,IF(VLOOKUP($B9,stairemiss,3,FALSE)=2,"National",IF($L9<>"",$L9,IF($M9<>"",$M9,$N9))))) -> NH
A11: Totals - All Projects | D11: =SUM(D13:D23) -> 0 | F11: =SUM(F13:F23) -> 0
A13: =Aggregate!A8 -> Project 1 | B13: (Select) | D13: =IF($O13="",0,VLOOKUP($O13,sthaps,4,FALSE)*$C13) -> 0 | F13: =IF($K13="",0,VLOOKUP($K13,stcaps,4,FALSE)*$E13) -> 0 | H13: =IF(VLOOKUP($B13,stairemiss,3,FALSE)<>3,"",IF(VLOOKUP($B13,blockstates,2,FALSE)<>1,"",IF(#REF!<VLOOKUP($B13,blockstates,3,FALSE),$B13&"_<"&VLOOKUP($B13,blockstates,3,FALSE),$B13&"_>="&VLOOKUP($B13,blockstates,3,FALSE)))) ->  | I13: =IF(VLOOKUP($B13,stairemiss,3,FALSE)<>3,"",IF(VLOOKUP($B13,blockstates,2,FALSE)<>2,"",IF(#REF!<VLOOKUP($B13,blockstates,3,FALSE),$B13&"_<"&VLOOKUP($B13,blockstates,3,FALSE),IF(#REF!<VLOOKUP($B13,blockstates,4,FALSE),$B13&"_"&VLOOKUP($B13,blockstates,3,FALSE)&"-"&VLOOKUP($B13,blockstates,4,FALSE),$B13&"_>="&VLOOKUP($B13,blockstates,4,FALSE))))) ->  | J13: =IF(VLOOKUP($B13,stairemiss,3,FALSE)<>3,"",IF(VLOOKUP($B13,blockstates,2,FALSE)<>3,"",IF(#REF!<VLOOKUP($B13,blockstates,3,FALSE),$B13&"_<"&VLOOKUP($B13,blockstates,3,FALSE),IF(#REF!<VLOOKUP($B13,blockstates,4,FALSE),$B13&"_"&VLOOKUP($B13,blockstates,3,FALSE)&"-"&VLOOKUP($B13,blockstates,4,FALSE),IF(#REF!<VLOOKUP($B13,blockstates,5,FALSE),$B13&"_"&VLOOKUP($B13,blockstates,4,FALSE)&"-"&VLOOKUP($B13,blockstates,5,FALSE),$B13&"_>="&VLOOKUP($B13,blockstates,5,FALSE)))))) ->  | K13: =IF(B13="(Select)","",IF(VLOOKUP($B13,stairemiss,3,FALSE)=1,$B13,IF(VLOOKUP($B13,stairemiss,3,FALSE)=2,"National",IF($H13<>"",$H13,IF($I13<>"",$I13,$J13))))) ->  | L13: =IF(VLOOKUP($B13,stairemiss,8,FALSE)<>3,"",IF(VLOOKUP($B13,blockstates_haps,2,FALSE)<>1,"",IF(#REF!<VLOOKUP($B13,blockstates_haps,3,FALSE),$B13&"_<"&VLOOKUP($B13,blockstates_haps,3,FALSE),$B13&"_>="&VLOOKUP($B13,blockstates_haps,3,FALSE)))) ->  | M13: =IF(VLOOKUP($B13,stairemiss,8,FALSE)<>3,"",IF(VLOOKUP($B13,blockstates_haps,2,FALSE)<>2,"",IF(#REF!<VLOOKUP($B13,blockstates_haps,3,FALSE),$B13&"_<"&VLOOKUP($B13,blockstates_haps,3,FALSE),IF(#REF!<VLOOKUP($B13,blockstates_haps,4,FALSE),$B13&"_"&VLOOKUP($B13,blockstates_haps,3,FALSE)&"-"&VLOOKUP($B13,blockstates_haps,4,FALSE),$B13&"_>="&VLOOKUP($B13,blockstates_haps,4,FALSE))))) ->  | N13: =IF(VLOOKUP($B13,stairemiss,8,FALSE)<>3,"",IF(VLOOKUP($B13,blockstates_haps,2,FALSE)<>3,"",IF(#REF!<VLOOKUP($B13,blockstates_haps,3,FALSE),$B13&"_<"&VLOOKUP($B13,blockstates_haps,3,FALSE),IF(#REF!<VLOOKUP($B13,blockstates_haps,4,FALSE),$B13&"_"&VLOOKUP($B13,blockstates_haps,3,FALSE)&"-"&VLOOKUP($B13,blockstates_haps,4,FALSE),IF(#REF!<VLOOKUP($B13,blockstates_haps,5,FALSE),$B13&"_"&VLOOKUP($B13,blockstates_haps,4,FALSE)&"-"&VLOOKUP($B13,blockstates_haps,5,FALSE),$B13&"_>="&VLOOKUP($B13,blockstates_haps,5,FALSE)))))) ->  | O13: =IF(B13="(Select)","",IF(VLOOKUP($B13,stairemiss,3,FALSE)=1,$B13,IF(VLOOKUP($B13,stairemiss,3,FALSE)=2,"National",IF($L13<>"",$L13,IF($M13<>"",$M13,$N13))))) -> 
A14: =Aggregate!A9 -> Project 2 | B14: (Select) | D14: 0 | F14: 0 | H14: =IF(VLOOKUP($B14,stairemiss,3,FALSE)<>3,"",IF(VLOOKUP($B14,blockstates,2,FALSE)<>1,"",IF(#REF!<VLOOKUP($B14,blockstates,3,FALSE),$B14&"_<"&VLOOKUP($B14,blockstates,3,FALSE),$B14&"_>="&VLOOKUP($B14,blockstates,3,FALSE)))) ->  | I14: =IF(VLOOKUP($B14,stairemiss,3,FALSE)<>3,"",IF(VLOOKUP($B14,blockstates,2,FALSE)<>2,"",IF(#REF!<VLOOKUP($B14,blockstates,3,FALSE),$B14&"_<"&VLOOKUP($B14,blockstates,3,FALSE),IF(#REF!<VLOOKUP($B14,blockstates,4,FALSE),$B14&"_"&VLOOKUP($B14,blockstates,3,FALSE)&"-"&VLOOKUP($B14,blockstates,4,FALSE),$B14&"_>="&VLOOKUP($B14,blockstates,4,FALSE))))) ->  | J14: =IF(VLOOKUP($B14,stairemiss,3,FALSE)<>3,"",IF(VLOOKUP($B14,blockstates,2,FALSE)<>3,"",IF(#REF!<VLOOKUP($B14,blockstates,3,FALSE),$B14&"_<"&VLOOKUP($B14,blockstates,3,FALSE),IF(#REF!<VLOOKUP($B14,blockstates,4,FALSE),$B14&_&VLOOKUP($B14,blockstates,3,FALSE)&"-"&VLOOKUP($B14,blockstates,4,FALSE),IF(#REF!<VLOOKUP($B14,blockstates,5,FALSE),$B14&"_"&VLOOKUP($B14,blockstates,4,FALSE)&"-"&VLOOKUP($B14,blockstates,5,FALSE),$B14&"_>="&VLOOKUP($B14,blockstates,5,FALSE)))))) ->  | L14: =IF(VLOOKUP($B14,stairemiss,8,FALSE)<>3,"",IF(VLOOKUP($B14,blockstates_haps,2,FALSE)<>1,"",IF(#REF!<VLOOKUP($B14,blockstates_haps,3,FALSE),$B14&"_<"&VLOOKUP($B14,blockstates_haps,3,FALSE),$B14&"_>="&VLOOKUP($B14,blockstates_haps,3,FALSE)))) ->  | M14: =IF(VLOOKUP($B14,stairemiss,8,FALSE)<>3,"",IF(VLOOKUP($B14,blockstates_haps,2,FALSE)<>2,"",IF(#REF!<VLOOKUP($B14,blockstates_haps,3,FALSE),$B14&"_<"&VLOOKUP($B14,blockstates_haps,3,FALSE),IF(#REF!<VLOOKUP($B14,blockstates_haps,4,FALSE),$B14&"_"&VLOOKUP($B14,blockstates_haps,3,FALSE)&"-"&VLOOKUP($B14,blockstates_haps,4,FALSE),$B14&"_>="&VLOOKUP($B14,blockstates_haps,4,FALSE))))) ->  | N14: =IF(VLOOKUP($B14,stairemiss,8,FALSE)<>3,"",IF(VLOOKUP($B14,blockstates_haps,2,FALSE)<>3,"",IF(#REF!<VLOOKUP($B14,blockstates_haps,3,FALSE),$B14&"_<"&VLOOKUP($B14,blockstates_haps,3,FALSE),IF(#REF!<VLOOKUP($B14,blockstates_haps,4,FALSE),$B14&_&VLOOKUP($B14,blockstates_haps,3,FALSE)&"-"&VLOOKUP($B14,blockstates_haps,4,FALSE),IF(#REF!<VLOOKUP($B14,blockstates_haps,5,FALSE),$B14&"_"&VLOOKUP($B14,blockstates_haps,4,FALSE)&"-"&VLOOKUP($B14,blockstates_haps,5,FALSE),$B14&"_>="&VLOOKUP($B14,blockstates_haps,5,FALSE)))))) -> 
A15: =Aggregate!A10 -> Project 3 | B15: (Select) | D15: 0 | F15: 0 | H15: =IF(VLOOKUP($B15,stairemiss,3,FALSE)<>3,"",IF(VLOOKUP($B15,blockstates,2,FALSE)<>1,"",IF(#REF!<VLOOKUP($B15,blockstates,3,FALSE),$B15&"_<"&VLOOKUP($B15,blockstates,3,FALSE),$B15&"_>="&VLOOKUP($B15,blockstates,3,FALSE)))) ->  | I15: =IF(VLOOKUP($B15,stairemiss,3,FALSE)<>3,"",IF(VLOOKUP($B15,blockstates,2,FALSE)<>2,"",IF(#REF!<VLOOKUP($B15,blockstates,3,FALSE),$B15&"_<"&VLOOKUP($B15,blockstates,3,FALSE),IF(#REF!<VLOOKUP($B15,blockstates,4,FALSE),$B15&"_"&VLOOKUP($B15,blockstates,3,FALSE)&"-"&VLOOKUP($B15,blockstates,4,FALSE),$B15&"_>="&VLOOKUP($B15,blockstates,4,FALSE))))) ->  | J15: =IF(VLOOKUP($B15,stairemiss,3,FALSE)<>3,"",IF(VLOOKUP($B15,blockstates,2,FALSE)<>3,"",IF(#REF!<VLOOKUP($B15,blockstates,3,FALSE),$B15&"_<"&VLOOKUP($B15,blockstates,3,FALSE),IF(#REF!<VLOOKUP($B15,blockstates,4,FALSE),$B15&_&VLOOKUP($B15,blockstates,3,FALSE)&"-"&VLOOKUP($B15,blockstates,4,FALSE),IF(#REF!<VLOOKUP($B15,blockstates,5,FALSE),$B15&"_"&VLOOKUP($B15,blockstates,4,FALSE)&"-"&VLOOKUP($B15,blockstates,5,FALSE),$B15&"_>="&VLOOKUP($B15,blockstates,5,FALSE)))))) ->  | L15: =IF(VLOOKUP($B15,stairemiss,8,FALSE)<>3,"",IF(VLOOKUP($B15,blockstates_haps,2,FALSE)<>1,"",IF(#REF!<VLOOKUP($B15,blockstates_haps,3,FALSE),$B15&"_<"&VLOOKUP($B15,blockstates_haps,3,FALSE),$B15&"_>="&VLOOKUP($B15,blockstates_haps,3,FALSE)))) ->  | M15: =IF(VLOOKUP($B15,stairemiss,8,FALSE)<>3,"",IF(VLOOKUP($B15,blockstates_haps,2,FALSE)<>2,"",IF(#REF!<VLOOKUP($B15,blockstates_haps,3,FALSE),$B15&"_<"&VLOOKUP($B15,blockstates_haps,3,FALSE),IF(#REF!<VLOOKUP($B15,blockstates_haps,4,FALSE),$B15&"_"&VLOOKUP($B15,blockstates_haps,3,FALSE)&"-"&VLOOKUP($B15,blockstates_haps,4,FALSE),$B15&"_>="&VLOOKUP($B15,blockstates_haps,4,FALSE))))) ->  | N15: =IF(VLOOKUP($B15,stairemiss,8,FALSE)<>3,"",IF(VLOOKUP($B15,blockstates_haps,2,FALSE)<>3,"",IF(#REF!<VLOOKUP($B15,blockstates_haps,3,FALSE),$B15&"_<"&VLOOKUP($B15,blockstates_haps,3,FALSE),IF(#REF!<VLOOKUP($B15,blockstates_haps,4,FALSE),$B15&_&VLOOKUP($B15,blockstates_haps,3,FALSE)&"-"&VLOOKUP($B15,blockstates_haps,4,FALSE),IF(#REF!<VLOOKUP($B15,blockstates_haps,5,FALSE),$B15&"_"&VLOOKUP($B15,blockstates_haps,4,FALSE)&"-"&VLOOKUP($B15,blockstates_haps,5,FALSE),$B15&"_>="&VLOOKUP($B15,blockstates_haps,5,FALSE)))))) -> 
A16: =Aggregate!A11 -> Project 4 | B16: (Select) | D16: 0 | F16: 0 | H16: =IF(VLOOKUP($B16,stairemiss,3,FALSE)<>3,"",IF(VLOOKUP($B16,blockstates,2,FALSE)<>1,"",IF(#REF!<VLOOKUP($B16,blockstates,3,FALSE),$B16&"_<"&VLOOKUP($B16,blockstates,3,FALSE),$B16&"_>="&VLOOKUP($B16,blockstates,3,FALSE)))) ->  | I16: =IF(VLOOKUP($B16,stairemiss,3,FALSE)<>3,"",IF(VLOOKUP($B16,blockstates,2,FALSE)<>2,"",IF(#REF!<VLOOKUP($B16,blockstates,3,FALSE),$B16&"_<"&VLOOKUP($B16,blockstates,3,FALSE),IF(#REF!<VLOOKUP($B16,blockstates,4,FALSE),$B16&"_"&VLOOKUP($B16,blockstates,3,FALSE)&"-"&VLOOKUP($B16,blockstates,4,FALSE),$B16&"_>="&VLOOKUP($B16,blockstates,4,FALSE))))) ->  | J16: =IF(VLOOKUP($B16,stairemiss,3,FALSE)<>3,"",IF(VLOOKUP($B16,blockstates,2,FALSE)<>3,"",IF(#REF!<VLOOKUP($B16,blockstates,3,FALSE),$B16&"_<"&VLOOKUP($B16,blockstates,3,FALSE),IF(#REF!<VLOOKUP($B16,blockstates,4,FALSE),$B16&_&VLOOKUP($B16,blockstates,3,FALSE)&"-"&VLOOKUP($B16,blockstates,4,FALSE),IF(#REF!<VLOOKUP($B16,blockstates,5,FALSE),$B16&"_"&VLOOKUP($B16,blockstates,4,FALSE)&"-"&VLOOKUP($B16,blockstates,5,FALSE),$B16&"_>="&VLOOKUP($B16,blockstates,5,FALSE)))))) ->  | L16: =IF(VLOOKUP($B16,stairemiss,8,FALSE)<>3,"",IF(VLOOKUP($B16,blockstates_haps,2,FALSE)<>1,"",IF(#REF!<VLOOKUP($B16,blockstates_haps,3,FALSE),$B16&"_<"&VLOOKUP($B16,blockstates_haps,3,FALSE),$B16&"_>="&VLOOKUP($B16,blockstates_haps,3,FALSE)))) ->  | M16: =IF(VLOOKUP($B16,stairemiss,8,FALSE)<>3,"",IF(VLOOKUP($B16,blockstates_haps,2,FALSE)<>2,"",IF(#REF!<VLOOKUP($B16,blockstates_haps,3,FALSE),$B16&"_<"&VLOOKUP($B16,blockstates_haps,3,FALSE),IF(#REF!<VLOOKUP($B16,blockstates_haps,4,FALSE),$B16&"_"&VLOOKUP($B16,blockstates_haps,3,FALSE)&"-"&VLOOKUP($B16,blockstates_haps,4,FALSE),$B16&"_>="&VLOOKUP($B16,blockstates_haps,4,FALSE))))) ->  | N16: =IF(VLOOKUP($B16,stairemiss,8,FALSE)<>3,"",IF(VLOOKUP($B16,blockstates_haps,2,FALSE)<>3,"",IF(#REF!<VLOOKUP($B16,blockstates_haps,3,FALSE),$B16&"_<"&VLOOKUP($B16,blockstates_haps,3,FALSE),IF(#REF!<VLOOKUP($B16,blockstates_haps,4,FALSE),$B16&_&VLOOKUP($B16,blockstates_haps,3,FALSE)&"-"&VLOOKUP($B16,blockstates_haps,4,FALSE),IF(#REF!<VLOOKUP($B16,blockstates_haps,5,FALSE),$B16&"_"&VLOOKUP($B16,blockstates_haps,4,FALSE)&"-"&VLOOKUP($B16,blockstates_haps,5,FALSE),$B16&"_>="&VLOOKUP($B16,blockstates_haps,5,FALSE)))))) -> 
A17: =Aggregate!A12 -> Project 5 | B17: (Select) | D17: 0 | F17: 0 | H17: =IF(VLOOKUP($B17,stairemiss,3,FALSE)<>3,"",IF(VLOOKUP($B17,blockstates,2,FALSE)<>1,"",IF(#REF!<VLOOKUP($B17,blockstates,3,FALSE),$B17&"_<"&VLOOKUP($B17,blockstates,3,FALSE),$B17&"_>="&VLOOKUP($B17,blockstates,3,FALSE)))) ->  | I17: =IF(VLOOKUP($B17,stairemiss,3,FALSE)<>3,"",IF(VLOOKUP($B17,blockstates,2,FALSE)<>2,"",IF(#REF!<VLOOKUP($B17,blockstates,3,FALSE),$B17&"_<"&VLOOKUP($B17,blockstates,3,FALSE),IF(#REF!<VLOOKUP($B17,blockstates,4,FALSE),$B17&"_"&VLOOKUP($B17,blockstates,3,FALSE)&"-"&VLOOKUP($B17,blockstates,4,FALSE),$B17&"_>="&VLOOKUP($B17,blockstates,4,FALSE))))) ->  | J17: =IF(VLOOKUP($B17,stairemiss,3,FALSE)<>3,"",IF(VLOOKUP($B17,blockstates,2,FALSE)<>3,"",IF(#REF!<VLOOKUP($B17,blockstates,3,FALSE),$B17&"_<"&VLOOKUP($B17,blockstates,3,FALSE),IF(#REF!<VLOOKUP($B17,blockstates,4,FALSE),$B17&_&VLOOKUP($B17,blockstates,3,FALSE)&"-"&VLOOKUP($B17,blockstates,4,FALSE),IF(#REF!<VLOOKUP($B17,blockstates,5,FALSE),$B17&"_"&VLOOKUP($B17,blockstates,4,FALSE)&"-"&VLOOKUP($B17,blockstates,5,FALSE),$B17&"_>="&VLOOKUP($B17,blockstates,5,FALSE)))))) ->  | L17: =IF(VLOOKUP($B17,stairemiss,8,FALSE)<>3,"",IF(VLOOKUP($B17,blockstates_haps,2,FALSE)<>1,"",IF(#REF!<VLOOKUP($B17,blockstates_haps,3,FALSE),$B17&"_<"&VLOOKUP($B17,blockstates_haps,3,FALSE),$B17&"_>="&VLOOKUP($B17,blockstates_haps,3,FALSE)))) ->  | M17: =IF(VLOOKUP($B17,stairemiss,8,FALSE)<>3,"",IF(VLOOKUP($B17,blockstates_haps,2,FALSE)<>2,"",IF(#REF!<VLOOKUP($B17,blockstates_haps,3,FALSE),$B17&"_<"&VLOOKUP($B17,blockstates_haps,3,FALSE),IF(#REF!<VLOOKUP($B17,blockstates_haps,4,FALSE),$B17&"_"&VLOOKUP($B17,blockstates_haps,3,FALSE)&"-"&VLOOKUP($B17,blockstates_haps,4,FALSE),$B17&"_>="&VLOOKUP($B17,blockstates_haps,4,FALSE))))) ->  | N17: =IF(VLOOKUP($B17,stairemiss,8,FALSE)<>3,"",IF(VLOOKUP($B17,blockstates_haps,2,FALSE)<>3,"",IF(#REF!<VLOOKUP($B17,blockstates_haps,3,FALSE),$B17&"_<"&VLOOKUP($B17,blockstates_haps,3,FALSE),IF(#REF!<VLOOKUP($B17,blockstates_haps,4,FALSE),$B17&_&VLOOKUP($B17,blockstates_haps,3,FALSE)&"-"&VLOOKUP($B17,blockstates_haps,4,FALSE),IF(#REF!<VLOOKUP($B17,blockstates_haps,5,FALSE),$B17&"_"&VLOOKUP($B17,blockstates_haps,4,FALSE)&"-"&VLOOKUP($B17,blockstates_haps,5,FALSE),$B17&"_>="&VLOOKUP($B17,blockstates_haps,5,FALSE)))))) -> 
A18: =Aggregate!A13 -> Project 6 | B18: (Select) | D18: 0 | F18: 0 | H18: =IF(VLOOKUP($B18,stairemiss,3,FALSE)<>3,"",IF(VLOOKUP($B18,blockstates,2,FALSE)<>1,"",IF(#REF!<VLOOKUP($B18,blockstates,3,FALSE),$B18&"_<"&VLOOKUP($B18,blockstates,3,FALSE),$B18&"_>="&VLOOKUP($B18,blockstates,3,FALSE)))) ->  | I18: =IF(VLOOKUP($B18,stairemiss,3,FALSE)<>3,"",IF(VLOOKUP($B18,blockstates,2,FALSE)<>2,"",IF(#REF!<VLOOKUP($B18,blockstates,3,FALSE),$B18&"_<"&VLOOKUP($B18,blockstates,3,FALSE),IF(#REF!<VLOOKUP($B18,blockstates,4,FALSE),$B18&"_"&VLOOKUP($B18,blockstates,3,FALSE)&"-"&VLOOKUP($B18,blockstates,4,FALSE),$B18&"_>="&VLOOKUP($B18,blockstates,4,FALSE))))) ->  | J18: =IF(VLOOKUP($B18,stairemiss,3,FALSE)<>3,"",IF(VLOOKUP($B18,blockstates,2,FALSE)<>3,"",IF(#REF!<VLOOKUP($B18,blockstates,3,FALSE),$B18&"_<"&VLOOKUP($B18,blockstates,3,FALSE),IF(#REF!<VLOOKUP($B18,blockstates,4,FALSE),$B18&_&VLOOKUP($B18,blockstates,3,FALSE)&"-"&VLOOKUP($B18,blockstates,4,FALSE),IF(#REF!<VLOOKUP($B18,blockstates,5,FALSE),$B18&"_"&VLOOKUP($B18,blockstates,4,FALSE)&"-"&VLOOKUP($B18,blockstates,5,FALSE),$B18&"_>="&VLOOKUP($B18,blockstates,5,FALSE)))))) ->  | L18: =IF(VLOOKUP($B18,stairemiss,8,FALSE)<>3,"",IF(VLOOKUP($B18,blockstates_haps,2,FALSE)<>1,"",IF(#REF!<VLOOKUP($B18,blockstates_haps,3,FALSE),$B18&"_<"&VLOOKUP($B18,blockstates_haps,3,FALSE),$B18&"_>="&VLOOKUP($B18,blockstates_haps,3,FALSE)))) ->  | M18: =IF(VLOOKUP($B18,stairemiss,8,FALSE)<>3,"",IF(VLOOKUP($B18,blockstates_haps,2,FALSE)<>2,"",IF(#REF!<VLOOKUP($B18,blockstates_haps,3,FALSE),$B18&"_<"&VLOOKUP($B18,blockstates_haps,3,FALSE),IF(#REF!<VLOOKUP($B18,blockstates_haps,4,FALSE),$B18&"_"&VLOOKUP($B18,blockstates_haps,3,FALSE)&"-"&VLOOKUP($B18,blockstates_haps,4,FALSE),$B18&"_>="&VLOOKUP($B18,blockstates_haps,4,FALSE))))) ->  | N18: =IF(VLOOKUP($B18,stairemiss,8,FALSE)<>3,"",IF(VLOOKUP($B18,blockstates_haps,2,FALSE)<>3,"",IF(#REF!<VLOOKUP($B18,blockstates_haps,3,FALSE),$B18&"_<"&VLOOKUP($B18,blockstates_haps,3,FALSE),IF(#REF!<VLOOKUP($B18,blockstates_haps,4,FALSE),$B18&_&VLOOKUP($B18,blockstates_haps,3,FALSE)&"-"&VLOOKUP($B18,blockstates_haps,4,FALSE),IF(#REF!<VLOOKUP($B18,blockstates_haps,5,FALSE),$B18&"_"&VLOOKUP($B18,blockstates_haps,4,FALSE)&"-"&VLOOKUP($B18,blockstates_haps,5,FALSE),$B18&"_>="&VLOOKUP($B18,blockstates_haps,5,FALSE)))))) -> 
A19: =Aggregate!A14 -> Project 7 | B19: (Select) | D19: 0 | F19: 0 | H19: =IF(VLOOKUP($B19,stairemiss,3,FALSE)<>3,"",IF(VLOOKUP($B19,blockstates,2,FALSE)<>1,"",IF(#REF!<VLOOKUP($B19,blockstates,3,FALSE),$B19&"_<"&VLOOKUP($B19,blockstates,3,FALSE),$B19&"_>="&VLOOKUP($B19,blockstates,3,FALSE)))) ->  | I19: =IF(VLOOKUP($B19,stairemiss,3,FALSE)<>3,"",IF(VLOOKUP($B19,blockstates,2,FALSE)<>2,"",IF(#REF!<VLOOKUP($B19,blockstates,3,FALSE),$B19&"_<"&VLOOKUP($B19,blockstates,3,FALSE),IF(#REF!<VLOOKUP($B19,blockstates,4,FALSE),$B19&"_"&VLOOKUP($B19,blockstates,3,FALSE)&"-"&VLOOKUP($B19,blockstates,4,FALSE),$B19&"_>="&VLOOKUP($B19,blockstates,4,FALSE))))) ->  | J19: =IF(VLOOKUP($B19,stairemiss,3,FALSE)<>3,"",IF(VLOOKUP($B19,blockstates,2,FALSE)<>3,"",IF(#REF!<VLOOKUP($B19,blockstates,3,FALSE),$B19&"_<"&VLOOKUP($B19,blockstates,3,FALSE),IF(#REF!<VLOOKUP($B19,blockstates,4,FALSE),$B19&_&VLOOKUP($B19,blockstates,3,FALSE)&"-"&VLOOKUP($B19,blockstates,4,FALSE),IF(#REF!<VLOOKUP($B19,blockstates,5,FALSE),$B19&"_"&VLOOKUP($B19,blockstates,4,FALSE)&"-"&VLOOKUP($B19,blockstates,5,FALSE),$B19&"_>="&VLOOKUP($B19,blockstates,5,FALSE)))))) ->  | L19: =IF(VLOOKUP($B19,stairemiss,8,FALSE)<>3,"",IF(VLOOKUP($B19,blockstates_haps,2,FALSE)<>1,"",IF(#REF!<VLOOKUP($B19,blockstates_haps,3,FALSE),$B19&"_<"&VLOOKUP($B19,blockstates_haps,3,FALSE),$B19&"_>="&VLOOKUP($B19,blockstates_haps,3,FALSE)))) ->  | M19: =IF(VLOOKUP($B19,stairemiss,8,FALSE)<>3,"",IF(VLOOKUP($B19,blockstates_haps,2,FALSE)<>2,"",IF(#REF!<VLOOKUP($B19,blockstates_haps,3,FALSE),$B19&"_<"&VLOOKUP($B19,blockstates_haps,3,FALSE),IF(#REF!<VLOOKUP($B19,blockstates_haps,4,FALSE),$B19&"_"&VLOOKUP($B19,blockstates_haps,3,FALSE)&"-"&VLOOKUP($B19,blockstates_haps,4,FALSE),$B19&"_>="&VLOOKUP($B19,blockstates_haps,4,FALSE))))) ->  | N19: =IF(VLOOKUP($B19,stairemiss,8,FALSE)<>3,"",IF(VLOOKUP($B19,blockstates_haps,2,FALSE)<>3,"",IF(#REF!<VLOOKUP($B19,blockstates_haps,3,FALSE),$B19&"_<"&VLOOKUP($B19,blockstates_haps,3,FALSE),IF(#REF!<VLOOKUP($B19,blockstates_haps,4,FALSE),$B19&_&VLOOKUP($B19,blockstates_haps,3,FALSE)&"-"&VLOOKUP($B19,blockstates_haps,4,FALSE),IF(#REF!<VLOOKUP($B19,blockstates_haps,5,FALSE),$B19&"_"&VLOOKUP($B19,blockstates_haps,4,FALSE)&"-"&VLOOKUP($B19,blockstates_haps,5,FALSE),$B19&"_>="&VLOOKUP($B19,blockstates_haps,5,FALSE)))))) -> 
A20: =Aggregate!A15 -> Project 8 | B20: (Select) | D20: 0 | F20: 0 | H20: =IF(VLOOKUP($B20,stairemiss,3,FALSE)<>3,"",IF(VLOOKUP($B20,blockstates,2,FALSE)<>1,"",IF(#REF!<VLOOKUP($B20,blockstates,3,FALSE),$B20&"_<"&VLOOKUP($B20,blockstates,3,FALSE),$B20&"_>="&VLOOKUP($B20,blockstates,3,FALSE)))) ->  | I20: =IF(VLOOKUP($B20,stairemiss,3,FALSE)<>3,"",IF(VLOOKUP($B20,blockstates,2,FALSE)<>2,"",IF(#REF!<VLOOKUP($B20,blockstates,3,FALSE),$B20&"_<"&VLOOKUP($B20,blockstates,3,FALSE),IF(#REF!<VLOOKUP($B20,blockstates,4,FALSE),$B20&"_"&VLOOKUP($B20,blockstates,3,FALSE)&"-"&VLOOKUP($B20,blockstates,4,FALSE),$B20&"_>="&VLOOKUP($B20,blockstates,4,FALSE))))) ->  | J20: =IF(VLOOKUP($B20,stairemiss,3,FALSE)<>3,"",IF(VLOOKUP($B20,blockstates,2,FALSE)<>3,"",IF(#REF!<VLOOKUP($B20,blockstates,3,FALSE),$B20&"_<"&VLOOKUP($B20,blockstates,3,FALSE),IF(#REF!<VLOOKUP($B20,blockstates,4,FALSE),$B20&_&VLOOKUP($B20,blockstates,3,FALSE)&"-"&VLOOKUP($B20,blockstates,4,FALSE),IF(#REF!<VLOOKUP($B20,blockstates,5,FALSE),$B20&"_"&VLOOKUP($B20,blockstates,4,FALSE)&"-"&VLOOKUP($B20,blockstates,5,FALSE),$B20&"_>="&VLOOKUP($B20,blockstates,5,FALSE)))))) ->  | L20: =IF(VLOOKUP($B20,stairemiss,8,FALSE)<>3,"",IF(VLOOKUP($B20,blockstates_haps,2,FALSE)<>1,"",IF(#REF!<VLOOKUP($B20,blockstates_haps,3,FALSE),$B20&"_<"&VLOOKUP($B20,blockstates_haps,3,FALSE),$B20&"_>="&VLOOKUP($B20,blockstates_haps,3,FALSE)))) ->  | M20: =IF(VLOOKUP($B20,stairemiss,8,FALSE)<>3,"",IF(VLOOKUP($B20,blockstates_haps,2,FALSE)<>2,"",IF(#REF!<VLOOKUP($B20,blockstates_haps,3,FALSE),$B20&"_<"&VLOOKUP($B20,blockstates_haps,3,FALSE),IF(#REF!<VLOOKUP($B20,blockstates_haps,4,FALSE),$B20&"_"&VLOOKUP($B20,blockstates_haps,3,FALSE)&"-"&VLOOKUP($B20,blockstates_haps,4,FALSE),$B20&"_>="&VLOOKUP($B20,blockstates_haps,4,FALSE))))) ->  | N20: =IF(VLOOKUP($B20,stairemiss,8,FALSE)<>3,"",IF(VLOOKUP($B20,blockstates_haps,2,FALSE)<>3,"",IF(#REF!<VLOOKUP($B20,blockstates_haps,3,FALSE),$B20&"_<"&VLOOKUP($B20,blockstates_haps,3,FALSE),IF(#REF!<VLOOKUP($B20,blockstates_haps,4,FALSE),$B20&_&VLOOKUP($B20,blockstates_haps,3,FALSE)&"-"&VLOOKUP($B20,blockstates_haps,4,FALSE),IF(#REF!<VLOOKUP($B20,blockstates_haps,5,FALSE),$B20&"_"&VLOOKUP($B20,blockstates_haps,4,FALSE)&"-"&VLOOKUP($B20,blockstates_haps,5,FALSE),$B20&"_>="&VLOOKUP($B20,blockstates_haps,5,FALSE)))))) -> 
A21: =Aggregate!A16 -> Project 9 | B21: (Select) | D21: 0 | F21: 0 | H21: =IF(VLOOKUP($B21,stairemiss,3,FALSE)<>3,"",IF(VLOOKUP($B21,blockstates,2,FALSE)<>1,"",IF(#REF!<VLOOKUP($B21,blockstates,3,FALSE),$B21&"_<"&VLOOKUP($B21,blockstates,3,FALSE),$B21&"_>="&VLOOKUP($B21,blockstates,3,FALSE)))) ->  | I21: =IF(VLOOKUP($B21,stairemiss,3,FALSE)<>3,"",IF(VLOOKUP($B21,blockstates,2,FALSE)<>2,"",IF(#REF!<VLOOKUP($B21,blockstates,3,FALSE),$B21&"_<"&VLOOKUP($B21,blockstates,3,FALSE),IF(#REF!<VLOOKUP($B21,blockstates,4,FALSE),$B21&"_"&VLOOKUP($B21,blockstates,3,FALSE)&"-"&VLOOKUP($B21,blockstates,4,FALSE),$B21&"_>="&VLOOKUP($B21,blockstates,4,FALSE))))) ->  | J21: =IF(VLOOKUP($B21,stairemiss,3,FALSE)<>3,"",IF(VLOOKUP($B21,blockstates,2,FALSE)<>3,"",IF(#REF!<VLOOKUP($B21,blockstates,3,FALSE),$B21&"_<"&VLOOKUP($B21,blockstates,3,FALSE),IF(#REF!<VLOOKUP($B21,blockstates,4,FALSE),$B21&_&VLOOKUP($B21,blockstates,3,FALSE)&"-"&VLOOKUP($B21,blockstates,4,FALSE),IF(#REF!<VLOOKUP($B21,blockstates,5,FALSE),$B21&"_"&VLOOKUP($B21,blockstates,4,FALSE)&"-"&VLOOKUP($B21,blockstates,5,FALSE),$B21&"_>="&VLOOKUP($B21,blockstates,5,FALSE)))))) ->  | L21: =IF(VLOOKUP($B21,stairemiss,8,FALSE)<>3,"",IF(VLOOKUP($B21,blockstates_haps,2,FALSE)<>1,"",IF(#REF!<VLOOKUP($B21,blockstates_haps,3,FALSE),$B21&"_<"&VLOOKUP($B21,blockstates_haps,3,FALSE),$B21&"_>="&VLOOKUP($B21,blockstates_haps,3,FALSE)))) ->  | M21: =IF(VLOOKUP($B21,stairemiss,8,FALSE)<>3,"",IF(VLOOKUP($B21,blockstates_haps,2,FALSE)<>2,"",IF(#REF!<VLOOKUP($B21,blockstates_haps,3,FALSE),$B21&"_<"&VLOOKUP($B21,blockstates_haps,3,FALSE),IF(#REF!<VLOOKUP($B21,blockstates_haps,4,FALSE),$B21&"_"&VLOOKUP($B21,blockstates_haps,3,FALSE)&"-"&VLOOKUP($B21,blockstates_haps,4,FALSE),$B21&"_>="&VLOOKUP($B21,blockstates_haps,4,FALSE))))) ->  | N21: =IF(VLOOKUP($B21,stairemiss,8,FALSE)<>3,"",IF(VLOOKUP($B21,blockstates_haps,2,FALSE)<>3,"",IF(#REF!<VLOOKUP($B21,blockstates_haps,3,FALSE),$B21&"_<"&VLOOKUP($B21,blockstates_haps,3,FALSE),IF(#REF!<VLOOKUP($B21,blockstates_haps,4,FALSE),$B21&_&VLOOKUP($B21,blockstates_haps,3,FALSE)&"-"&VLOOKUP($B21,blockstates_haps,4,FALSE),IF(#REF!<VLOOKUP($B21,blockstates_haps,5,FALSE),$B21&"_"&VLOOKUP($B21,blockstates_haps,4,FALSE)&"-"&VLOOKUP($B21,blockstates_haps,5,FALSE),$B21&"_>="&VLOOKUP($B21,blockstates_haps,5,FALSE)))))) -> 
A22: =Aggregate!A17 -> Project 10 | B22: (Select) | D22: 0 | F22: 0 | H22: =IF(VLOOKUP($B22,stairemiss,3,FALSE)<>3,"",IF(VLOOKUP($B22,blockstates,2,FALSE)<>1,"",IF(#REF!<VLOOKUP($B22,blockstates,3,FALSE),$B22&"_<"&VLOOKUP($B22,blockstates,3,FALSE),$B22&"_>="&VLOOKUP($B22,blockstates,3,FALSE)))) ->  | I22: =IF(VLOOKUP($B22,stairemiss,3,FALSE)<>3,"",IF(VLOOKUP($B22,blockstates,2,FALSE)<>2,"",IF(#REF!<VLOOKUP($B22,blockstates,3,FALSE),$B22&"_<"&VLOOKUP($B22,blockstates,3,FALSE),IF(#REF!<VLOOKUP($B22,blockstates,4,FALSE),$B22&"_"&VLOOKUP($B22,blockstates,3,FALSE)&"-"&VLOOKUP($B22,blockstates,4,FALSE),$B22&"_>="&VLOOKUP($B22,blockstates,4,FALSE))))) ->  | J22: =IF(VLOOKUP($B22,stairemiss,3,FALSE)<>3,"",IF(VLOOKUP($B22,blockstates,2,FALSE)<>3,"",IF(#REF!<VLOOKUP($B22,blockstates,3,FALSE),$B22&"_<"&VLOOKUP($B22,blockstates,3,FALSE),IF(#REF!<VLOOKUP($B22,blockstates,4,FALSE),$B22&_&VLOOKUP($B22,blockstates,3,FALSE)&"-"&VLOOKUP($B22,blockstates,4,FALSE),IF(#REF!<VLOOKUP($B22,blockstates,5,FALSE),$B22&"_"&VLOOKUP($B22,blockstates,4,FALSE)&"-"&VLOOKUP($B22,blockstates,5,FALSE),$B22&"_>="&VLOOKUP($B22,blockstates,5,FALSE)))))) ->  | L22: =IF(VLOOKUP($B22,stairemiss,8,FALSE)<>3,"",IF(VLOOKUP($B22,blockstates_haps,2,FALSE)<>1,"",IF(#REF!<VLOOKUP($B22,blockstates_haps,3,FALSE),$B22&"_<"&VLOOKUP($B22,blockstates_haps,3,FALSE),$B22&"_>="&VLOOKUP($B22,blockstates_haps,3,FALSE)))) ->  | M22: =IF(VLOOKUP($B22,stairemiss,8,FALSE)<>3,"",IF(VLOOKUP($B22,blockstates_haps,2,FALSE)<>2,"",IF(#REF!<VLOOKUP($B22,blockstates_haps,3,FALSE),$B22&"_<"&VLOOKUP($B22,blockstates_haps,3,FALSE),IF(#REF!<VLOOKUP($B22,blockstates_haps,4,FALSE),$B22&"_"&VLOOKUP($B22,blockstates_haps,3,FALSE)&"-"&VLOOKUP($B22,blockstates_haps,4,FALSE),$B22&"_>="&VLOOKUP($B22,blockstates_haps,4,FALSE))))) ->  | N22: =IF(VLOOKUP($B22,stairemiss,8,FALSE)<>3,"",IF(VLOOKUP($B22,blockstates_haps,2,FALSE)<>3,"",IF(#REF!<VLOOKUP($B22,blockstates_haps,3,FALSE),$B22&"_<"&VLOOKUP($B22,blockstates_haps,3,FALSE),IF(#REF!<VLOOKUP($B22,blockstates_haps,4,FALSE),$B22&_&VLOOKUP($B22,blockstates_haps,3,FALSE)&"-"&VLOOKUP($B22,blockstates_haps,4,FALSE),IF(#REF!<VLOOKUP($B22,blockstates_haps,5,FALSE),$B22&"_"&VLOOKUP($B22,blockstates_haps,4,FALSE)&"-"&VLOOKUP($B22,blockstates_haps,5,FALSE),$B22&"_>="&VLOOKUP($B22,blockstates_haps,5,FALSE)))))) -> 
A23: =Aggregate!A18 -> Project 11 | B23: (Select) | D23: 0 | F23: 0 | H23: =IF(VLOOKUP($B23,stairemiss,3,FALSE)<>3,"",IF(VLOOKUP($B23,blockstates,2,FALSE)<>1,"",IF(#REF!<VLOOKUP($B23,blockstates,3,FALSE),$B23&"_<"&VLOOKUP($B23,blockstates,3,FALSE),$B23&"_>="&VLOOKUP($B23,blockstates,3,FALSE)))) ->  | I23: =IF(VLOOKUP($B23,stairemiss,3,FALSE)<>3,"",IF(VLOOKUP($B23,blockstates,2,FALSE)<>2,"",IF(#REF!<VLOOKUP($B23,blockstates,3,FALSE),$B23&"_<"&VLOOKUP($B23,blockstates,3,FALSE),IF(#REF!<VLOOKUP($B23,blockstates,4,FALSE),$B23&"_"&VLOOKUP($B23,blockstates,3,FALSE)&"-"&VLOOKUP($B23,blockstates,4,FALSE),$B23&"_>="&VLOOKUP($B23,blockstates,4,FALSE))))) ->  | J23: =IF(VLOOKUP($B23,stairemiss,3,FALSE)<>3,"",IF(VLOOKUP($B23,blockstates,2,FALSE)<>3,"",IF(#REF!<VLOOKUP($B23,blockstates,3,FALSE),$B23&"_<"&VLOOKUP($B23,blockstates,3,FALSE),IF(#REF!<VLOOKUP($B23,blockstates,4,FALSE),$B23&_&VLOOKUP($B23,blockstates,3,FALSE)&"-"&VLOOKUP($B23,blockstates,4,FALSE),IF(#REF!<VLOOKUP($B23,blockstates,5,FALSE),$B23&"_"&VLOOKUP($B23,blockstates,4,FALSE)&"-"&VLOOKUP($B23,blockstates,5,FALSE),$B23&"_>="&VLOOKUP($B23,blockstates,5,FALSE)))))) ->  | L23: =IF(VLOOKUP($B23,stairemiss,8,FALSE)<>3,"",IF(VLOOKUP($B23,blockstates_haps,2,FALSE)<>1,"",IF(#REF!<VLOOKUP($B23,blockstates_haps,3,FALSE),$B23&"_<"&VLOOKUP($B23,blockstates_haps,3,FALSE),$B23&"_>="&VLOOKUP($B23,blockstates_haps,3,FALSE)))) ->  | M23: =IF(VLOOKUP($B23,stairemiss,8,FALSE)<>3,"",IF(VLOOKUP($B23,blockstates_haps,2,FALSE)<>2,"",IF(#REF!<VLOOKUP($B23,blockstates_haps,3,FALSE),$B23&"_<"&VLOOKUP($B23,blockstates_haps,3,FALSE),IF(#REF!<VLOOKUP($B23,blockstates_haps,4,FALSE),$B23&"_"&VLOOKUP($B23,blockstates_haps,3,FALSE)&"-"&VLOOKUP($B23,blockstates_haps,4,FALSE),$B23&"_>="&VLOOKUP($B23,blockstates_haps,4,FALSE))))) ->  | N23: =IF(VLOOKUP($B23,stairemiss,8,FALSE)<>3,"",IF(VLOOKUP($B23,blockstates_haps,2,FALSE)<>3,"",IF(#REF!<VLOOKUP($B23,blockstates_haps,3,FALSE),$B23&"_<"&VLOOKUP($B23,blockstates_haps,3,FALSE),IF(#REF!<VLOOKUP($B23,blockstates_haps,4,FALSE),$B23&_&VLOOKUP($B23,blockstates_haps,3,FALSE)&"-"&VLOOKUP($B23,blockstates_haps,4,FALSE),IF(#REF!<VLOOKUP($B23,blockstates_haps,5,FALSE),$B23&"_"&VLOOKUP($B23,blockstates_haps,4,FALSE)&"-"&VLOOKUP($B23,blockstates_haps,5,FALSE),$B23&"_>="&VLOOKUP($B23,blockstates_haps,5,FALSE)))))) -> 
A25: Color Key
A26: Enter value
A27: Use drop-down menu
A28: Do not change - calculation
A30: Sources
A31: AIR EMISSIONS | B31: 2008-2010 State Data | C31: Data for the following 5 states was not available for this survey: Louisiana, Massachusetts, Rhode Island, South Dakota, Utah. Delaware reportedly determines rates on a case-by-case basis. Where state data was not available, the national average was used. It should also be noted that the majority of Nevada's fee revenue comes from "maintenance fees" as opposed to "emissions fees," unlike most states; for example, a Major Source with a Title V permit pays the $16.00/ton plus a $20,000 base fee.
B85: U.S. National
B86: AK
B87: AL
B88: AR
B89: AZ
B90: CA
B91: CO
B92: CT
B93: DC
B94: DE
B95: FL
B96: GA
B97: HI
B98: IA
B99: ID
B100: IL
B101: IN
B102: KS
B103: KY
B104: LA
B105: MA
B106: MD
B107: ME
B108: MI
B109: MN
B110: MO
B111: MS
B112: MT
B113: NC
B114: ND
B115: NE
B116: NH
B117: NJ
B118: NM
B119: NV
B120: NY
B121: OH
B122: OK
B123: OR
B124: PA
B125: RI
B126: SC
B127: SD
B128: TN
B129: TX
B130: UT
B131: VA
B132: VT
B133: WA
B134: WI
B135: WV
B136: WY

Sheet Water Pollution
C1: Water Pollution
C2: This tab shows cost savings from reducing discharges to water (wastewater, COD, TSS, toxics, and nutrients).
A4: Type of Reduction | C4: COD (Chemical Oxygen Demand) | H4: Total Suspended Solids (TSS) | M4: Fats, Oils, and Grease (FOG) | R4: Nutrients | W4: General Wastewater | Z4: Total
A5: How to use this tab | C5: Enter the COD quantity reduced in a unit from the drop down. Enter the unit cost or choose a state or national default to populate the unit cost. Savings are on the right. | H5: Enter the TSS quantity reduced in a unit from the drop down. Enter the unit cost or choose a state or national default to populate the unit cost. Savings are on the right. | M5: Enter quantity of fats, oils, and greese (FOG) waste reduced, selecting the appropriate unit. To avoid double counting, do not enter these quantities in any other tab. | R5: Enter the quantity of nutrients reduced in a unit from the drop down. Enter the sum of cost and any surcharge per unit. Savings are on the right. | W5: Enter gallons reduced. Enter the unit cost of treatment or choose a state or national default to populate the unit cost. Savings are on the right. The quantity you enter here will likely match your quantity on the Water Use tab.
A6: Calculation Description | C6: Quantity of COD reduced (in user-specified units) * unit cost (user-specified or default) = Dollars saved. A formula converts all units to pounds. | H6: Quantity of BOD/COD reduced (in user-specified units) * unit cost (user-specified or default) = Dollars saved. A formula converts all units to pounds. | M6: Converts units to pounds. | R6: Quantity of nutrients reduced (in user-specified units) * user-specified unit cost = Dollars saved. A formula converts all units to pounds. | W6: Gallons reduced * unit cost (user-specified or default) = Dollars saved.
B7: State or U.S. (Select) | C7: Reduced Quantity of BOD/COD | D7: Units (select) | E7: Unit Cost ($/unit selected) | F7: Pounds Reduced | G7: Dollar Savings | H7: Reduced Quantity of TSS | I7: Units (select) | J7: Unit Cost ($/unit selected) | K7: Pounds Reduced | L7: Dollar Savings | M7: Reduced Quantity of Toxics | N7: Units (select) | O7: Unit Cost ($/unit selected) | P7: Pounds Reduced | Q7: Dollar Savings | R7: Reduced Quantity of Nutrients | S7: Units (select) | T7: Unit Cost ($/unit selected) | U7: Pounds Reduced | V7: Dollar Savings | W7: Reduced Gallons of Wastewater | X7: Unit Cost ($/gal) | Y7: Dollars Savings | Z7: Pounds Reduced
A8: Example | C8: Through the adoption of a new filtration system in one of its plants, GMC reduced the quantity of BOD/COD discharged by 500 kilograms. | W8: Adopted “electrocoagulation” technology in metal finishing shop in New Jersey, reducing process water use/discharge by about 99% (5 million gallons/yr).
B9: NJ | C9: 500 | D9: kg | F9: 1102.5 | G9: 432.7284604 | W9: 5000000 | Y9: =IF(ISERROR(IF(AND(X9="",B9<>""),W9*VLOOKUP(B9,'State Water Charges'!$A$3:$I$54,6,FALSE),W9*X9)),"-",IF(AND(X9="",B9<>""),W9*VLOOKUP(B9,'State Water Charges'!$A$3:$I$54,6,FALSE),W9*X9)) -> 25169.35313
A10: Totals - All Projects | F10: =SUM(F12:F22) -> 0 | G10: =SUM(G12:G22) -> 0 | K10: =SUM(K12:K22) -> 0 | L10: =SUM(L12:L22) -> 0 | P10: =SUM(P12:P22) -> 0 | Q10: =SUM(Q12:Q22) -> 0 | U10: =SUM(U12:U22) -> 0 | V10: =SUM(V12:V22) -> 0 | W10: =SUM(W12:W22) -> 0 | Y10: =SUM(Y12:Y22) -> 0 | Z10: =SUM(Z12:Z22) -> 0
A12: =Aggregate!A8 -> Project 1 | B12: (Select) | D12: (Select) | F12: =IF(D12="lbs",C12,IF(D12="kg",C12*'Conversion Factors'!$D$21,IF(D12="tons",C12*'Conversion Factors'!$D$23,IF(D12="metric tons",C12*'Conversion Factors'!$D$22/'Conversion Factors'!$D$20,0)))) -> 0 | G12: =IF(ISERROR(IF(AND(E12="",B12<>""),F12*VLOOKUP(B12,'State Water Charges'!$A$3:$I$54,8,FALSE),F12*E12)),"-",IF(AND(E12="",B12<>""),F12*VLOOKUP(B12,'State Water Charges'!$A$3:$I$54,8,FALSE),C12*E12)) -> - | I12: (Select) | K12: =IF(I12="lbs",H12,IF(I12="kg",H12*'Conversion Factors'!$D$21,IF(I12="tons",H12*'Conversion Factors'!$D$23,IF(I12="metric tons",H12*'Conversion Factors'!$D$22/'Conversion Factors'!$D$20,0)))) -> 0 | L12: =IF(ISERROR(IF(AND(J12="",B12<>""),K12*VLOOKUP(B12,'State Water Charges'!$A$3:$I$54,7,FALSE),H12*J12)),"-",IF(AND(J12="",B12<>""),K12*VLOOKUP(B12,'State Water Charges'!$A$3:$I$54,7,FALSE),H12*J12)) -> - | N12: (Select) | P12: =IF(N12="lbs",M12,IF(N12="kg",M12*'Conversion Factors'!$D$21,IF(N12="tons",M12*'Conversion Factors'!$D$23,IF(N12="metric tons",M12*'Conversion Factors'!$D$22/'Conversion Factors'!$D$20,0)))) -> 0 | Q12: =M12*O12 -> 0 | S12: (Select) | U12: =IF(S12="lbs",R12,IF(S12="kg",R12*'Conversion Factors'!$D$21,IF(S12="tons",R12*'Conversion Factors'!$D$23,IF(S12="metric tons",R12*'Conversion Factors'!$D$22/'Conversion Factors'!$D$20,0)))) -> 0 | V12: =R12*T12 -> 0 | Y12: =IF(ISERROR(IF(AND(X12="",B12<>""),W12*VLOOKUP(B12,'State Water Charges'!$A$3:$I$54,6,FALSE),W12*X12)),"-",IF(AND(X12="",B12<>""),W12*VLOOKUP(B12,'State Water Charges'!$A$3:$I$54,6,FALSE),W12*X12)) -> - | Z12: =SUM(Y12,V12,L12,G12) -> 0
A13: =Aggregate!A9 -> Project 2 | B13: (Select) | D13: (Select) | F13: =IF(D13="lbs",C13,IF(D13="kg",C13*'Conversion Factors'!$D$21,IF(D13="tons",C13*'Conversion Factors'!$D$23,IF(D13="metric tons",C13*'Conversion Factors'!$D$22/'Conversion Factors'!$D$20,0)))) -> 0 | G13: =IF(ISERROR(IF(AND(E13="",B13<>""),F13*VLOOKUP(B13,'State Water Charges'!$A$3:$I$54,8,FALSE),F13*E13)),"-",IF(AND(E13="",B13<>""),F13*VLOOKUP(B13,'State Water Charges'!$A$3:$I$54,8,FALSE),C13*E13)) -> - | I13: (Select) | K13: =IF(I13="lbs",H13,IF(I13="kg",H13*'Conversion Factors'!$D$21,IF(I13="tons",H13*'Conversion Factors'!$D$23,IF(I13="metric tons",H13*'Conversion Factors'!$D$22/'Conversion Factors'!$D$20,0)))) -> 0 | L13: =IF(ISERROR(IF(AND(J13="",B13<>""),K13*VLOOKUP(B13,'State Water Charges'!$A$3:$I$54,7,FALSE),H13*J13)),"-",IF(AND(J13="",B13<>""),K13*VLOOKUP(B13,'State Water Charges'!$A$3:$I$54,7,FALSE),H13*J13)) -> - | N13: (Select) | P13: =IF(N13="lbs",M13,IF(N13="kg",M13*'Conversion Factors'!$D$21,IF(N13="tons",M13*'Conversion Factors'!$D$23,IF(N13="metric tons",M13*'Conversion Factors'!$D$22/'Conversion Factors'!$D$20,0)))) -> 0 | Q13: =M13*O13 -> 0 | S13: (Select) | U13: =IF(S13="lbs",R13,IF(S13="kg",R13*'Conversion Factors'!$D$21,IF(S13="tons",R13*'Conversion Factors'!$D$23,IF(S13="metric tons",R13*'Conversion Factors'!$D$22/'Conversion Factors'!$D$20,0)))) -> 0 | V13: =R13*T13 -> 0 | Y13: =IF(ISERROR(IF(AND(X13="",B13<>""),W13*VLOOKUP(B13,'State Water Charges'!$A$3:$I$54,6,FALSE),W13*X13)),"-",IF(AND(X13="",B13<>""),W13*VLOOKUP(B13,'State Water Charges'!$A$3:$I$54,6,FALSE),W13*X13)) -> - | Z13: =SUM(Y13,V13,L13,G13) -> 0
A14: =Aggregate!A10 -> Project 3 | B14: (Select) | D14: (Select) | F14: =IF(D14="lbs",C14,IF(D14="kg",C14*'Conversion Factors'!$D$21,IF(D14="tons",C14*'Conversion Factors'!$D$23,IF(D14="metric tons",C14*'Conversion Factors'!$D$22/'Conversion Factors'!$D$20,0)))) -> 0 | G14: =IF(ISERROR(IF(AND(E14="",B14<>""),F14*VLOOKUP(B14,'State Water Charges'!$A$3:$I$54,8,FALSE),F14*E14)),"-",IF(AND(E14="",B14<>""),F14*VLOOKUP(B14,'State Water Charges'!$A$3:$I$54,8,FALSE),C14*E14)) -> - | I14: (Select) | K14: =IF(I14="lbs",H14,IF(I14="kg",H14*'Conversion Factors'!$D$21,IF(I14="tons",H14*'Conversion Factors'!$D$23,IF(I14="metric tons",H14*'Conversion Factors'!$D$22/'Conversion Factors'!$D$20,0)))) -> 0 | L14: =IF(ISERROR(IF(AND(J14="",B14<>""),K14*VLOOKUP(B14,'State Water Charges'!$A$3:$I$54,7,FALSE),H14*J14)),"-",IF(AND(J14="",B14<>""),K14*VLOOKUP(B14,'State Water Charges'!$A$3:$I$54,7,FALSE),H14*J14)) -> - | N14: (Select) | P14: =IF(N14="lbs",M14,IF(N14="kg",M14*'Conversion Factors'!$D$21,IF(N14="tons",M14*'Conversion Factors'!$D$23,IF(N14="metric tons",M14*'Conversion Factors'!$D$22/'Conversion Factors'!$D$20,0)))) -> 0 | Q14: 0 | S14: (Select) | U14: =IF(S14="lbs",R14,IF(S14="kg",R14*'Conversion Factors'!$D$21,IF(S14="tons",R14*'Conversion Factors'!$D$23,IF(S14="metric tons",R14*'Conversion Factors'!$D$22/'Conversion Factors'!$D$20,0)))) -> 0 | V14: 0 | Y14: =IF(ISERROR(IF(AND(X14="",B14<>""),W14*VLOOKUP(B14,'State Water Charges'!$A$3:$I$54,6,FALSE),W14*X14)),"-",IF(AND(X14="",B14<>""),W14*VLOOKUP(B14,'State Water Charges'!$A$3:$I$54,6,FALSE),W14*X14)) -> - | Z14: 0
A15: =Aggregate!A11 -> Project 4 | B15: (Select) | D15: (Select) | F15: =IF(D15="lbs",C15,IF(D15="kg",C15*'Conversion Factors'!$D$21,IF(D15="tons",C15*'Conversion Factors'!$D$23,IF(D15="metric tons",C15*'Conversion Factors'!$D$22/'Conversion Factors'!$D$20,0)))) -> 0 | G15: =IF(ISERROR(IF(AND(E15="",B15<>""),F15*VLOOKUP(B15,'State Water Charges'!$A$3:$I$54,8,FALSE),F15*E15)),"-",IF(AND(E15="",B15<>""),F15*VLOOKUP(B15,'State Water Charges'!$A$3:$I$54,8,FALSE),C15*E15)) -> - | I15: (Select) | K15: =IF(I15="lbs",H15,IF(I15="kg",H15*'Conversion Factors'!$D$21,IF(I15="tons",H15*'Conversion Factors'!$D$23,IF(I15="metric tons",H15*'Conversion Factors'!$D$22/'Conversion Factors'!$D$20,0)))) -> 0 | L15: =IF(ISERROR(IF(AND(J15="",B15<>""),K15*VLOOKUP(B15,'State Water Charges'!$A$3:$I$54,7,FALSE),H15*J15)),"-",IF(AND(J15="",B15<>""),K15*VLOOKUP(B15,'State Water Charges'!$A$3:$I$54,7,FALSE),H15*J15)) -> - | N15: (Select) | P15: =IF(N15="lbs",M15,IF(N15="kg",M15*'Conversion Factors'!$D$21,IF(N15="tons",M15*'Conversion Factors'!$D$23,IF(N15="metric tons",M15*'Conversion Factors'!$D$22/'Conversion Factors'!$D$20,0)))) -> 0 | Q15: 0 | S15: (Select) | U15: =IF(S15="lbs",R15,IF(S15="kg",R15*'Conversion Factors'!$D$21,IF(S15="tons",R15*'Conversion Factors'!$D$23,IF(S15="metric tons",R15*'Conversion Factors'!$D$22/'Conversion Factors'!$D$20,0)))) -> 0 | V15: 0 | Y15: =IF(ISERROR(IF(AND(X15="",B15<>""),W15*VLOOKUP(B15,'State Water Charges'!$A$3:$I$54,6,FALSE),W15*X15)),"-",IF(AND(X15="",B15<>""),W15*VLOOKUP(B15,'State Water Charges'!$A$3:$I$54,6,FALSE),W15*X15)) -> - | Z15: 0
A16: =Aggregate!A12 -> Project 5 | B16: (Select) | D16: (Select) | F16: =IF(D16="lbs",C16,IF(D16="kg",C16*'Conversion Factors'!$D$21,IF(D16="tons",C16*'Conversion Factors'!$D$23,IF(D16="metric tons",C16*'Conversion Factors'!$D$22/'Conversion Factors'!$D$20,0)))) -> 0 | G16: =IF(ISERROR(IF(AND(E16="",B16<>""),F16*VLOOKUP(B16,'State Water Charges'!$A$3:$I$54,8,FALSE),F16*E16)),"-",IF(AND(E16="",B16<>""),F16*VLOOKUP(B16,'State Water Charges'!$A$3:$I$54,8,FALSE),C16*E16)) -> - | I16: (Select) | K16: =IF(I16="lbs",H16,IF(I16="kg",H16*'Conversion Factors'!$D$21,IF(I16="tons",H16*'Conversion Factors'!$D$23,IF(I16="metric tons",H16*'Conversion Factors'!$D$22/'Conversion Factors'!$D$20,0)))) -> 0 | L16: =IF(ISERROR(IF(AND(J16="",B16<>""),K16*VLOOKUP(B16,'State Water Charges'!$A$3:$I$54,7,FALSE),H16*J16)),"-",IF(AND(J16="",B16<>""),K16*VLOOKUP(B16,'State Water Charges'!$A$3:$I$54,7,FALSE),H16*J16)) -> - | N16: (Select) | P16: =IF(N16="lbs",M16,IF(N16="kg",M16*'Conversion Factors'!$D$21,IF(N16="tons",M16*'Conversion Factors'!$D$23,IF(N16="metric tons",M16*'Conversion Factors'!$D$22/'Conversion Factors'!$D$20,0)))) -> 0 | Q16: 0 | S16: (Select) | U16: =IF(S16="lbs",R16,IF(S16="kg",R16*'Conversion Factors'!$D$21,IF(S16="tons",R16*'Conversion Factors'!$D$23,IF(S16="metric tons",R16*'Conversion Factors'!$D$22/'Conversion Factors'!$D$20,0)))) -> 0 | V16: 0 | Y16: =IF(ISERROR(IF(AND(X16="",B16<>""),W16*VLOOKUP(B16,'State Water Charges'!$A$3:$I$54,6,FALSE),W16*X16)),"-",IF(AND(X16="",B16<>""),W16*VLOOKUP(B16,'State Water Charges'!$A$3:$I$54,6,FALSE),W16*X16)) -> - | Z16: 0
A17: =Aggregate!A13 -> Project 6 | B17: (Select) | D17: (Select) | F17: =IF(D17="lbs",C17,IF(D17="kg",C17*'Conversion Factors'!$D$21,IF(D17="tons",C17*'Conversion Factors'!$D$23,IF(D17="metric tons",C17*'Conversion Factors'!$D$22/'Conversion Factors'!$D$20,0)))) -> 0 | G17: =IF(ISERROR(IF(AND(E17="",B17<>""),F17*VLOOKUP(B17,'State Water Charges'!$A$3:$I$54,8,FALSE),F17*E17)),"-",IF(AND(E17="",B17<>""),F17*VLOOKUP(B17,'State Water Charges'!$A$3:$I$54,8,FALSE),C17*E17)) -> - | I17: (Select) | K17: =IF(I17="lbs",H17,IF(I17="kg",H17*'Conversion Factors'!$D$21,IF(I17="tons",H17*'Conversion Factors'!$D$23,IF(I17="metric tons",H17*'Conversion Factors'!$D$22/'Conversion Factors'!$D$20,0)))) -> 0 | L17: =IF(ISERROR(IF(AND(J17="",B17<>""),K17*VLOOKUP(B17,'State Water Charges'!$A$3:$I$54,7,FALSE),H17*J17)),"-",IF(AND(J17="",B17<>""),K17*VLOOKUP(B17,'State Water Charges'!$A$3:$I$54,7,FALSE),H17*J17)) -> - | N17: (Select) | P17: =IF(N17="lbs",M17,IF(N17="kg",M17*'Conversion Factors'!$D$21,IF(N17="tons",M17*'Conversion Factors'!$D$23,IF(N17="metric tons",M17*'Conversion Factors'!$D$22/'Conversion Factors'!$D$20,0)))) -> 0 | Q17: 0 | S17: (Select) | U17: =IF(S17="lbs",R17,IF(S17="kg",R17*'Conversion Factors'!$D$21,IF(S17="tons",R17*'Conversion Factors'!$D$23,IF(S17="metric tons",R17*'Conversion Factors'!$D$22/'Conversion Factors'!$D$20,0)))) -> 0 | V17: 0 | Y17: =IF(ISERROR(IF(AND(X17="",B17<>""),W17*VLOOKUP(B17,'State Water Charges'!$A$3:$I$54,6,FALSE),W17*X17)),"-",IF(AND(X17="",B17<>""),W17*VLOOKUP(B17,'State Water Charges'!$A$3:$I$54,6,FALSE),W17*X17)) -> - | Z17: 0
A18: =Aggregate!A14 -> Project 7 | B18: (Select) | D18: (Select) | F18: =IF(D18="lbs",C18,IF(D18="kg",C18*'Conversion Factors'!$D$21,IF(D18="tons",C18*'Conversion Factors'!$D$23,IF(D18="metric tons",C18*'Conversion Factors'!$D$22/'Conversion Factors'!$D$20,0)))) -> 0 | G18: =IF(ISERROR(IF(AND(E18="",B18<>""),F18*VLOOKUP(B18,'State Water Charges'!$A$3:$I$54,8,FALSE),F18*E18)),"-",IF(AND(E18="",B18<>""),F18*VLOOKUP(B18,'State Water Charges'!$A$3:$I$54,8,FALSE),C18*E18)) -> - | I18: (Select) | K18: =IF(I18="lbs",H18,IF(I18="kg",H18*'Conversion Factors'!$D$21,IF(I18="tons",H18*'Conversion Factors'!$D$23,IF(I18="metric tons",H18*'Conversion Factors'!$D$22/'Conversion Factors'!$D$20,0)))) -> 0 | L18: =IF(ISERROR(IF(AND(J18="",B18<>""),K18*VLOOKUP(B18,'State Water Charges'!$A$3:$I$54,7,FALSE),H18*J18)),"-",IF(AND(J18="",B18<>""),K18*VLOOKUP(B18,'State Water Charges'!$A$3:$I$54,7,FALSE),H18*J18)) -> - | N18: (Select) | P18: =IF(N18="lbs",M18,IF(N18="kg",M18*'Conversion Factors'!$D$21,IF(N18="tons",M18*'Conversion Factors'!$D$23,IF(N18="metric tons",M18*'Conversion Factors'!$D$22/'Conversion Factors'!$D$20,0)))) -> 0 | Q18: 0 | S18: (Select) | U18: =IF(S18="lbs",R18,IF(S18="kg",R18*'Conversion Factors'!$D$21,IF(S18="tons",R18*'Conversion Factors'!$D$23,IF(S18="metric tons",R18*'Conversion Factors'!$D$22/'Conversion Factors'!$D$20,0)))) -> 0 | V18: 0 | Y18: =IF(ISERROR(IF(AND(X18="",B18<>""),W18*VLOOKUP(B18,'State Water Charges'!$A$3:$I$54,6,FALSE),W18*X18)),"-",IF(AND(X18="",B18<>""),W18*VLOOKUP(B18,'State Water Charges'!$A$3:$I$54,6,FALSE),W18*X18)) -> - | Z18: 0
A19: =Aggregate!A15 -> Project 8 | B19: (Select) | D19: (Select) | F19: =IF(D19="lbs",C19,IF(D19="kg",C19*'Conversion Factors'!$D$21,IF(D19="tons",C19*'Conversion Factors'!$D$23,IF(D19="metric tons",C19*'Conversion Factors'!$D$22/'Conversion Factors'!$D$20,0)))) -> 0 | G19: =IF(ISERROR(IF(AND(E19="",B19<>""),F19*VLOOKUP(B19,'State Water Charges'!$A$3:$I$54,8,FALSE),F19*E19)),"-",IF(AND(E19="",B19<>""),F19*VLOOKUP(B19,'State Water Charges'!$A$3:$I$54,8,FALSE),C19*E19)) -> - | I19: (Select) | K19: =IF(I19="lbs",H19,IF(I19="kg",H19*'Conversion Factors'!$D$21,IF(I19="tons",H19*'Conversion Factors'!$D$23,IF(I19="metric tons",H19*'Conversion Factors'!$D$22/'Conversion Factors'!$D$20,0)))) -> 0 | L19: =IF(ISERROR(IF(AND(J19="",B19<>""),K19*VLOOKUP(B19,'State Water Charges'!$A$3:$I$54,7,FALSE),H19*J19)),"-",IF(AND(J19="",B19<>""),K19*VLOOKUP(B19,'State Water Charges'!$A$3:$I$54,7,FALSE),H19*J19)) -> - | N19: (Select) | P19: =IF(N19="lbs",M19,IF(N19="kg",M19*'Conversion Factors'!$D$21,IF(N19="tons",M19*'Conversion Factors'!$D$23,IF(N19="metric tons",M19*'Conversion Factors'!$D$22/'Conversion Factors'!$D$20,0)))) -> 0 | Q19: 0 | S19: (Select) | U19: =IF(S19="lbs",R19,IF(S19="kg",R19*'Conversion Factors'!$D$21,IF(S19="tons",R19*'Conversion Factors'!$D$23,IF(S19="metric tons",R19*'Conversion Factors'!$D$22/'Conversion Factors'!$D$20,0)))) -> 0 | V19: 0 | Y19: =IF(ISERROR(IF(AND(X19="",B19<>""),W19*VLOOKUP(B19,'State Water Charges'!$A$3:$I$54,6,FALSE),W19*X19)),"-",IF(AND(X19="",B19<>""),W19*VLOOKUP(B19,'State Water Charges'!$A$3:$I$54,6,FALSE),W19*X19)) -> - | Z19: 0
A20: =Aggregate!A16 -> Project 9 | B20: (Select) | D20: (Select) | F20: =IF(D20="lbs",C20,IF(D20="kg",C20*'Conversion Factors'!$D$21,IF(D20="tons",C20*'Conversion Factors'!$D$23,IF(D20="metric tons",C20*'Conversion Factors'!$D$22/'Conversion Factors'!$D$20,0)))) -> 0 | G20: =IF(ISERROR(IF(AND(E20="",B20<>""),F20*VLOOKUP(B20,'State Water Charges'!$A$3:$I$54,8,FALSE),F20*E20)),"-",IF(AND(E20="",B20<>""),F20*VLOOKUP(B20,'State Water Charges'!$A$3:$I$54,8,FALSE),C20*E20)) -> - | I20: (Select) | K20: =IF(I20="lbs",H20,IF(I20="kg",H20*'Conversion Factors'!$D$21,IF(I20="tons",H20*'Conversion Factors'!$D$23,IF(I20="metric tons",H20*'Conversion Factors'!$D$22/'Conversion Factors'!$D$20,0)))) -> 0 | L20: =IF(ISERROR(IF(AND(J20="",B20<>""),K20*VLOOKUP(B20,'State Water Charges'!$A$3:$I$54,7,FALSE),H20*J20)),"-",IF(AND(J20="",B20<>""),K20*VLOOKUP(B20,'State Water Charges'!$A$3:$I$54,7,FALSE),H20*J20)) -> - | N20: (Select) | P20: =IF(N20="lbs",M20,IF(N20="kg",M20*'Conversion Factors'!$D$21,IF(N20="tons",M20*'Conversion Factors'!$D$23,IF(N20="metric tons",M20*'Conversion Factors'!$D$22/'Conversion Factors'!$D$20,0)))) -> 0 | Q20: 0 | S20: (Select) | U20: =IF(S20="lbs",R20,IF(S20="kg",R20*'Conversion Factors'!$D$21,IF(S20="tons",R20*'Conversion Factors'!$D$23,IF(S20="metric tons",R20*'Conversion Factors'!$D$22/'Conversion Factors'!$D$20,0)))) -> 0 | V20: 0 | Y20: =IF(ISERROR(IF(AND(X20="",B20<>""),W20*VLOOKUP(B20,'State Water Charges'!$A$3:$I$54,6,FALSE),W20*X20)),"-",IF(AND(X20="",B20<>""),W20*VLOOKUP(B20,'State Water Charges'!$A$3:$I$54,6,FALSE),W20*X20)) -> - | Z20: 0
A21: =Aggregate!A17 -> Project 10 | B21: (Select) | D21: (Select) | F21: =IF(D21="lbs",C21,IF(D21="kg",C21*'Conversion Factors'!$D$21,IF(D21="tons",C21*'Conversion Factors'!$D$23,IF(D21="metric tons",C21*'Conversion Factors'!$D$22/'Conversion Factors'!$D$20,0)))) -> 0 | G21: =IF(ISERROR(IF(AND(E21="",B21<>""),F21*VLOOKUP(B21,'State Water Charges'!$A$3:$I$54,8,FALSE),F21*E21)),"-",IF(AND(E21="",B21<>""),F21*VLOOKUP(B21,'State Water Charges'!$A$3:$I$54,8,FALSE),C21*E21)) -> - | I21: (Select) | K21: =IF(I21="lbs",H21,IF(I21="kg",H21*'Conversion Factors'!$D$21,IF(I21="tons",H21*'Conversion Factors'!$D$23,IF(I21="metric tons",H21*'Conversion Factors'!$D$22/'Conversion Factors'!$D$20,0)))) -> 0 | L21: =IF(ISERROR(IF(AND(J21="",B21<>""),K21*VLOOKUP(B21,'State Water Charges'!$A$3:$I$54,7,FALSE),H21*J21)),"-",IF(AND(J21="",B21<>""),K21*VLOOKUP(B21,'State Water Charges'!$A$3:$I$54,7,FALSE),H21*J21)) -> - | N21: (Select) | P21: =IF(N21="lbs",M21,IF(N21="kg",M21*'Conversion Factors'!$D$21,IF(N21="tons",M21*'Conversion Factors'!$D$23,IF(N21="metric tons",M21*'Conversion Factors'!$D$22/'Conversion Factors'!$D$20,0)))) -> 0 | Q21: 0 | S21: (Select) | U21: =IF(S21="lbs",R21,IF(S21="kg",R21*'Conversion Factors'!$D$21,IF(S21="tons",R21*'Conversion Factors'!$D$23,IF(S21="metric tons",R21*'Conversion Factors'!$D$22/'Conversion Factors'!$D$20,0)))) -> 0 | V21: 0 | Y21: =IF(ISERROR(IF(AND(X21="",B21<>""),W21*VLOOKUP(B21,'State Water Charges'!$A$3:$I$54,6,FALSE),W21*X21)),"-",IF(AND(X21="",B21<>""),W21*VLOOKUP(B21,'State Water Charges'!$A$3:$I$54,6,FALSE),W21*X21)) -> - | Z21: 0
A22: =Aggregate!A18 -> Project 11 | B22: (Select) | D22: (Select) | F22: =IF(D22="lbs",C22,IF(D22="kg",C22*'Conversion Factors'!$D$21,IF(D22="tons",C22*'Conversion Factors'!$D$23,IF(D22="metric tons",C22*'Conversion Factors'!$D$22/'Conversion Factors'!$D$20,0)))) -> 0 | G22: =IF(ISERROR(IF(AND(E22="",B22<>""),F22*VLOOKUP(B22,'State Water Charges'!$A$3:$I$54,8,FALSE),F22*E22)),"-",IF(AND(E22="",B22<>""),F22*VLOOKUP(B22,'State Water Charges'!$A$3:$I$54,8,FALSE),C22*E22)) -> - | I22: (Select) | K22: =IF(I22="lbs",H22,IF(I22="kg",H22*'Conversion Factors'!$D$21,IF(I22="tons",H22*'Conversion Factors'!$D$23,IF(I22="metric tons",H22*'Conversion Factors'!$D$22/'Conversion Factors'!$D$20,0)))) -> 0 | L22: =IF(ISERROR(IF(AND(J22="",B22<>""),K22*VLOOKUP(B22,'State Water Charges'!$A$3:$I$54,7,FALSE),H22*J22)),"-",IF(AND(J22="",B22<>""),K22*VLOOKUP(B22,'State Water Charges'!$A$3:$I$54,7,FALSE),H22*J22)) -> - | N22: (Select) | P22: =IF(N22="lbs",M22,IF(N22="kg",M22*'Conversion Factors'!$D$21,IF(N22="tons",M22*'Conversion Factors'!$D$23,IF(N22="metric tons",M22*'Conversion Factors'!$D$22/'Conversion Factors'!$D$20,0)))) -> 0 | Q22: =M22*O22 -> 0 | S22: (Select) | U22: =IF(S22="lbs",R22,IF(S22="kg",R22*'Conversion Factors'!$D$21,IF(S22="tons",R22*'Conversion Factors'!$D$23,IF(S22="metric tons",R22*'Conversion Factors'!$D$22/'Conversion Factors'!$D$20,0)))) -> 0 | V22: =R22*T22 -> 0 | Y22: =IF(ISERROR(IF(AND(X22="",B22<>""),W22*VLOOKUP(B22,'State Water Charges'!$A$3:$I$54,6,FALSE),W22*X22)),"-",IF(AND(X22="",B22<>""),W22*VLOOKUP(B22,'State Water Charges'!$A$3:$I$54,6,FALSE),W22*X22)) -> - | Z22: 0
A24: Color Key | G24: lbs | L24: lbs
A25: Enter value | G25: kg | L25: kg
A26: Use drop-down menu | G26: tons | L26: tons
A27: Do not change - calculation | G27: metric tons
A29: Sources
A30: WASTEWATER DISCHARGE | B30: AWWA 2014 Rate Survey, Exhibits 5. | C30: Data presented for Commercial Light Industrial Category with 2inch meter pipe. DE, HI, MA, ND, NH, NJ, RI, VT not in survey, National Average is used.
A31: BOD/COD | B31: AWWA 2014 Rate Survey. Exhibit 6. | C31: AK, CT, DC, DE, HI, MA, MD, ME, MN, MT, ND, NE, NH, NJ, RI, VT not in survey. National Average is used.
A32: TOTAL SUSPENDED SOLIDS (TSS) | B32: AWWA 2014 Rate Survey. Exhibit 6. | C32: AK, CT, DC, DE, HI, MA, ME, MN, MT, ND, NE, NH, NJ, RI, UT, VT, WA, WV, WY not in survey. National Average is used.
A33: TOXICS | B33: No Source. | C33: Cost values not currently available.
A34: NUTRIENTS | B34: No Source. | C34: Cost values not currently available.

Sheet Water Use
B1: Water Use
B2: This tab shows the money saved by lowering water usage.
A4: Type of Reduction | B4: Water Use
A5: How to use this tab | B5: Enter water reductions in gallons. Enter unit cost or choose a state or national default to populate unit cost. Savings are on the right. The quantity you enter here will likely match any quantity you enter on the Water Pollution tab.
A6: Calculation Description | B6: Gallons reduced * unit cost (user supplied or state/national default value) = Dollars saved.
B7: State or U.S. (select) | C7: Gallons Reduced | D7: Unit Cost ($/gal) | E7: Dollar Savings
A8: Example | B8: WI plant adopted water conservation technology to reduce process water use by 3 million gallons annually.
B9: WI | C9: 3000000 | E9: =IF(ISERROR(IF(AND(D9="",B9<>""),C9*VLOOKUP(B9,'State Water Charges'!$A$3:$I$54,9,FALSE),D9*C9)),"-",IF(AND(D9="",B9<>""),C9*VLOOKUP(B9,'State Water Charges'!$A$3:$I$54,9,FALSE),D9*C9)) -> 8081.44379
A10: Totals - All Projects | C10: =SUM(C12:C22) -> 0 | E10: =SUM(E12:E22) -> 0
A12: =Aggregate!A8 -> Project 1 | B12: (Select) | E12: =IF(ISERROR(IF(AND(D12="",B12<>""),C12*VLOOKUP(B12,'State Water Charges'!$A$3:$I$54,9,FALSE),D12*C12)),"-",IF(AND(D12="",B12<>""),C12*VLOOKUP(B12,'State Water Charges'!$A$3:$I$54,9,FALSE),D12*C12)) -> -
A13: =Aggregate!A9 -> Project 2 | B13: (Select) | E13: =IF(ISERROR(IF(AND(D13="",B13<>""),C13*VLOOKUP(B13,'State Water Charges'!$A$3:$I$54,9,FALSE),D13*C13)),"-",IF(AND(D13="",B13<>""),C13*VLOOKUP(B13,'State Water Charges'!$A$3:$I$54,9,FALSE),D13*C13)) -> -
A14: =Aggregate!A10 -> Project 3 | B14: (Select) | E14: =IF(ISERROR(IF(AND(D14="",B14<>""),C14*VLOOKUP(B14,'State Water Charges'!$A$3:$I$54,9,FALSE),D14*C14)),"-",IF(AND(D14="",B14<>""),C14*VLOOKUP(B14,'State Water Charges'!$A$3:$I$54,9,FALSE),D14*C14)) -> -
A15: =Aggregate!A11 -> Project 4 | B15: (Select) | E15: =IF(ISERROR(IF(AND(D15="",B15<>""),C15*VLOOKUP(B15,'State Water Charges'!$A$3:$I$54,9,FALSE),D15*C15)),"-",IF(AND(D15="",B15<>""),C15*VLOOKUP(B15,'State Water Charges'!$A$3:$I$54,9,FALSE),D15*C15)) -> -
A16: =Aggregate!A12 -> Project 5 | B16: (Select) | E16: =IF(ISERROR(IF(AND(D16="",B16<>""),C16*VLOOKUP(B16,'State Water Charges'!$A$3:$I$54,9,FALSE),D16*C16)),"-",IF(AND(D16="",B16<>""),C16*VLOOKUP(B16,'State Water Charges'!$A$3:$I$54,9,FALSE),D16*C16)) -> -
A17: =Aggregate!A13 -> Project 6 | B17: (Select) | E17: =IF(ISERROR(IF(AND(D17="",B17<>""),C17*VLOOKUP(B17,'State Water Charges'!$A$3:$I$54,9,FALSE),D17*C17)),"-",IF(AND(D17="",B17<>""),C17*VLOOKUP(B17,'State Water Charges'!$A$3:$I$54,9,FALSE),D17*C17)) -> -
A18: =Aggregate!A14 -> Project 7 | B18: (Select) | E18: =IF(ISERROR(IF(AND(D18="",B18<>""),C18*VLOOKUP(B18,'State Water Charges'!$A$3:$I$54,9,FALSE),D18*C18)),"-",IF(AND(D18="",B18<>""),C18*VLOOKUP(B18,'State Water Charges'!$A$3:$I$54,9,FALSE),D18*C18)) -> -
A19: =Aggregate!A15 -> Project 8 | B19: (Select) | E19: =IF(ISERROR(IF(AND(D19="",B19<>""),C19*VLOOKUP(B19,'State Water Charges'!$A$3:$I$54,9,FALSE),D19*C19)),"-",IF(AND(D19="",B19<>""),C19*VLOOKUP(B19,'State Water Charges'!$A$3:$I$54,9,FALSE),D19*C19)) -> -
A20: =Aggregate!A16 -> Project 9 | B20: (Select) | E20: =IF(ISERROR(IF(AND(D20="",B20<>""),C20*VLOOKUP(B20,'State Water Charges'!$A$3:$I$54,9,FALSE),D20*C20)),"-",IF(AND(D20="",B20<>""),C20*VLOOKUP(B20,'State Water Charges'!$A$3:$I$54,9,FALSE),D20*C20)) -> -
A21: =Aggregate!A17 -> Project 10 | B21: (Select) | E21: =IF(ISERROR(IF(AND(D21="",B21<>""),C21*VLOOKUP(B21,'State Water Charges'!$A$3:$I$54,9,FALSE),D21*C21)),"-",IF(AND(D21="",B21<>""),C21*VLOOKUP(B21,'State Water Charges'!$A$3:$I$54,9,FALSE),D21*C21)) -> -
A22: =Aggregate!A18 -> Project 11 | B22: (Select) | E22: =IF(ISERROR(IF(AND(D22="",B22<>""),C22*VLOOKUP(B22,'State Water Charges'!$A$3:$I$54,9,FALSE),D22*C22)),"-",IF(AND(D22="",B22<>""),C22*VLOOKUP(B22,'State Water Charges'!$A$3:$I$54,9,FALSE),D22*C22)) -> -
A24: Color Key
A25: Enter value
A26: Use drop-down menu
A27: Do not change - calculation
A29: Sources
A30: WATER USE | B30: AWWA 2014 Rate Survey. Exhibit 2. | D30: Unless getting water free from an underground source, facilities are charged twice for water -- once to receive it, and again to have the discharged water taken away and treated.

Sheet Fuel Use
B1: Fuel
B2: This tab computes cost savings from buying less fossil fuel and using less for travel. For a travel activity, please use whichever is easier for you -- vehicles miles or motor gasoline reduced (just not both).
A4: PLACE CURSOR OVER CELL FOR MORE INFORMATION → | B4: Natural Gas | G4: Vehicle Miles Reduced | J4: Motor Gasoline | M4: Diesel | P4: Biodiesel | S4: Heating Oil | V4: Jet Fuel | Y4: Air Travel | AB4: Crude Oil | AE4: Coal
A5: How to use this tab | B5: Enter the quantity and unit of natural gas reduced. Enter the unit cost or leave blank to populate with default national value. Savings are on the right. | G5: Enter the number of vehicle miles reduced. Enter the unit cost or leave blank to populate with the national default value. Savings are on the right. | J5: Enter the gallons of motor gasoline reduced. Enter the unit cost or leave blank to populate with the national default value. Savings are on the right. | M5: Enter the gallons of diesel reduced. Enter the unit cost or leave blank to populate with the national default value. Savings are on the right. | P5: Enter the gallons of biodiesel reduced. Enter the unit cost or leave blank to populate with the national default value. Savings are on the right. | S5: Enter the gallons of heating oil reduced. Enter the unit cost or leave blank to populate with the national default value.Savings are on the right. | V5: Enter the gallons of jet fuel reduced. Enter the unit cost known or leave blank to populate with the national default value. Savings are on the right. | Y5: Enter the number of flights avoided and enter the average unit cost of all flights combined. Savings are on the right. | AB5: Enter the barrels of crude oil reduced. Enter the unit cost or leave blank to populate with the national default value. Savings are on the right. | AE5: Enter the tons of coal reduced. Enter the unit cost or leave blank to populate with national default value. Savings are on the right.
A6: Calculation Description | B6: Unit quantity of natural gas reduced * unit cost (user-specified or default value) = Dollars saved. The calculator formula converts all units to therms. | G6: Miles reduced * unit cost (user-specified or default) = Dollars saved. | J6: Gallons reduced * unit cost (user-specified or default) = Dollars saved. | M6: Diesel gallons reduced * unit cost (user-specified or default) = Dollars saved. | P6: Biodiesel gallons reduced * unit cost (user-specified or default) = Dollars saved | S6: Heating oil gallons reduced * unit cost (user-specified or default) = Dollars saved. | V6: Jet fuel gallons reduced * unit cost (user-specified or default) = Dollars saved. | Y6: Number of flights avoided * average unit cost of flight (user-specified ) = Dollars saved. | AB6: Crude oil barrels reduced * unit cost (user-specified or default) = Dollars saved. | AE6: Tons of coal reduced * unit cost (user-specified or default) = Dollars saved.
A7: Default Unit Cost | B7: 0.691 | C7: /therms | G7: 0.54 | H7: /mile | J7: 2.256 | K7: /gal | M7: 2.316 | N7: /gal | P7: 2.54 | Q7: /gal | S7: 2.008 | T7: /gal | V7: 1.83 | W7: /gal | AB7: 41.02 | AC7: /barrel | AE7: 68.79 | AF7: /ton
B8: Amount of Natural Gas Reduced | C8: Unit (select) | D8: Unit Cost ($/unit selected) | E8: Therms Reduced | F8: Dollar Savings | G8: Miles Reduced | H8: Unit Cost ($/mile) | I8: Dollar Savings | J8: Reduced Gallons of Gas | K8: Unit Cost ($/gal) | L8: Dollar Savings | M8: Reduced Gallons of Diesel | N8: Unit Cost ($/gal) | O8: Dollar Savings | P8: Reduced Gallons of Biodiesel | Q8: Unit Cost ($/gal) | R8: Dollar Savings | S8: Reduced Gallons of Heating Oil | T8: Unit Cost ($/gal) | U8: Dollar Savings | V8: Reduced Gallons of Jet Fuel | W8: Unit Cost ($/gal) | X8: Dollar Savings | Y8: Flights Avoided (#) | Z8: Average Unit Cost ($/flight) | AA8: Dollar Savings | AB8: Reduced Barrels of Crude Oil | AC8: Unit Cost ($/barrel) | AD8: Dollar Savings | AE8: Reduced Tons of Coal | AF8: Unit Cost ($/ton) | AG8: Dollar Savings
A9: Example | B9: Green building reduced heat usage at two commercial buildings.
B10: 150000 | C10: therms | E10: =IF(C10="therms",B10,IF(C10="cubic feet",B10*'Conversion Factors'!$D$33/'Conversion Factors'!$D$31,IF(C10="BTU",B10/'Conversion Factors'!$D$31,0))) -> 150000 | F10: =E10*$B$7 -> 103650
A11: Totals - All Projects | E11: =SUM(E13:E23) -> 0 | F11: =SUM(F13:F23) -> 0 | G11: =SUM(G13:G23) -> 0 | I11: =SUM(I13:I23) -> 0 | J11: =SUM(J13:J23) -> 0 | L11: =SUM(L13:L23) -> 0 | M11: =SUM(M13:M23) -> 0 | O11: =SUM(O13:O23) -> 0 | P11: =SUM(P13:P23) -> 0 | R11: =SUM(R13:R23) -> 0 | S11: =SUM(S13:S23) -> 0 | U11: =SUM(U13:U23) -> 0 | V11: =SUM(V13:V23) -> 0 | X11: =SUM(X13:X23) -> 0 | Y11: =SUM(Y13:Y23) -> 0 | AA11: =SUM(AA13:AA23) -> 0 | AB11: =SUM(AB13:AB23) -> 0 | AD11: =SUM(AD13:AD23) -> 0 | AE11: =SUM(AE13:AE23) -> 0 | AG11: =SUM(AG13:AG23) -> 0
A13: =Aggregate!A8 -> Project 1 | C13: (Select) | E13: =IF(C13="therms", B13, IF( C13="cubic feet", B13*'Conversion Factors'!$D$33/'Conversion Factors'!$D$31, IF(C13="BTU", B13/'Conversion Factors'!$D$31, IF(C13="CCF", B13*'Conversion Factors'!$D$34/'Conversion Factors'!$D$31, 0)))) -> 0 | F13: =IF(D13="",E13*$B$7,B13*D13) -> 0 | I13: =IF(H13="",G13*$G$7,G13*H13) -> 0 | L13: =IF(K13="",J13*$J$7,J13*K13) -> 0 | O13: =IF(N13="",M13*$M$7,M13*N13) -> 0 | R13: =IF(Q13="", P13*$P$7, P13*Q13) -> 0 | U13: =IF(T13="",S13*$S$7,S13*T13) -> 0 | X13: =IF(W13="",V13*$V$7,V13*W13) -> 0 | AA13: =Y13*Z13 -> 0 | AD13: =IF(AC13="",AB13*$AB$7,AB13*AC13) -> 0 | AG13: =IF(AF13="",AE13*$AE$7,AE13*AF13) -> 0
A14: =Aggregate!A9 -> Project 2 | C14: (Select) | E14: =IF(C14="therms", B14, IF( C14="cubic feet", B14*'Conversion Factors'!$D$33/'Conversion Factors'!$D$31, IF(C14="BTU", B14/'Conversion Factors'!$D$31, IF(C14="CCF", B14*'Conversion Factors'!$D$34/'Conversion Factors'!$D$31, 0)))) -> 0 | F14: =IF(D14="",E14*$B$7,B14*D14) -> 0 | I14: =G14*$G$7 -> 0 | L14: =IF(K14="",J14*$J$7,J14*K14) -> 0 | O14: =IF(N14="",M14*$M$7,M14*N14) -> 0 | R14: =IF(Q14="", P14*$P$7, P14*Q14) -> 0 | U14: =IF(T14="",S14*$S$7,S14*T14) -> 0 | X14: =IF(W14="",V14*$V$7,V14*W14) -> 0 | AA14: =Y14*Z14 -> 0 | AD14: =IF(AC14="",AB14*$AB$7,AB14*AC14) -> 0 | AG14: =IF(AF14="",AE14*$AE$7,AE14*AF14) -> 0
A15: =Aggregate!A10 -> Project 3 | C15: (Select) | E15: =IF(C15="therms", B15, IF( C15="cubic feet", B15*'Conversion Factors'!$D$33/'Conversion Factors'!$D$31, IF(C15="BTU", B15/'Conversion Factors'!$D$31, IF(C15="CCF", B15*'Conversion Factors'!$D$34/'Conversion Factors'!$D$31, 0)))) -> 0 | F15: =IF(D15="",E15*$B$7,B15*D15) -> 0 | I15: 0 | L15: 0 | O15: 0 | R15: 0 | U15: 0 | X15: 0 | AA15: 0 | AD15: 0 | AG15: 0
A16: =Aggregate!A11 -> Project 4 | C16: (Select) | E16: =IF(C16="therms", B16, IF( C16="cubic feet", B16*'Conversion Factors'!$D$33/'Conversion Factors'!$D$31, IF(C16="BTU", B16/'Conversion Factors'!$D$31, IF(C16="CCF", B16*'Conversion Factors'!$D$34/'Conversion Factors'!$D$31, 0)))) -> 0 | F16: 0 | I16: 0 | L16: 0 | O16: 0 | R16: 0 | U16: 0 | X16: 0 | AA16: 0 | AD16: 0 | AG16: 0
A17: =Aggregate!A12 -> Project 5 | C17: (Select) | E17: =IF(C17="therms", B17, IF( C17="cubic feet", B17*'Conversion Factors'!$D$33/'Conversion Factors'!$D$31, IF(C17="BTU", B17/'Conversion Factors'!$D$31, IF(C17="CCF", B17*'Conversion Factors'!$D$34/'Conversion Factors'!$D$31, 0)))) -> 0 | F17: 0 | I17: 0 | L17: 0 | O17: 0 | R17: 0 | U17: 0 | X17: 0 | AA17: 0 | AD17: 0 | AG17: 0
A18: =Aggregate!A13 -> Project 6 | C18: (Select) | E18: =IF(C18="therms", B18, IF( C18="cubic feet", B18*'Conversion Factors'!$D$33/'Conversion Factors'!$D$31, IF(C18="BTU", B18/'Conversion Factors'!$D$31, IF(C18="CCF", B18*'Conversion Factors'!$D$34/'Conversion Factors'!$D$31, 0)))) -> 0 | F18: =IF(D18="",E18*$B$7,B18*D18) -> 0 | I18: 0 | L18: 0 | O18: 0 | R18: 0 | U18: 0 | X18: 0 | AA18: 0 | AD18: 0 | AG18: 0
A19: =Aggregate!A14 -> Project 7 | C19: (Select) | E19: =IF(C19="therms", B19, IF( C19="cubic feet", B19*'Conversion Factors'!$D$33/'Conversion Factors'!$D$31, IF(C19="BTU", B19/'Conversion Factors'!$D$31, IF(C19="CCF", B19*'Conversion Factors'!$D$34/'Conversion Factors'!$D$31, 0)))) -> 0 | F19: 0 | I19: 0 | L19: 0 | O19: 0 | R19: 0 | U19: 0 | X19: 0 | AA19: 0 | AD19: 0 | AG19: 0
A20: =Aggregate!A15 -> Project 8 | C20: (Select) | E20: =IF(C20="therms", B20, IF( C20="cubic feet", B20*'Conversion Factors'!$D$33/'Conversion Factors'!$D$31, IF(C20="BTU", B20/'Conversion Factors'!$D$31, IF(C20="CCF", B20*'Conversion Factors'!$D$34/'Conversion Factors'!$D$31, 0)))) -> 0 | F20: 0 | I20: 0 | L20: 0 | O20: 0 | R20: 0 | U20: 0 | X20: 0 | AA20: 0 | AD20: 0 | AG20: 0
A21: =Aggregate!A16 -> Project 9 | C21: (Select) | E21: =IF(C21="therms", B21, IF( C21="cubic feet", B21*'Conversion Factors'!$D$33/'Conversion Factors'!$D$31, IF(C21="BTU", B21/'Conversion Factors'!$D$31, IF(C21="CCF", B21*'Conversion Factors'!$D$34/'Conversion Factors'!$D$31, 0)))) -> 0 | F21: =IF(D21="",E21*$B$7,B21*D21) -> 0 | I21: 0 | L21: 0 | O21: 0 | R21: 0 | U21: 0 | X21: 0 | AA21: 0 | AD21: 0 | AG21: 0
A22: =Aggregate!A17 -> Project 10 | C22: (Select) | E22: =IF(C22="therms", B22, IF( C22="cubic feet", B22*'Conversion Factors'!$D$33/'Conversion Factors'!$D$31, IF(C22="BTU", B22/'Conversion Factors'!$D$31, IF(C22="CCF", B22*'Conversion Factors'!$D$34/'Conversion Factors'!$D$31, 0)))) -> 0 | F22: =IF(D22="",E22*$B$7,B22*D22) -> 0 | I22: 0 | L22: 0 | O22: 0 | R22: 0 | U22: 0 | X22: 0 | AA22: 0 | AD22: 0 | AG22: 0
A23: =Aggregate!A18 -> Project 11 | C23: (Select) | E23: =IF(C23="therms", B23, IF( C23="cubic feet", B23*'Conversion Factors'!$D$33/'Conversion Factors'!$D$31, IF(C23="BTU", B23/'Conversion Factors'!$D$31, IF(C23="CCF", B23*'Conversion Factors'!$D$34/'Conversion Factors'!$D$31, 0)))) -> 0 | F23: =IF(D23="",E23*$B$7,B23*D23) -> 0 | I23: =G23*$G$7 -> 0 | L23: =IF(K23="",J23*$J$7,J23*K23) -> 0 | O23: =IF(N23="",M23*$M$7,M23*N23) -> 0 | R23: =IF(Q23="", P23*$P$7, P23*Q23) -> 0 | U23: =IF(T23="",S23*$S$7,S23*T23) -> 0 | X23: =IF(W23="",V23*$V$7,V23*W23) -> 0 | AA23: =Y23*Z23 -> 0 | AD23: =IF(AC23="",AB23*$AB$7,AB23*AC23) -> 0 | AG23: =IF(AF23="",AE23*$AE$7,AE23*AF23) -> 0
A25: Color Key | C25: therms
A26: Enter value | C26: cubic feet
A27: Use drop-down menu | C27: BTU
A28: Do not change - calculation
A30: Sources
A31: NATURAL GAS | B31: Energy Information Administration (EIA), 2016
A32: VEHICLE MILES TRAVELED | B32: Internal Revenue Service (IRS), 2016
A33: MOTOR GASOLINE | B33: Energy Information Administration (EIA), 2016
A34: DIESEL | B34: Energy Information Administration (EIA), 2016
A35: BIODIESEL | B35: U.S. Department of Energy, Energy Efficiency and Renewable Energy (EERE), 2016
A36: HEATING OIL | B36: Energy Information Administration (EIA), 2016
A37: JET FUEL | B37: US Department of Transporation, Bureau of Transportation Statistics, 2016
A38: CRUDE OIL | B38: Energy Information Administration (EIA), 2016
A39: COAL | B39: Energy Information Administration (EIA), 2016

Sheet Electricity Use
B1: Electricity Use
B2: This tab computes the money saved by conserving conventional electricity. It also computes the net dollars spent buying green electricity. The Aggregate tab will reflect the net cost savings (positive or negative) calculated on this tab.
A4: Type of Activity | C4: Conserving Conventional Electricity | H4: Purchasing Green Electricity
A5: How to use this tab | C5: Enter the quantity and unit of electricity conserved. Enter the unit cost or select the state or national default value. Savings are on the right. | H5: This computes the cost trade-offs between green electricity and conventional electricity for you. Enter the quantity and unit of green electricity purchased. For unit cost, enter as a negative value (-x) the unit cost difference between conventional and green electricity for one common unit. If you don't know, leave unit cost blank. The negative cost savings will appear as dollars spent (green electricity costs more), based on the unit cost difference that you or the default provided.
A6: Calculation Description | C6: Quantity of electricity reduced (user specified units) * unit cost (user-specified or default) = Dollar savings. | H6: Quantity of electricity purchased (user specified units) * negative unit cost differential (user-specified or default) = Dollars spent.
A7: Default Unit Cost | C7: 0.1017 | D7: /kWh | H7: =-0.0175 -> -0.0175 | I7: /kWh
B8: State or U.S. (Select) | C8: Electricity Conserved Quantity | D8: Unit (select) | E8: Unit Cost ($/unit selected) | F8: kWh Reduced | G8: Dollar Savings | H8: Green Electricity Quantity | I8: Unit (select) | J8: Unit Cost Difference ($/unit selected) | K8: Green kWh Purchased | L8: Dollars Spent (negative cost savings)
A9: Example | C9: Installed energy-efficient lighting and reduced lighting and air conditioning usage at two commercial buildings. | H9: A hotel switched their electricity supply from conventional sources to solar. Their electricity rate increased by $0.04 per kWh. They use approximately 50,000 kWh of electricity per year.
B10: NC | C10: 1700000 | D10: kWh | F10: =IF(D10="kWh",C10,IF(D10="Btu",C10/'Conversion Factors'!$D$29,IF(D10="therms",C10*'Conversion Factors'!$G$31,IF(D10="Gj",C10*'Conversion Factors'!$G$30,0)))) -> 1700000 | G10: =IF( ISERROR( IF( AND(B10<>"", E10=""), F10*VLOOKUP(B10, 'State Elec. Prices & Premiums'!$B$4:$D$55, 3, FALSE), C10*E10)), "-", IF( AND(B10<>"", E10=""), F10*VLOOKUP(B10, 'State Elec. Prices & Premiums'!$B$4:$D$55, 3, FALSE), C10*E10)) -> 188190 | H10: 50000 | I10: kWh | J10: -0.04 | K10: 50000 | L10: -2000
A11: Totals - All Projects | F11: =SUM(F13:F23) -> 0 | G11: =SUM(G13:G23) -> 0 | K11: =SUM(K13:K23) -> 0 | L11: =SUM(L13:L23) -> 0
A13: =Aggregate!A8 -> Project 1 | B13: (Select) | D13: (Select) | F13: =IF(D13="kWh",C13,IF(D13="Btu",C13/'Conversion Factors'!$D$29,IF(D13="therms",C13*'Conversion Factors'!$G$31,IF(D13="Gj",C13*'Conversion Factors'!$G$30,0)))) -> 0 | G13: =IF( ISERROR( IF( AND(B13<>"", E13=""), F13*VLOOKUP(B13, 'State Elec. Prices & Premiums'!$B$4:$D$55, 3, FALSE), C13*E13)), "-", IF( AND(B13<>"", E13=""), F13*VLOOKUP(B13, 'State Elec. Prices & Premiums'!$B$4:$D$55, 3, FALSE), C13*E13)) -> - | I13: kWh | K13: =IF(I13="kWh",H13,IF(I13="Btu",H13/'Conversion Factors'!$D$29,IF(I13="therms",H13*'Conversion Factors'!$G$31,IF(I13="Gj",H13*'Conversion Factors'!$G$30,0)))) -> 0 | L13: =IF( ISERROR( IF( AND(B13<>"", J13=""), K13*-VLOOKUP(B13, 'State Elec. Prices & Premiums'!$F$4:$H$55, 3, FALSE), H13*J13)), "-", IF( AND(B13<>"", J13=""), K13*-VLOOKUP(B13, 'State Elec. Prices & Premiums'!$F$4:$H$55, 3, FALSE), H13*J13)) -> -
A14: =Aggregate!A9 -> Project 2 | B14: (Select) | D14: (Select) | F14: =IF(D14="kWh",C14,IF(D14="Btu",C14/'Conversion Factors'!$D$29,IF(D14="therms",C14*'Conversion Factors'!$G$31,IF(D14="Gj",C14*'Conversion Factors'!$G$30,0)))) -> 0 | G14: =IF( ISERROR( IF( AND(B14<>"", E14=""), F14*VLOOKUP(B14, 'State Elec. Prices & Premiums'!$B$4:$D$55, 3, FALSE), C14*E14)), "-", IF( AND(B14<>"", E14=""), F14*VLOOKUP(B14, 'State Elec. Prices & Premiums'!$B$4:$D$55, 3, FALSE), C14*E14)) -> - | I14: (Select) | K14: =IF(I14="kWh",H14,IF(I14="Btu",H14/'Conversion Factors'!$D$29,IF(I14="therms",H14*'Conversion Factors'!$G$31,IF(I14="Gj",H14*'Conversion Factors'!$G$30,0)))) -> 0 | L14: =IF( ISERROR( IF( AND(B14<>"", J14=""), K14*-VLOOKUP(B14, 'State Elec. Prices & Premiums'!$F$4:$H$55, 3, FALSE), H14*J14)), "-", IF( AND(B14<>"", J14=""), K14*-VLOOKUP(B14, 'State Elec. Prices & Premiums'!$F$4:$H$55, 3, FALSE), H14*J14)) -> -
A15: =Aggregate!A10 -> Project 3 | B15: (Select) | D15: (Select) | F15: =IF(D15="kWh",C15,IF(D15="Btu",C15/'Conversion Factors'!$D$29,IF(D15="therms",C15*'Conversion Factors'!$G$31,IF(D15="Gj",C15*'Conversion Factors'!$G$30,0)))) -> 0 | G15: =IF( ISERROR( IF( AND(B15<>"", E15=""), F15*VLOOKUP(B15, 'State Elec. Prices & Premiums'!$B$4:$D$55, 3, FALSE), C15*E15)), "-", IF( AND(B15<>"", E15=""), F15*VLOOKUP(B15, 'State Elec. Prices & Premiums'!$B$4:$D$55, 3, FALSE), C15*E15)) -> - | I15: (Select) | K15: =IF(I15="kWh",H15,IF(I15="Btu",H15/'Conversion Factors'!$D$29,IF(I15="therms",H15*'Conversion Factors'!$G$31,IF(I15="Gj",H15*'Conversion Factors'!$G$30,0)))) -> 0 | L15: =IF( ISERROR( IF( AND(B15<>"", J15=""), K15*-VLOOKUP(B15, 'State Elec. Prices & Premiums'!$F$4:$H$55, 3, FALSE), H15*J15)), "-", IF( AND(B15<>"", J15=""), K15*-VLOOKUP(B15, 'State Elec. Prices & Premiums'!$F$4:$H$55, 3, FALSE), H15*J15)) -> -
A16: =Aggregate!A11 -> Project 4 | B16: (Select) | D16: (Select) | F16: =IF(D16="kWh",C16,IF(D16="Btu",C16/'Conversion Factors'!$D$29,IF(D16="therms",C16*'Conversion Factors'!$G$31,IF(D16="Gj",C16*'Conversion Factors'!$G$30,0)))) -> 0 | G16: =IF( ISERROR( IF( AND(B16<>"", E16=""), F16*VLOOKUP(B16, 'State Elec. Prices & Premiums'!$B$4:$D$55, 3, FALSE), C16*E16)), "-", IF( AND(B16<>"", E16=""), F16*VLOOKUP(B16, 'State Elec. Prices & Premiums'!$B$4:$D$55, 3, FALSE), C16*E16)) -> - | I16: (Select) | K16: =IF(I16="kWh",H16,IF(I16="Btu",H16/'Conversion Factors'!$D$29,IF(I16="therms",H16*'Conversion Factors'!$G$31,IF(I16="Gj",H16*'Conversion Factors'!$G$30,0)))) -> 0 | L16: =IF( ISERROR( IF( AND(B16<>"", J16=""), K16*-VLOOKUP(B16, 'State Elec. Prices & Premiums'!$F$4:$H$55, 3, FALSE), H16*J16)), "-", IF( AND(B16<>"", J16=""), K16*-VLOOKUP(B16, 'State Elec. Prices & Premiums'!$F$4:$H$55, 3, FALSE), H16*J16)) -> -
A17: =Aggregate!A12 -> Project 5 | B17: (Select) | D17: (Select) | F17: =IF(D17="kWh",C17,IF(D17="Btu",C17/'Conversion Factors'!$D$29,IF(D17="therms",C17*'Conversion Factors'!$G$31,IF(D17="Gj",C17*'Conversion Factors'!$G$30,0)))) -> 0 | G17: =IF( ISERROR( IF( AND(B17<>"", E17=""), F17*VLOOKUP(B17, 'State Elec. Prices & Premiums'!$B$4:$D$55, 3, FALSE), C17*E17)), "-", IF( AND(B17<>"", E17=""), F17*VLOOKUP(B17, 'State Elec. Prices & Premiums'!$B$4:$D$55, 3, FALSE), C17*E17)) -> - | I17: (Select) | K17: =IF(I17="kWh",H17,IF(I17="Btu",H17/'Conversion Factors'!$D$29,IF(I17="therms",H17*'Conversion Factors'!$G$31,IF(I17="Gj",H17*'Conversion Factors'!$G$30,0)))) -> 0 | L17: =IF( ISERROR( IF( AND(B17<>"", J17=""), K17*-VLOOKUP(B17, 'State Elec. Prices & Premiums'!$F$4:$H$55, 3, FALSE), H17*J17)), "-", IF( AND(B17<>"", J17=""), K17*-VLOOKUP(B17, 'State Elec. Prices & Premiums'!$F$4:$H$55, 3, FALSE), H17*J17)) -> -
A18: =Aggregate!A13 -> Project 6 | B18: (Select) | D18: (Select) | F18: =IF(D18="kWh",C18,IF(D18="Btu",C18/'Conversion Factors'!$D$29,IF(D18="therms",C18*'Conversion Factors'!$G$31,IF(D18="Gj",C18*'Conversion Factors'!$G$30,0)))) -> 0 | G18: =IF( ISERROR( IF( AND(B18<>"", E18=""), F18*VLOOKUP(B18, 'State Elec. Prices & Premiums'!$B$4:$D$55, 3, FALSE), C18*E18)), "-", IF( AND(B18<>"", E18=""), F18*VLOOKUP(B18, 'State Elec. Prices & Premiums'!$B$4:$D$55, 3, FALSE), C18*E18)) -> - | I18: (Select) | K18: =IF(I18="kWh",H18,IF(I18="Btu",H18/'Conversion Factors'!$D$29,IF(I18="therms",H18*'Conversion Factors'!$G$31,IF(I18="Gj",H18*'Conversion Factors'!$G$30,0)))) -> 0 | L18: =IF( ISERROR( IF( AND(B18<>"", J18=""), K18*-VLOOKUP(B18, 'State Elec. Prices & Premiums'!$F$4:$H$55, 3, FALSE), H18*J18)), "-", IF( AND(B18<>"", J18=""), K18*-VLOOKUP(B18, 'State Elec. Prices & Premiums'!$F$4:$H$55, 3, FALSE), H18*J18)) -> -
A19: =Aggregate!A14 -> Project 7 | B19: (Select) | D19: (Select) | F19: =IF(D19="kWh",C19,IF(D19="Btu",C19/'Conversion Factors'!$D$29,IF(D19="therms",C19*'Conversion Factors'!$G$31,IF(D19="Gj",C19*'Conversion Factors'!$G$30,0)))) -> 0 | G19: =IF( ISERROR( IF( AND(B19<>"", E19=""), F19*VLOOKUP(B19, 'State Elec. Prices & Premiums'!$B$4:$D$55, 3, FALSE), C19*E19)), "-", IF( AND(B19<>"", E19=""), F19*VLOOKUP(B19, 'State Elec. Prices & Premiums'!$B$4:$D$55, 3, FALSE), C19*E19)) -> - | I19: (Select) | K19: =IF(I19="kWh",H19,IF(I19="Btu",H19/'Conversion Factors'!$D$29,IF(I19="therms",H19*'Conversion Factors'!$G$31,IF(I19="Gj",H19*'Conversion Factors'!$G$30,0)))) -> 0 | L19: =IF( ISERROR( IF( AND(B19<>"", J19=""), K19*-VLOOKUP(B19, 'State Elec. Prices & Premiums'!$F$4:$H$55, 3, FALSE), H19*J19)), "-", IF( AND(B19<>"", J19=""), K19*-VLOOKUP(B19, 'State Elec. Prices & Premiums'!$F$4:$H$55, 3, FALSE), H19*J19)) -> -
A20: =Aggregate!A15 -> Project 8 | B20: (Select) | D20: (Select) | F20: =IF(D20="kWh",C20,IF(D20="Btu",C20/'Conversion Factors'!$D$29,IF(D20="therms",C20*'Conversion Factors'!$G$31,IF(D20="Gj",C20*'Conversion Factors'!$G$30,0)))) -> 0 | G20: =IF( ISERROR( IF( AND(B20<>"", E20=""), F20*VLOOKUP(B20, 'State Elec. Prices & Premiums'!$B$4:$D$55, 3, FALSE), C20*E20)), "-", IF( AND(B20<>"", E20=""), F20*VLOOKUP(B20, 'State Elec. Prices & Premiums'!$B$4:$D$55, 3, FALSE), C20*E20)) -> - | I20: (Select) | K20: =IF(I20="kWh",H20,IF(I20="Btu",H20/'Conversion Factors'!$D$29,IF(I20="therms",H20*'Conversion Factors'!$G$31,IF(I20="Gj",H20*'Conversion Factors'!$G$30,0)))) -> 0 | L20: =IF( ISERROR( IF( AND(B20<>"", J20=""), K20*-VLOOKUP(B20, 'State Elec. Prices & Premiums'!$F$4:$H$55, 3, FALSE), H20*J20)), "-", IF( AND(B20<>"", J20=""), K20*-VLOOKUP(B20, 'State Elec. Prices & Premiums'!$F$4:$H$55, 3, FALSE), H20*J20)) -> -
A21: =Aggregate!A16 -> Project 9 | B21: (Select) | D21: (Select) | F21: =IF(D21="kWh",C21,IF(D21="Btu",C21/'Conversion Factors'!$D$29,IF(D21="therms",C21*'Conversion Factors'!$G$31,IF(D21="Gj",C21*'Conversion Factors'!$G$30,0)))) -> 0 | G21: =IF( ISERROR( IF( AND(B21<>"", E21=""), F21*VLOOKUP(B21, 'State Elec. Prices & Premiums'!$B$4:$D$55, 3, FALSE), C21*E21)), "-", IF( AND(B21<>"", E21=""), F21*VLOOKUP(B21, 'State Elec. Prices & Premiums'!$B$4:$D$55, 3, FALSE), C21*E21)) -> - | I21: (Select) | K21: =IF(I21="kWh",H21,IF(I21="Btu",H21/'Conversion Factors'!$D$29,IF(I21="therms",H21*'Conversion Factors'!$G$31,IF(I21="Gj",H21*'Conversion Factors'!$G$30,0)))) -> 0 | L21: =IF( ISERROR( IF( AND(B21<>"", J21=""), K21*-VLOOKUP(B21, 'State Elec. Prices & Premiums'!$F$4:$H$55, 3, FALSE), H21*J21)), "-", IF( AND(B21<>"", J21=""), K21*-VLOOKUP(B21, 'State Elec. Prices & Premiums'!$F$4:$H$55, 3, FALSE), H21*J21)) -> -
A22: =Aggregate!A17 -> Project 10 | B22: (Select) | D22: (Select) | F22: =IF(D22="kWh",C22,IF(D22="Btu",C22/'Conversion Factors'!$D$29,IF(D22="therms",C22*'Conversion Factors'!$G$31,IF(D22="Gj",C22*'Conversion Factors'!$G$30,0)))) -> 0 | G22: =IF( ISERROR( IF( AND(B22<>"", E22=""), F22*VLOOKUP(B22, 'State Elec. Prices & Premiums'!$B$4:$D$55, 3, FALSE), C22*E22)), "-", IF( AND(B22<>"", E22=""), F22*VLOOKUP(B22, 'State Elec. Prices & Premiums'!$B$4:$D$55, 3, FALSE), C22*E22)) -> - | I22: (Select) | K22: =IF(I22="kWh",H22,IF(I22="Btu",H22/'Conversion Factors'!$D$29,IF(I22="therms",H22*'Conversion Factors'!$G$31,IF(I22="Gj",H22*'Conversion Factors'!$G$30,0)))) -> 0 | L22: =IF( ISERROR( IF( AND(B22<>"", J22=""), K22*-VLOOKUP(B22, 'State Elec. Prices & Premiums'!$F$4:$H$55, 3, FALSE), H22*J22)), "-", IF( AND(B22<>"", J22=""), K22*-VLOOKUP(B22, 'State Elec. Prices & Premiums'!$F$4:$H$55, 3, FALSE), H22*J22)) -> -
A23: =Aggregate!A18 -> Project 11 | B23: (Select) | D23: (Select) | F23: =IF(D23="kWh",C23,IF(D23="Btu",C23/'Conversion Factors'!$D$29,IF(D23="therms",C23*'Conversion Factors'!$G$31,IF(D23="Gj",C23*'Conversion Factors'!$G$30,0)))) -> 0 | G23: =IF( ISERROR( IF( AND(B23<>"", E23=""), F23*VLOOKUP(B23, 'State Elec. Prices & Premiums'!$B$4:$D$55, 3, FALSE), C23*E23)), "-", IF( AND(B23<>"", E23=""), F23*VLOOKUP(B23, 'State Elec. Prices & Premiums'!$B$4:$D$55, 3, FALSE), C23*E23)) -> - | I23: (Select) | K23: =IF(I23="kWh",H23,IF(I23="Btu",H23/'Conversion Factors'!$D$29,IF(I23="therms",H23*'Conversion Factors'!$G$31,IF(I23="Gj",H23*'Conversion Factors'!$G$30,0)))) -> 0 | L23: =IF( ISERROR( IF( AND(B23<>"", J23=""), K23*-VLOOKUP(B23, 'State Elec. Prices & Premiums'!$F$4:$H$55, 3, FALSE), H23*J23)), "-", IF( AND(B23<>"", J23=""), K23*-VLOOKUP(B23, 'State Elec. Prices & Premiums'!$F$4:$H$55, 3, FALSE), H23*J23)) -> -
A25: Color Key
A26: Enter value
A27: Use drop-down menu
A28: Do not change - calculation
A30: Sources
A31: ELECTRICITY CONSERVATION | B31: Energy Information Administration (EIA), 2015
A32: PURCHASED GREEN ELECTRICITY | B32: Energy Efficiency and Renewable Energy (EERE), 2015

Sheet Non-Haz Inputs & Solid Wa
B1: Non-Hazardous Inputs & Solid Wastes
B2: This tab computes savings from reducing non-hazardous inputs or solid waste. Please omit these cost savings when reporting to EPA's P2 program.
A4: Type of Reduction | B4: Reducing Non-Hazardous Inputs | F4: Reducing Solid Waste
A5: How to use this tab | B5: Enter the quantity and unit of input reduced, and enter the unit cost. Savings appear on the right. | F5: Enter the quantity and unit of solid waste reduced. Enter the unit cost or leave blank to populate the national default value. Savings appear on the right.
A6: Calculation Description | B6: Quantity of input reduced * Unit Cost (user specified value) = Dollars saved. | F6: Quantity of waste reduced * Unit Cost (user-specified or default) = Dollars saved.
A7: Default Unit Cost | F7: 0.024 | G7: / lbs
F8: 0.197 | G8: / gal
B9: Reduced Inputs Quantity | C9: Unit (select) | D9: Unit Cost ($/unit selected) | E9: Dollar Savings | F9: Reduced Waste Quantity | G9: Unit (select) | H9: Unit Cost ($/unit selected) | I9: Dollar Savings
A10: Example
A12: Totals - All Projects | B12: =SUMIF(C14:C24,"lbs",B14:B24)&" lbs"&"; "&SUMIF(C14:C24,"gal",B14:B24)&" gal"&"; "&SUMIF(C14:C24,"tons",B14:B24)&" tons"&"; "&SUMIF(C14:C24,"kg",B14:B24)&" kg" -> 0 lbs; 0 gal; 0 tons; 0 kg | E12: =SUM(E14:E24) -> 0 | F12: =SUMIF(G14:G24,"lbs",F14:F24)&" lbs"&"; "&SUMIF(G14:G24,"gal",F14:F24)&" gal" -> 0 lbs; 0 gal | I12: =SUM(I14:I24) -> 0
A14: =Aggregate!A8 -> Project 1 | C14: (Select) | E14: =B14*D14 -> 0 | G14: (Select) | I14: =IF(AND(H14="",G14="lbs"),F14*$F$7,IF(AND(H14="",G14="gal"),F14*$F$8,F14*H14)) -> 0
A15: =Aggregate!A9 -> Project 2 | C15: (Select) | E15: =B15*D15 -> 0 | G15: (Select) | I15: =IF(AND(H15="",G15="lbs"),F15*$F$7,IF(AND(H15="",G15="gal"),F15*$F$8,F15*H15)) -> 0
A16: =Aggregate!A10 -> Project 3 | C16: (Select) | E16: 0 | G16: (Select) | I16: 0
A17: =Aggregate!A11 -> Project 4 | C17: (Select) | E17: 0 | G17: (Select) | I17: 0
A18: =Aggregate!A12 -> Project 5 | C18: (Select) | E18: 0 | G18: (Select) | I18: 0
A19: =Aggregate!A13 -> Project 6 | C19: (Select) | E19: 0 | G19: (Select) | I19: 0
A20: =Aggregate!A14 -> Project 7 | C20: (Select) | E20: 0 | G20: (Select) | I20: 0
A21: =Aggregate!A15 -> Project 8 | C21: (Select) | E21: 0 | G21: (Select) | I21: 0
A22: =Aggregate!A16 -> Project 9 | C22: (Select) | E22: 0 | G22: (Select) | I22: 0
A23: =Aggregate!A17 -> Project 10 | C23: (Select) | E23: 0 | G23: (Select) | I23: 0
A24: =Aggregate!A18 -> Project 11 | C24: (Select) | E24: =B24*D24 -> 0 | G24: (Select) | I24: =IF(AND(H24="",G24="lbs"),F24*$F$7,IF(AND(H24="",G24="gal"),F24*$F$8,F24*H24)) -> 0
A26: Color Key
A27: Enter value
A28: Use drop-down menu
A29: Do not change - calculation
A31: Sources
A32: NON-HAZARDOUS INPUT REDUCTION | B32: Will vary- user provides
A33: SOLID WASTE | B33: Waste Business Journal

Sheet Glossary
A1: Glossary
A2: Hazardous Inputs and Wastes
A3: Hazardous inputs are hazardous materials used as process inputs (chemical ingredients, paints, and solvents) and hazardous products applied to land (such as pesticides and nutrients applied, etc.).
A4: Hazardous wastes are those listed at the state and/or federal level as hazardous or toxic or meeting the criteria for ignitability, toxicity, corrosiveness or reactivity) Excluded: Non-hazardous waste (solid waste, construction debris, packaging, paper, glass and aluminum cans)
A5: Air Emissions
A6: “Air Emissions" are defined to include the release of any of the following: Nitrogen Oxides (NOX), Sulfur Oxides (SOX), Particulate Matter of 10 micrometers or less (PM10), Volatile Organic Compounds (VOCs), and hazardous air pollutants (HAP). Please note that this covers pollutants to air, including SOx and NOx from boilers but excludes SOx or NOx from utilities (due to cap and trade limitations). The cost for CO2 emissions are not yet assessed or available.
A7: Water Pollution
A8: Wastewater Discharges refers to waste water sent off site to a waste water treatment plant, sometimes called publicly owned treatment plants. The first cost formula is for the basic fee charged by a treatment plant for treating waste water on a per gallon basis. Currently, the cost for toxics and nutrients in water discharges is not known, therefore costs can only be calculated when the user enters a cost value.
A9: Water Use
A10: Reductions of incoming raw water from outside sources through the implementation of a P2 activity. Reductions can occur through operations, facility use and grounds maintenance.
A11: Fuel
A12: Any material that is combusted for energy, such as: Natural gas, gasoline or diesel (calculated per vehicle miles driven), other fuels (heating oil, jet fuel etc.) Electricity has its own tab to account for offsetting the higher prices often associated with purchasing electricity from a green source.
A13: Non-Hazardous Inputs and Wastes
A14: Non-hazardous inputs: Process input supplies and feedstocks that are not toxic or hazardous. Examples include packaging, building materials, aqueous cleaners, etc. Non-hazardous material input reductions will be unique to each project. Therefore, the user must input the reduction quantity as well as the total cost associated with the reduction. This information will also be included in the Aggregate Tab. Solid Wastes are those not defined as hazardous under RCRA.

Sheet Conversion Factors (hidden)
A1: Glossary & Conversions
A2: Abbreviation | E2: Meaning
B3: kwh | E3: Kilowatt hour
B4: BTU | E4: British thermal unit
B5: MBTU | E5: Thousand BTU
B6: MMBTU | E6: Million BTU
B7: tons | E7: U.S. short tons
B8: kg | E8: Kilogram
B9: lbs | E9: Pounds
B10: gal | E10: Gallon(s)
A12: Prefixes | D12: Factor
B13: Kilo | C13: = | D13: 1000
B14: Mega | C14: = | D14: 1000000
B15: Giga | C15: = | D15: 1000000000
B16: Tera | C16: = | D16: 1000000000000
A18: Useful Conversions
A19: 1 | B19: mile | C19: = | D19: 1.609 | E19: kilometers
A20: 1 | B20: lbs | C20: = | D20: 0.454 | E20: kg | F20: = | G20: =1/D23 -> 0.0005 | H20: ton
A21: 1 | B21: kg | C21: = | D21: 2.205 | E21: lbs. | F21: = | G21: =D21/D23 -> 0.0011025 | H21: ton
A22: 1 | B22: metric ton | C22: = | D22: 1000 | E22: kg | F22: = | G22: =G21*D22 -> 1.1025 | H22: ton
A23: 1 | B23: U.S. short ton | C23: = | D23: 2000 | E23: lbs. | F23: = | G23: 1 | H23: ton
A25: 1 | B25: liter | C25: = | D25: 0.2642 | E25: gallons
A26: 1 | B26: gallon | C26: = | D26: 3.7854 | E26: liters
A27: 1 | B27: barrel petroleum | C27: = | D27: 42 | E27: gallons
A29: 1 | B29: kWh | C29: = | D29: 3412 | E29: BTU | F29: = | G29: 1 | H29: kwh
A30: 1 | B30: Gj | C30: = | D30: =10^9/1055 -> 947867.2986 | E30: BTU | F30: = | G30: =D30/3412 -> 277.8040148 | H30: kwh
A31: 1 | B31: therms | C31: = | D31: =10^5 -> 100000 | E31: BTU | F31: = | G31: =D31/3412 -> 29.30832356 | H31: kwh
A32: 1 | B32: BTU | C32: = | D32: 1 | E32: BTU | F32: = | G32: =1/3412 -> 0.0002930832356 | H32: kwh
A33: 1 | B33: cubic feet | C33: = | D33: 1027 | E33: BTU
A34: 1 | B34: CCF | C34: = | D34: =1027*100 -> 102700 | E34: BTU

Sheet Reference & Justification
B1: References & Justification
B2: EPA’s P2 Program has worked closely across EPA offices and collected data from inside and outside the Agency in substantiating conversion factors/values and securing primary and supporting documentation to justify selected methodologies. In many situations, clear standardized conversions did not exist, so the Program chose from various options and underlying assumptions. Column E entitled, “Justification” provides the user with background on the data source and the reason it was selected. Complete citations as well as links to the most current websites are provided.
A6: Tab | B6: Reference | C6: Website | D6: Last Updated / Next Update | E6: Justification
A7: Hazardous Inputs | B7: User-entered data | C7: N/A | D7: N/A / NA | E7: Hazardous material input reductions will be unique to each project. Therefore, the user must input the reduction quantity as well as the total cost associated with the reduction. This information will be included in the Aggregate.
A8: Hazardous Waste | B8: 1) Hazardous Waste Resource Center, Environmental Technology Council (ETC) Survey 2) 2011 RCRA Biennial Report 3) Economics Background Document, Regulatory Impact Analysis for USEPA’s 2007 Supplemental Proposed Revisions to the Industrial Recycling Exclusions of the RCRA Definition of Solid Waste (Jan 22, 2007) 4) Mark Eads, EPA/OSW/EMRAD 5) Dept. of Defense Environmental Cost Analysis Methodology (ECAM) Handbook (Mar 29, 1999). Contact John Thoms, Concurrent Technologies Corporation, (814) 269-6805, thoms@ctc.com. | C8: ETC cost table average unit costs (per ton) for May 2004 (report no longer available on ETC website) 2011 RCRA Biennial Report at: http://www.epa.gov/wastes/inforesources/data/br11/national11.pdf Transportation Costs on pages 88-89 (report no longer available on EPA website) | D8: Varies / Varies | E8: For average costs, not specifying management method (Average HW Cost tab): An average cost for unspecified management methods was estimated using a weighted average of inflated ETC incineration and landfill costs, weighted by how prevalent each form is in the waste stream based on the Biennial Report. Transportation costs from the RIA document are also included. The estimated average cost is $0.26 per pound. Adding $1.24 ($1.00 inflated to 2016$) for typical overhead costs from the ECAM document yields a total cost of $1.50, or $12.45 per gallon (based on 8.3 lbs. per gallon). For Incineration alone (Incineration tab): Using a weighted average (by waste form) of ETC incineration costs (inflated to 2016$) ($.30), adding inflated transportation costs ($.07), and $1.24 ($1.00 inflated to 2016$) for overhead yields a cost for incineration of $.30+$.07+$1.24=$1.61/lb, or $13.36/gal (based on 8.3lbs. per gallon). For Landfill alone (Landfill tab): Using a weighted average (by waste form) of ETC landfill costs (inflated to 2016$) ($.07), adding inflated transportation costs ($.07), and $1.24 ($1.00 inflated to 2016$) yields a cost of landfilling of $.07+$.07+$1.24=$1.38/lb, or $11.45/gal (based on 8.3lbs. per gallon).
A9: Air Emissions | B9: Internal EPA survey. | C9: N/A | D9: 2008-2010 / NA | E9: This rate is an average of state rates (inflated to 2015$) from a compilation of sources provided to Abt Associates by EPA. Sources include direct phone conversations between EPA and state Environmental Protection offices, and individual states' department website documents. Data was not available for six states, thus the national average presented is compiled from 44 states and the District of Columbia only. If this data is not reflective of current conditions, please contact EPA P2 program on alternative data and sources. For more information, see the State Air Emission tab.
A10: Water Pollution | B10: AWWA 2014 Rate Survey, Exhibits 5 and 6. | C10: http://www.awwa.org/store/productdetail.aspx?productid=47556053 | D10: 2014 / biannually | E10: Water Pollution, AWWA 2014 Rate Survey, Exhibit 5. Data presented for Commercial Light Industrial Category with 2-inch meter pipe. DE, HI, MA, ND, NH, NJ, RI, VT not in survey, National Average is used. BOD/COD - AWWA 2014 Rate Survey, Exhibit 6. AK, CT, DC, DE, HI, MA, MD, ME, MN, MT, ND, NE, NH, NJ, RI, VT not in survey. National Average is used. Toxics - N/A Nutrients - N/A TSS - AWWA 2014 Rate Survey, Exhibit 6.
A11: Water Use | B11: AWWA 2014 Water & Wastewater Rate Survey, Exhibit 2 | C11: N/A | D11: 2014 / biannually | E11: AWWA 2014 Rate Survey, Exhibit 2. Data presented for Commercial Light Industrial Category with 2-inch meter pipe.
A12: Fuel Use* | B12: Natural Gas Energy Information Administration (EIA), 2016. Monthy Energy Review - 2016. "Figure 9.10: Natural Gas Prices by Sector." | C12: http://www.eia.gov/naturalgas/monthly/pdf/table_03.pdf | D12: July 2016 / monthly | E12: Natural Gas - The 2016 YTD average price per therm value is the ($6.91 per thousand cubic feet) divided by ten to get the cost per therm of $0.691 per therm.
B13: VMT Internal Revenue Service, 2016. IR-2014-114. | C13: https://www.irs.gov/uac/newsroom/2016-standard-mileage-rates-for-business-medical-and-moving-announced | D13: 2016 / annually | E13: VMT - The business mileage rate for 2016 is $0.54 per mile.
B14: Motor Gasoline Energy Information Administration (EIA), 2016. Gasoline and Diesel Fuel Update. Updated August, 2016. | C14: http://www.eia.gov/dnav/pet/pet_pri_gnd_dcus_nus_w.htm | D14: August 2016 / weekly | E14: Motor Gasoline- In the week of August 8th, 2016, the average national price of gasoline was $2.256 per gallon.
B15: Diesel Energy Information Administration (EIA), 2016. Gasoline and Diesel Fuel Update. Updated August, 2016. | C15: http://www.eia.gov/dnav/pet/pet_pri_gnd_dcus_nus_w.htm | D15: August 2016 / weekly | E15: Diesel- In the week of August 8th, 2016 average national price of diesel is reported as $2.316 per gallon.
B16: Biodiesel U.S. Department of Energy, Energy Efficiency and Renewable Energy (EERE), 2016. Clean Cities Alternative Fuel Price Report, Table 1: "Overall Average Fuel Prices." April 2016. | C16: http://www.afdc.energy.gov/uploads/publication/alternative_fuel_price_report_april_2016.pdf | D16: April 2016 / quarterly | E16: Biodiesel- The April 2016 national average biodiesel price was $2.23 per gallon for B20 biodiesel and $2.81 per gallon for B99-B100 biodiesel. The overall national average biodiesel price is $2.54 per gallon.
B17: Heating Oil Energy Information Administration (EIA), 2016. Weekly Heating Oil and Propane Prices (October - March). 2016. | C17: http://www.eia.gov/dnav/pet/pet_pri_wfr_dcus_nus_w.htm | D17: March 2016 / weekly October - March | E17: Heating Oil- In the week of March 28th, 2016, the average national price of residential heating oil was reported as $2.008 per gallon.
B18: Jet Fuel US Department of Transporation, Bureau of Transportation Statistics, 2016. "Airline Fuel Cost and Consumption (U.S. Carriers - Scheduled)." Updated June, 2016. | C18: http://www.transtats.bts.gov/fuel.asp | D18: June 2016 / monthly | E18: Jet Fuel - The June 2016 figure is $1.83 per gallon.
B19: Crude Oil Energy Information Administration (EIA). 2016. Domestic Crude Oil First Purchase Prices by Area. Updated May, 2016 | C19: http://www.eia.gov/dnav/pet/pet_pri_dfp1_k_m.htm | D19: May 2016 / monthly | E19: Crude Oil- The June 2015 US price of crude oil is reported as $41.02 per barrel.
B20: Coal Energy Information Administration (EIA), 2016. "Annual Coal Report: Updated in 2014". | C20: http://www.eia.gov/coal/annual/ | D20: 2016 / unknown | E20: Coal - The 2014 domestic price for coal used in "Other Industrial Plants" is $68.20 per ton. Inflated to 2016$, the price is $68.79 per ton.
B21: EIA. Glossary. 2016. | C21: http://www.eia.gov/tools/glossary/ | D21: 2016 / NA | E21: Fuel definitions from the EIA glossary are used in the 'Fuel Use' tab.
A22: Electricity | B22: Electricity Conservation Energy Information Administration, 2016. Electric Power Monthly, "Table 5.6.B. Average Retail Price of Electricity to Ultimate Customers by End-Use Sector, by State, Year-to-Date through May 2016 and 2015." | C22: http://www.eia.gov/electricity/monthly/ | D22: May 2016 / monthly | E22: Electricity Conservation- Used commercial end-user rates by state and national average. The national average is $0.1242 per kilowatt hour.
B23: Purchased Green Electricity U.S. Department of Energy, Energy Efficiency and Renewable Energy (EERE), 2015 Green Power Markets, Green Pricing: "Table of Utility Programs by State". | C23: http://apps3.eere.energy.gov/greenpower/markets/pricing.shtml?page=1 | D23: January 2015 / uknown | E23: Purchasing Green Electricity- Average price premiums on green electricity are given for each state. When a range of price premiums was given, the midpoint was used. When multiple price premiums were given for a state, the mean of the price premiums was used. The national average is calculated as the mean of all state price premiums. The national average price premium is 0.0185 cents per kilowatt-hour. (Calculations shown on Green Elec Premium Worksheet tab.)
A24: Non-Hazardous Inputs | B24: User-entered data | C24: N/A | D24: NA / N/A | E24: Non-hazardous material input reductions will be unique to each project. Therefore, the user must input the reduction quantity as well as the total cost associated with the reduction. This information will be included in the Aggregate.
A25: Non-Hazardous Solid Waste | B25: Waste Business Journal, "Waste Market Overview & Outlook 2012" (a pay for service). | C25: http://www.wastebusinessjournal.com/overview.htm | D25: 2016 / unknown | E25: According to the overview, this document provides the weighted nationwide average tipping fee of $44.23 per ton in 2011. Applying an inflation factor of 110.934/103.311=1.074 gives this cost in 2016$ as $47.49/ton, or $0.024/pound (based on a standard ton) and $0.197/gallon (based on 8.3 pounds per gallon).
A26: Implicit GDP Price Deflators | B26: U.S. Bureau of Economic Analysis, “Table 1.1.9. Implicit Price Deflators for Gross Domestic Product,” (accessed August 15th, 2016). | C26: http://www.bea.gov/iTable/iTable.cfm?ReqID=9&step=1#reqid=9&step=3&isuri=1&903=13 | D26: August 2016 / monthly | E26: BEA's Implicit GDP Price Deflator index was used to inflate costs to 2016$. 2016 is currently available for the 1st two quarters. The GDP index was selected as it is widely understood and broadly applicable.
A27: * All fuel data is based on national averages

Sheet State Air Emission (hidden)
B1: 1 | C1: =B1+1 -> 2 | D1: =C1+1 -> 3 | F1: =D1+1 -> 4 | H1: 1 | I1: =H1+1 -> 2 | J1: =I1+1 -> 3 | L1: =J1+1 -> 4
A2: =COLUMN() -> 1 | B2: =COLUMN() -> 2 | C2: =COLUMN() -> 3 | D2: =COLUMN() -> 4 | F2: =COLUMN() -> 6 | H2: =COLUMN() -> 8 | I2: =COLUMN() -> 9 | J2: =COLUMN() -> 10 | L2: =COLUMN() -> 12 | M2: =COLUMN() -> 13
A3: States | B3: Blocks | C3: Group | D3: Nox, Sox, PM10, VOCs | E3: Nox, SOx, PM10, VOCs (2015$/ton) | F3: Category | G3: Notes | H3: Blocks | I3: Group | J3: HAPs | K3: HAPs (2015$/ton) | L3: Category | M3: Notes | N3: Sources and Notes
A4: U.S. National | B4: U.S. National | C4: 1 | D4: 45.14 | E4: =IFERROR(D4*(109.3815/101.221), D4) -> 48.77921489 | F4: National | H4: U.S. National | I4: 1 | J4: 45.8 | K4: =IFERROR(J4*(109.3815/101.221), J4) -> 49.4924245
A5: AK | B5: =IF(OR(F5="",F5="National"),A5,A5&"_"&F5) -> AK | C5: 1 | D5: 28.57 | E5: =IFERROR(D5*(109.3815/101.221), D5) -> 30.87333118 | H5: =IF(OR($L5="",$L5="National"),$A5,$A5&"_"&$L5) -> AK | I5: 1 | J5: 28.57 | K5: =IFERROR(J5*(109.3815/101.221), J5) -> 30.87333118 | N5: "Air Permits Program Fee Rate Evaluation Report (February 25th, 2010)," Department of Environmental Conservation, Division of Air Quality (http://www.dec.state.ak.us/air/ap/fees.htm)
A6: AL | B6: AL | C6: 1 | D6: 32.5 | E6: 35.12017022 | H6: AL | I6: 1 | J6: 32.5 | K6: 35.12017022 | N6: Information received by Sarah Helinek via e-mail in January 2010 from Tim Owen, Chief, Energy Branch, Air Division, AL Department of Environmental Management (Airmail@adem.state.al.us)
A7: AR | B7: AR | C7: 1 | D7: 22.07 | E7: 23.84929713 | H7: AR | I7: 1 | J7: 22.07 | K7: 23.84929713 | N7: Information received by Sarah Helinek via e-mail in March 2010 from Thomas Rheaume, Permit Branch Manager, Arkansas Department of Environmental Quality, Air Division (RHEAUME@adeq.state.ar.us)
A8: AZ | B8: AZ | C8: 1 | D8: 36.96 | E8: 39.9397382 | H8: AZ | I8: 1 | J8: 36.96 | K8: 39.9397382 | N8: Information received by Sarah Helinek via e-mail in March 2010 from Trevor Baggiore, Air Quality Permits Section, Arizona Deparment of Environmental Quality (Baggiore.Trevor@azdeq.gov)
A9: CA | B9: CA | C9: 1 | D9: 46.64 | E9: 50.40014582 | H9: CA | I9: 1 | J9: 47.23 | K9: 51.03771199 | N9: "District Rules Database," Air Resources Board, CA Environmental Protection Agency website (http://www.arb.ca.gov/drdb/drdb.htm) (*NOTE: CA has 35 different air districts, each with unique air pollution laws and fee. Many districts did not provide Title V fee information, and of those that did, many were not up to date. Only four had sufficient/up-to-date data to report)
A10: CO | B10: CO | C10: 1 | D10: 22.9 | E10: 24.74621225 | H10: CO | I10: 1 | J10: 152.9 | K10: 165.2268931 | N10: "Air Pollution Billing and Fees Stationary Sources Program," Colorado Department of Public Health and Environment, Air Pollution Control Division (http://www.cdphe.state.co.us/ap/billing.html)
A11: CT | B11: CT | C11: 1 | D11: 229.47 | E11: 247.9700142 | H11: CT | I11: 1 | J11: 229.47 | K11: 247.9700142 | N11: Information received by Sarah Helinek via e-mail in January 2010 from Dennise Goulbourne, Fiscal Administrative Officer, Bureau of Financial & Support Services (Dennise.Goulbourne@ct.gov)
A12: DC | B12: DC | C12: 1 | D12: 43.72 | E12: 47.2447336 | H12: DC | I12: 1 | J12: 0 | K12: 0 | N12: Information received by Sarah Helinek via e-mail in January 2010 from Jessica Daniels, Environmental Protection Specialist, Government of the District of Columbia, District Department of the Environment (jessica.daniels@dc.gov)
A13: DE | B13: DE | C13: 2 | D13: U.S. National | E13: =IFERROR(D13*(115.381/110.993), D13) -> U.S. National | F13: National | G13: Determined on a case-by-case basis | H13: DE | I13: 2 | J13: U.S. National | K13: =IFERROR(J13*(115.381/110.993), J13) -> U.S. National | L13: National | M13: Determined on a case-by-case basis | N13: DE determines its air emissions fees on a complicated, case-by-case basis, and is therefore not included in the average (Based on e-mail from Amy Mann, DE Department of Natural Resources and Environmental Control, Amy.Mann@state.de.us)
A14: FL | B14: FL | C14: 1 | D14: 30 | E14: 32.41861867 | H14: FL | I14: 1 | J14: 30 | K14: 32.41861867 | N14: "Title V Annual Emissions Fee On-line Information Center," Maryland Department of Environmental Protection website (http://www.dep.state.fl.us/AIR/emission/tvfee.htm)
A15: GA | B15: GA | C15: 1 | D15: 34 | E15: 36.74110115 | H15: GA | I15: 1 | J15: 34 | K15: 36.74110115 | N15: "Procedures for Calculating Air Permit Fees," Georgia Department of Natural Resources website (http://www.gaepd.org/air/airpermit/html/aqrules/fee.htm)
A16: HI | B16: HI | C16: 1 | D16: 61.52 | E16: 66.47978068 | H16: HI | I16: 1 | J16: 0 | K16: 0 | N16: Information received by Sarah Helinek via e-mail in March 2010 from Scott Takamoto, Clean Air Branch, Hawaii Department of Health (scott.takamoto@doh.hawaii.gov)
A17: IA | B17: IA | C17: 1 | D17: 56 | E17: 60.51475484 | H17: IA | I17: 1 | J17: 56 | K17: 60.51475484 | N17: Information received by Sarah Helinek via e-mail in March 2010 from Doug Campbell, Supervisor, Operating Permits Section, Air Quality Bureau Iowa Department of Natural Resources (Doug.Campbell@dnr.iowa.gov)
A18: ID | B18: ID | C18: 1 | D18: 39.48 | E18: 42.66290216 | H18: ID | I18: 1 | J18: 0 | K18: 0 | N18: Information received by Sarah Helinek via e-mail in March 2010 from Stephen Coe, Regional Airshed Manager, Idaho Department Of Environmental Quality (Stephen.Coe@deq.idaho.gov)
A19: IL | B19: IL_<100 | C19: 3 | D19: 0 | E19: 0 | F19: <100 | H19: IL_<100 | I19: 3 | J19: 0 | K19: 0 | L19: <100 | M19: <100 | N19: "Clean Air Title V Fees," Illinois Environmental Protection Agency (http://www.epa.state.il.us/fees/clean-air-title-v.html)
A20: IL | B20: IL_>=100 | C20: 3 | D20: 18 | E20: 19.4511712 | F20: >=100 | H20: IL_>=100 | I20: 3 | J20: 18 | K20: 19.4511712 | L20: >=100 | M20: >=100 | N20: "Clean Air Title V Fees," Illinois Environmental Protection Agency (http://www.epa.state.il.us/fees/clean-air-title-v.html)
A21: IN | B21: IN | C21: 1 | D21: 41.25 | E21: 44.57560067 | H21: IN | I21: 1 | J21: 0 | K21: 0 | N21: Information received by Sarah Helinek in March 2010 via e-mail from Kristin Wiley, Correspondence Coordinator, Governor's Liaison for Indiana Department of Environmental Management (INFO@idem.in.gov)
A22: KS | B22: KS_<100 | C22: 3 | D22: 0 | E22: 0 | F22: <100 | H22: KS_<10 | I22: 3 | J22: 0 | K22: 0 | L22: <10 | M22: <10 | N22: Information received by Sarah Helinek via e-mail in March 2010 from Marian Massoth, P.E. Air Permitting Section, KDHE - Bureau of Air (MMassoth@kdheks.gov)
A23: KS | B23: KS_>=100 | C23: 3 | D23: 25 | E23: 27.01551556 | F23: >=100 | H23: KS_>=10 | I23: 3 | J23: 25 | K23: 27.01551556 | L23: >=10 | M23: >=10 | N23: Information received by Sarah Helinek via e-mail in March 2010 from Marian Massoth, P.E. Air Permitting Section, KDHE - Bureau of Air (MMassoth@kdheks.gov)
A24: KY | B24: KY | C24: 1 | D24: 48.12 | E24: 51.99946434 | H24: KY | I24: 1 | J24: 48.12 | K24: 51.99946434 | N24: "Permit Fees for Fiscal Year 2010," Kentucky Air Pollution Control District website (http://www.louisvilleky.gov/APCD/EE/Permits.htm#aCost)
A25: LA | B25: LA | C25: 2 | D25: U.S. National | E25: U.S. National | F25: National | G25: No data received | H25: LA | I25: 2 | J25: U.S. National | K25: U.S. National | L25: National | M25: No data received | N25: N/A
A26: MA | B26: MA | C26: 2 | D26: U.S. National | E26: U.S. National | F26: National | G26: No data received | H26: MA | I26: 2 | J26: U.S. National | K26: U.S. National | L26: National | M26: No data received | N26: Information N/A
A27: MD | B27: MD | C27: 1 | D27: 52.23 | E27: =IFERROR(D27*(109.3815/101.221), D27) -> 56.4408151 | H27: MD | I27: 1 | J27: 52.23 | K27: =IFERROR(J27*(109.3815/101.221), J27) -> 56.4408151 | N27: "Title V Fee Sheet," Maryland Department of the Environment website (http://www.mde.state.md.us/Permits/AirManagementPermits/Title5/title5feesheet.asp)
A28: ME | B28: ME_<1000 | C28: 3 | D28: 7.28 | E28: 7.86691813 | F28: <1000 | H28: ME_<1000 | I28: 3 | J28: 7.28 | K28: 7.86691813 | L28: <1000 | M28: <1000 | N28: "Major Source Information - Air Emissions License Revised Fee Schedule," Bureau of Air Quality, Maine Department of Environment (http://www.state.me.us/dep/air/licensing/major.htm)
A29: ME | B29: ME_1000-4000 | C29: 3 | D29: 14.59 | E29: 15.76625488 | F29: 1000-4000 | H29: ME_1000-4000 | I29: 3 | J29: 14.59 | K29: 15.76625488 | L29: 1000-4000 | M29: 1000-4,000 | N29: "Major Source Information - Air Emissions License Revised Fee Schedule," Bureau of Air Quality, Maine Department of Environment (http://www.state.me.us/dep/air/licensing/major.htm)
A30: ME | B30: ME_>=4000 | C30: 3 | D30: 21.86 | E30: 23.6223668 | F30: >=4000 | H30: ME_>=4000 | I30: 3 | J30: 21.86 | K30: 23.6223668 | L30: >=4000 | M30: >=4000 | N30: "Major Source Information - Air Emissions License Revised Fee Schedule," Bureau of Air Quality, Maine Department of Environment (http://www.state.me.us/dep/air/licensing/major.htm)
A31: MI | B31: MI | C31: 1 | D31: 45.25 | E31: 48.89808315 | H31: MI | I31: 1 | J31: 45.25 | K31: 48.89808315 | N31: "Michigan Air Quality Fees for 2010," MI Department of Natural Resources and Environment (http://www.michigan.gov/deq/0,1607,7-135-3310_4103_5784---,00.html) State Fee: $45.25/ton
A32: MN | B32: MN | C32: 1 | D32: 43.33 | E32: 46.82329156 | H32: MN | I32: 1 | J32: 43.33 | K32: 46.82329156 | N32: Information received by Sarah Helinek in March 2010 via e-mail from Michael Smith, Minnesota Pollution Control Agency Environmental Analysis and Outcomes, Air Emission Inventory Coordinator (Michael.Smith@state.mn.us)
A33: MO | B33: MO | C33: 1 | D33: 40 | E33: 43.22482489 | H33: MO | I33: 1 | J33: 40 | K33: 43.22482489 | N33: "The State of Missouri's Environment, 2009," Missouri Department of Natural Resources (http://www.dnr.mo.gov/env/apcp/index.html)
A34: MS | B34: MS | C34: 1 | D34: 36 | E34: 38.9023424 | H34: MS | I34: 1 | J34: 36 | K34: 38.9023424 | N34: "Mississippi Department on Environmental Quality Office of Pollution Control Public Notice," under Title V Fees section of Mississippi Department of Environmental Quality website (http://www.deq.state.ms.us/mdeq.nsf/page/Air_TitleVFees?OpenDocument)
A35: MT | B35: MT | C35: 1 | D35: 38.24 | E35: 41.32293259 | H35: MT | I35: 1 | J35: 0 | K35: 0 | N35: Information received by Sarah Helinek via e-mail in March 2010 from Charles Homer, MT Department of Environmental Quality (chomer@mt.gov)
A36: NC | B36: NC | C36: 1 | D36: 27.5 | E36: 29.71706711 | H36: NC | I36: 1 | J36: 27.5 | K36: 29.71706711 | N36: "Calendar Year 2010 Air Quality Fees," NC Department of Environment and Natural Resources, Division of Air Quality website; under "Permits" then under "Fees" (http://daq.state.nc.us/)
A37: ND | B37: ND | C37: 1 | D37: 13.4 | E37: 14.48031634 | H37: ND | I37: 1 | J37: 27.9 | K37: 30.14931536 | N37: Information received by Sarah Helinek via e-mail in March 2010 from Lewis Dendy, Lew Dendy, Environmental Scientist, ND Division of Air Quality (ldendy@nd.gov)
A38: NE | B38: NE | C38: 1 | D38: 62 | E38: 66.99847858 | H38: NE | I38: 1 | J38: 62 | K38: 66.99847858 | N38: "2008 Emission Inventory Fee Assessment," Nebraska Department of Environmental Quality (http://www.deq.state.ne.us/AirDivis.nsf/Pages/2006EIFA)
A39: NH | B39: NH | C39: 1 | D39: 136.15 | E39: 147.1264977 | H39: NH | I39: 1 | J39: 136.15 | K39: 147.1264977 | N39: "What Fees Are Required for an Air Permit?" New Hampshire Department of Environmental Services (http://des.nh.gov/organization/divisions/air/pehb/apps/fees.htm)
A40: NJ | B40: NJ | C40: 1 | D40: 105.12 | E40: 113.5948398 | H40: NJ | I40: 1 | J40: 105.12 | K40: 113.5948398 | N40: "Consumer Price Index Percentage Adjustments to Air Contaminant Emission Fees, and Base Fee Tables and Supplemental Fee Schedules," NJDEP Air Quality Permitting Program (http://www.nj.gov/dep/aqpp/archived/11162009NJRpage.html)
A41: NM | B41: NM | C41: 1 | D41: 23.07 | E41: 24.92991775 | H41: NM | I41: 1 | J41: 173.86 | K41: 187.8767014 | N41: "Air Quality Bureau," New Mexico Department of Environment (http://www.nmenv.state.nm.us/aqb/permit/permit_fees.htm)
A42: NV | B42: NV | C42: 1 | D42: 16 | E42: 17.28992996 | G42: **It should be noted that the majority of NV's fee revenue comes from "maintenance fees" as opposed to "emissions fees," unlike most states; for example, a Major Source with a Title V permit pays the $16.00/ton plus a $20,000 base fee | H42: NV | I42: 1 | J42: 16 | K42: 17.28992996 | M42: **It should be noted that the majority of NV's fee revenue comes from "maintenance fees" as opposed to "emissions fees," unlike most states; for example, a Major Source with a Title V permit pays the $16.00/ton plus a $20,000 base fee | N42: Information received by Sarah Helinek via e-mail in March 2010 from Patrick Anderson, Bureau of Air Pollution Control, Nevada Division of Environmental Protection (patricka@ndep.nv.gov)
A43: NY | B43: NY_<1000 | C43: 3 | D43: 45 | E43: 48.627928 | F43: <1000 | H43: NY_<1000 | I43: 3 | J43: 45 | K43: 48.627928 | L43: <1000 | M43: <1000 | N43: "Adopted Subpart 482-2, Operating Program Fees - Effective June 24, 2009,"New York State Department of Environmental Conservation (http://www.dec.ny.gov/regulations/55931.html)
A44: NY | B44: NY_1000-2000 | C44: 3 | D44: 50 | E44: 54.03103111 | F44: 1000-2000 | H44: NY_1000-2000 | I44: 3 | J44: 50 | K44: 54.03103111 | L44: 1000-2000 | M44: 1000-2000 | N44: "Adopted Subpart 482-2, Operating Program Fees - Effective June 24, 2009,"New York State Department of Environmental Conservation (http://www.dec.ny.gov/regulations/55931.html)
A45: NY | B45: NY_2000-5000 | C45: 3 | D45: 55 | E45: 59.43413422 | F45: 2000-5000 | H45: NY_2000-5000 | I45: 3 | J45: 55 | K45: 59.43413422 | L45: 2000-5000 | M45: 2000-5000 | N45: "Adopted Subpart 482-2, Operating Program Fees - Effective June 24, 2009,"New York State Department of Environmental Conservation (http://www.dec.ny.gov/regulations/55931.html)
A46: NY | B46: NY_>=5000 | C46: 3 | D46: 65 | E46: 70.24034044 | F46: >=5000 | H46: NY_>=5000 | I46: 3 | J46: 65 | K46: 70.24034044 | L46: >=5000 | M46: >=5000 | N46: "Adopted Subpart 482-2, Operating Program Fees - Effective June 24, 2009,"New York State Department of Environmental Conservation (http://www.dec.ny.gov/regulations/55931.html)
A47: OH | B47: OH | C47: 1 | D47: 43.75 | E47: 47.27715222 | H47: OH | I47: 1 | J47: 43.75 | K47: 47.27715222 | N47: "Title V General Information - Title V Emissions Fee Report Requirements," Ohio Environmental Protection Agency, Division of Air Pollution Control (http://web.epa.ohio.gov/dapc/title_v/titlev.html)
A48: OK | B48: OK | C48: 1 | D48: 34.04 | E48: 36.78432598 | H48: OK | I48: 1 | J48: 34.04 | K48: 36.78432598 | N48: Information received by Sarah Helinek via e-mail in March 2010 from Morris Moffit, Morris Moffett, Air Quality Division, OK Department of Environmental Quality (Morris.Moffett@deq.ok.gov)
A49: OR | B49: OR | C49: 1 | D49: 54.21 | E49: 58.58044393 | H49: OR | I49: 1 | J49: 54.21 | K49: 58.58044393 | N49: Information received by Sarah Helinek via e-mail in March 2010 from Andrea Curtis, Air Quality Division, Oregon Department of Environmental Equality (CURTIS.Andrea@deq.state.or.us)
A50: PA | B50: PA | C50: 1 | D50: 54 | E50: 58.3535136 | H50: PA | I50: 1 | J50: 54 | K50: 58.3535136 | N50: Information received by Sarah Helinek via e-mail in January 2010 from Douglas Malchenson, Air Quality Engineer. PA Department of Environmental Protection (dmalchenso@state.pa.us)
A51: RI | B51: RI | C51: 2 | D51: U.S. National | E51: U.S. National | F51: National | G51: No data received | H51: RI | I51: 2 | J51: U.S. National | K51: U.S. National | L51: National | M51: No data received | N51: Information N/A
A52: SC | B52: SC | C52: 1 | D52: 41.96 | E52: 45.34284131 | H52: SC | I52: 1 | J52: 41.96 | K52: 45.34284131 | N52: "Environmental Protection Fees - Fee Schedule," SC Department of Health and Environmental Control, Air Quality Division (http://www.scdhec.gov/environment/baq/fees.aspx)
A53: SD | B53: SD | C53: 2 | D53: U.S. National | E53: U.S. National | F53: National | G53: No data received | H53: SD | I53: 2 | J53: U.S. National | K53: U.S. National | L53: National | M53: No data received | N53: N/A
A54: TN | B54: TN | C54: 1 | D54: 43.75 | E54: 47.27715222 | H54: TN | I54: 1 | J54: 43.75 | K54: 47.27715222 | N54: "Title V Implementation Plan," TN Division of Air Pollution Control (http://www.tnchamber.org/environment/Draft%202008-2009%20Workload%20Analysis.pdf)
A55: TX | B55: TX | C55: 1 | D55: 44.17 | E55: 47.73101288 | H55: TX | I55: 1 | J55: 44.17 | K55: 47.73101288 | N55: "Point Source Air Emissions and Air Inspection Fees," Texas Commission on Environmental Quality (http://www.tceq.state.tx.us/implementation/air/industei/psei/air-fees.html#time)
A56: UT | B56: UT | C56: 2 | D56: U.S. National | E56: U.S. National | F56: National | G56: No data received | H56: UT | I56: 2 | J56: U.S. National | K56: U.S. National | L56: National | M56: No data received | N56: N/A
A57: VA | B57: VA | C57: 1 | D57: 44.17 | E57: 47.73101288 | H57: VA | I57: 1 | J57: 44.17 | K57: 47.73101288 | N57: Information received by Sarah Helinek via e-mail in January 2010 from Gary Graham, Regulatory Analyst, Office of Regulatory Affairs, Commonwealth of Virginia Department of Environmental Quality (Gary.Graham@deq.virginia.gov)
A58: VT | B58: VT | C58: 1 | D58: 42 | E58: 45.38606613 | H58: VT | I58: 1 | J58: 0 | K58: 0 | N58: Information received by Sarah Helinek via e-mail in January 2010 from Doug Elliot, Air Pollution Control Division, Vermont Department of Environmental Conservation (Doug.Elliott@state.vt.us)
A59: WA | B59: WA | C59: 1 | D59: 22.37 | E59: 24.17348332 | H59: WA | I59: 1 | J59: 22.37 | K59: 24.17348332 | N59: Information received by Sarah Helinek via e-mail in March 2010 from Crystal Alford, AOP Coordinator, Washington State Department of Ecology (Crystal.Alford@ecy.wa.gov)
A60: WI | B60: WI | C60: 1 | D60: 35.71 | E60: 38.58896242 | H60: WI | I60: 1 | J60: 35.71 | K60: 38.58896242 | N60: Information received by Sarah Helinek in March 2010 via e-mail from Ralph Patterson, Emission Inventory Team Leader, Emissions Inventory and Small Source Section, Bureau of Air Management, Wisconsin Department of Natural Resources (Ralph.Patterson@wiscon
A61: WV | B61: WV | C61: 1 | D61: 23.87 | E61: 25.79441425 | H61: WV | I61: 1 | J61: 23.87 | K61: 25.79441425 | N61: "West Virginia Air Quality Fees," West Virginia Department of Environmental Protection (http://www.dep.wv.gov/daq/planning/Pages/AirQualityFees.aspx)
A62: WY | B62: WY | C62: 1 | D62: 28.16 | E62: 30.43027672 | H62: WY | I62: 1 | J62: 28.16 | K62: 30.43027672 | N62: "Wyoming's Title V Operating Permit Program," Wyoming Department of Environmental Quality (http://deq.state.wy.us/aqd/TitleVOperatingPermitProgram.asp)
A63: *All costs are in $/ton | B63: *All costs are in $/ton | H63: *All costs are in $/ton

Sheet St.AirEm.Variables&Assumptions (hidden)
A2: =COLUMN() -> 1 | B2: =COLUMN() -> 2 | C2: =COLUMN() -> 3 | D2: =COLUMN() -> 4 | E2: =COLUMN() -> 5
A3: Block State | C3: Threshold (Tons)
B4: CAPs
A5: IL | B5: =COUNT(C5:E5) -> 1 | C5: 100
A6: KS | B6: =COUNT(C6:E6) -> 1 | C6: 100
A7: ME | B7: =COUNT(C7:E7) -> 2 | C7: 1000 | D7: 4000
A8: NY | B8: =COUNT(C8:E8) -> 3 | C8: 1000 | D8: 2000 | E8: 5000
B9: HAPs
A10: IL | B10: =COUNT(C10:E10) -> 1 | C10: 100
A11: KS | B11: =COUNT(C11:E11) -> 1 | C11: 10
A12: ME | B12: =COUNT(C12:E12) -> 2 | C12: 1000 | D12: 4000
A13: NY | B13: =COUNT(C13:E13) -> 3 | C13: 1000 | D13: 2000 | E13: 5000

Sheet State Water Charges (hidden)
A2: State | B2: Wastewater (2014$/gallons)* | C2: TSS(2014$/lbs)* | D2: BOD/COD (2014$/lbs)* | E2: Water (2014$/gallons)* | F2: Wastewater (2015$/gallons)* | G2: TSS(2015$/lbs)* | H2: BOD/COD (2015$/lbs)* | I2: Water (2015$/gallons)*
A3: U.S. National | B3: 0.00500184 | C3: 0.33 | D3: 0.39 | E3: 0.00451355615 | F3: =109.382/108.686*B3 -> 0.005033870626 | G3: =109.382/108.686*C3 -> 0.3321132437 | H3: =109.382/108.686*D3 -> 0.3924974698 | I3: =109.382/108.686*E3 -> 0.004542459919
A4: AK | B4: 0.006687636888 | C4: 0.33 | D4: 0.39 | E4: 0.005299545455 | F4: =109.382/108.686*B4 -> 0.006730462967 | G4: 0.3321132437 | H4: 0.3924974698 | I4: 0.005333482518
A5: AL | B5: 0.004653102786 | C5: 0.25 | D5: 0.265 | E5: 0.002687684492 | F5: 0.00468290018 | G5: 0.2516009422 | H5: 0.2666969987 | I5: 0.002704895802
A6: AR | B6: 0.005220230548 | C6: 0.1295 | D6: 0.1345 | E6: 0.00139447861 | F6: 0.005253659696 | G6: 0.130329288 | H6: 0.1353613069 | I6: 0.001403408528
A7: AZ | B7: 0.003363487032 | C7: 0.26 | D7: 0.26 | E7: 0.003645305577 | F7: 0.003385026025 | G7: 0.2616649799 | H7: 0.2616649799 | I7: 0.00366864927
A8: CA | B8: 0.002185909811 | C8: 0.5083333333 | D8: 0.3440477366 | E8: 0.003551015406 | F8: 0.002199907872 | G8: 0.5115885824 | H8: 0.3462509387 | I8: 0.003573755287
A9: CO | B9: 0.00374271854 | C9: 0.31548 | D9: 0.446625 | E9: 0.003551015406 | F9: 0.003766686044 | G9: 0.3175002609 | H9: 0.4494850832 | I9: 0.003573755287
A10: CT | B10: 0.003285158501 | C10: 0.33 | D10: 0.39 | E10: 0.001679010695 | F10: 0.003306195896 | G10: 0.3321132437 | H10: 0.3924974698 | I10: 0.001689762691
A11: DC | B11: 0.006354466859 | C11: 0.33 | D11: 0.39 | E11: 0.004846363636 | F11: 0.006395159394 | G11: 0.3321132437 | H11: 0.3924974698 | I11: 0.004877398628
A12: DE | B12: 0.00500184 | C12: 0.33 | D12: 0.39 | E12: 0.00451355615 | F12: 0.005033870626 | G12: 0.3321132437 | H12: 0.3924974698 | I12: 0.004542459919
A13: FL | B13: 0.005921582133 | C13: 0.50776125 | D13: 0.9115185714 | E13: 0.003910228546 | F13: 0.005959502575 | G13: 0.5110128356 | H13: 0.9173557255 | I13: 0.003935268745
A14: GA | B14: 0.00459945879 | C14: 0.378 | D14: 0.474 | E14: 0.004314322638 | F14: 0.00462891266 | G14: 0.3804206246 | H14: 0.4770353863 | I14: 0.004341950562
A15: HI | B15: 0.00500184 | C15: 0.33 | D15: 0.39 | E15: 0.00451355615 | F15: 0.005033870626 | G15: 0.3321132437 | H15: 0.3924974698 | I15: 0.004542459919
A16: IA | B16: 0.003499827089 | C16: 0.56 | D16: 0.53 | E16: 0.00252771836 | F16: 0.003522239172 | G16: 0.5635861104 | H16: 0.5333939974 | I16: 0.002543905284
A17: ID | B17: 0.003322708934 | C17: 0.26 | D17: 0.21 | E17: 0.001703877005 | F17: 0.003343986793 | G17: 0.2616649799 | H17: 0.2113447914 | I17: 0.00171478824
A18: IL | B18: 0.003167585655 | C18: 0.25432 | D18: 0.24522 | E18: 0.003331438345 | F18: 0.003187870141 | G18: 0.2559486064 | H18: 0.2467903321 | I18: 0.003352772106
A19: IN | B19: 0.004685782901 | C19: 0.1018666667 | D19: 0.3194666667 | E19: 0.00268026738 | F19: 0.004715789571 | G19: 0.1025189972 | H19: 0.3215124573 | I19: 0.002697431192
A20: KS | B20: 0.004929118156 | C20: 0.188184548 | D20: 0.30961138 | E20: 0.003038177362 | F20: 0.004960683088 | G20: 0.1893896383 | H20: 0.3115940597 | I20: 0.003057633147
A21: KY | B21: 0.007039012968 | C21: 0.214 | D21: 0.18 | E21: 0.003196705882 | F21: 0.007084089179 | G21: 0.2153704065 | H21: 0.1811526784 | I21: 0.003217176847
A22: LA | B22: 0.005499308357 | C22: 0.1435 | D22: 0.277 | E22: 0.003008549465 | F22: 0.005534524656 | G22: 0.1444189408 | H22: 0.2787738439 | I22: 0.00302781552
A23: MA | B23: 0.00500184 | C23: 0.33 | D23: 0.39 | E23: 0.004128342246 | F23: 0.005033870626 | G23: 0.3321132437 | H23: 0.3924974698 | I23: 0.004154779195
A24: MD | B24: 0.006193940922 | C24: 0.28 | D24: 0.39 | E24: 0.003695086898 | F24: 0.006233605487 | G24: 0.2817930552 | H24: 0.3924974698 | I24: 0.00371874938
A25: ME | B25: 0.009154884726 | C25: 0.33 | D25: 0.39 | E25: 0.001253101604 | F25: 0.00921351049 | G25: 0.3321132437 | H25: 0.3924974698 | I25: 0.001261126177
A26: MI | B26: 0.004724185879 | C26: 0.313 | D26: 0.448 | E26: 0.002387349121 | F26: 0.004754438472 | G26: 0.3150043796 | H26: 0.4508688884 | I26: 0.002402637153
A27: MN | B27: 0.001990706052 | C27: 0.33 | D27: 0.39 | E27: 0.001536971925 | F27: 0.002003454073 | G27: 0.3321132437 | H27: 0.3924974698 | I27: 0.001546814338
A28: MO | B28: 0.002114034582 | C28: 0.17 | D28: 0.2793333333 | E28: 0.003612299465 | F28: 0.002127572371 | G28: 0.1710886407 | H28: 0.2811221194 | I28: 0.003635431795
A29: MS | B29: 0.000658443804 | C29: 0.116 | D29: 0.132 | E29: 0.004598074866 | F29: 0.0006626603258 | G29: 0.1167428372 | H29: 0.1328452975 | I29: 0.004627519874
A30: MT | B30: 0.005173544669 | C30: 0.33 | D30: 0.39 | E30: 0.002460080214 | F30: 0.005206674852 | G30: 0.3321132437 | H30: 0.3924974698 | I30: 0.002475833998
A31: NC | B31: 0.005755271374 | C31: 0.210157 | D31: 0.342201 | E31: 0.003773464477 | F31: 0.0057921268 | G31: 0.2115027968 | H31: 0.344392376 | I31: 0.00379762887
A32: ND | B32: 0.00500184 | C32: 0.33 | D32: 0.39 | E32: 0.00451355615 | F32: 0.005033870626 | G32: 0.3321132437 | H32: 0.3924974698 | I32: 0.004542459919
A33: NE | B33: 0.002315216138 | C33: 0.33 | D33: 0.39 | E33: 0.001422816399 | F33: 0.002330042247 | G33: 0.3321132437 | H33: 0.3924974698 | I33: 0.001431927786
A34: NH | B34: 0.00500184 | C34: 0.33 | D34: 0.39 | E34: 0.00451355615 | F34: 0.005033870626 | G34: 0.3321132437 | H34: 0.3924974698 | I34: 0.004542459919
A35: NJ | B35: 0.00500184 | C35: 0.33 | D35: 0.39 | E35: 0.00451355615 | F35: 0.005033870626 | G35: 0.3321132437 | H35: 0.3924974698 | I35: =109.382/108.686*E35 -> 0.004542459919
A36: NM | B36: 0.003385648415 | C36: 0.315 | D36: 0.26 | E36: 0.003237716578 | F36: 0.003407329324 | G36: 0.3170171871 | H36: 0.2616649799 | I36: 0.003258450165
A37: NV | B37: 0.002558741595 | C37: 0.185 | D37: 0.21 | E37: 0.002386871658 | F37: 0.002575127184 | G37: 0.1861846972 | H37: 0.2113447914 | I37: 0.002402156632
A38: NY | B38: 0.004469783862 | C38: 0.1666 | D38: 0.1226 | E38: 0.002295365419 | F38: 0.004498407323 | G38: 0.1676668679 | H38: 0.123385102 | I38: 0.002310064408
A39: OH | B39: 0.006631025937 | C39: 0.3833333333 | D39: 0.3666666667 | E39: 0.004359411765 | F39: 0.006673489493 | G39: 0.3857881113 | H39: 0.3690147152 | I39: 0.004387328429
A40: OK | B40: 0.005571412104 | C40: 0.448 | D40: 0.4702 | E40: 0.00269868984 | F40: 0.005607090138 | G40: 0.4508688884 | H40: 0.473211052 | I40: 0.002715971625
A41: OR | B41: 0.006233914505 | C41: 0.9245 | D41: 0.7135 | E41: 0.002175080808 | F41: 0.006273835052 | G41: 0.9304202841 | H41: 0.7180690889 | I41: 0.002189009522
A42: PA | B42: 0.004510975024 | C42: 0.186 | D42: 0.2856666667 | E42: 0.00399171123 | F42: 0.004539862264 | G42: 0.187191101 | H42: 0.2874960099 | I42: 0.004017273225
A43: RI | B43: 0.00500184 | C43: 0.33 | D43: 0.39 | E43: 0.002079625668 | F43: 0.005033870626 | G43: 0.3321132437 | H43: 0.3924974698 | I43: 0.00209294311
A44: SC | B44: 0.006016620008 | C44: 0.275 | D44: 0.3125 | E44: 0.003214438503 | F44: 0.006055149051 | G44: 0.2767610364 | H44: 0.3145011777 | I44: 0.003235023023
A45: SD | B45: 0.005851642651 | C45: 0.2429 | D45: 0.2429 | E45: 0.004113582888 | F45: 0.005889115217 | G45: 0.2444554754 | H45: 0.2444554754 | I45: 0.004139925321
A46: TN | B46: 0.006320256746 | C46: 0.55 | D46: 0.4676 | E46: 0.003514409855 | F46: 0.006360730208 | G46: 0.5535220728 | H46: 0.4705944022 | I46: 0.003536915323
A47: TX | B47: 0.003702795115 | C47: 1.05984 | D47: 0.52285625 | E47: 0.004155734439 | F47: 0.003726506958 | G47: 1.06662697 | H47: 0.5262045005 | I47: 0.0041823468
A48: UT | B48: 0.003948126801 | C48: 0.33 | D48: 0.3194 | E48: 0.001202326203 | F48: 0.003973409692 | G48: 0.3321132437 | H48: 0.3214453637 | I48: 0.001210025622
A49: VA | B49: 0.005184538905 | C49: 0.3 | D49: 0.2565 | E49: 0.00436777852 | F49: 0.005217739493 | G49: 0.3019211306 | H49: 0.2581425667 | I49: 0.004395748764
A50: VT | B50: 0.00500184 | C50: 0.33 | D50: 0.39 | E50: 0.00451355615 | F50: 0.005033870626 | G50: 0.3321132437 | H50: 0.3924974698 | I50: 0.004542459919
A51: WA | B51: 0.006898460272 | C51: 0.33 | D51: 0.42 | E51: 0.002676673797 | F51: 0.006942636415 | G51: 0.3321132437 | H51: 0.4226895828 | I51: 0.002693814597
A52: WI | B52: 0.003690190202 | C52: 0.4041666667 | D52: 1.346475 | E52: 0.002676673797 | F52: 0.003713821326 | G52: 0.4067548565 | H52: 1.355097514 | I52: 0.002693814597
A53: WV | B53: 0.01947992795 | C53: 0.33 | D53: 0.56 | E53: 0.002744973262 | F53: 0.01960467291 | G53: 0.3321132437 | H53: 0.5635861104 | I53: 0.002762551436
A54: WY | B54: 0.004238847262 | C54: 0.33 | D54: 0.45 | E54: 0.004174786096 | F54: 0.004265991859 | G54: 0.3321132437 | H54: 0.4528816959 | I54: 0.004201520461
B55: *Values are calculated as the average rate charged by utilities in the state.
B56: Note: States with missing data are assigned the national average, signified in bold italics.

Sheet Average HW Cost (hidden)
B2: Computation of average cost for RCRA industrial hazardous waste disposal:
G4: Wtd avg | H4: 2005 BRS tons*
C5: A. | F5: Incineration price (per ton) = | G5: =(Incineration!J256) -> 623.4112117 | H5: 1437996
C6: B. | F6: Landfill price (per ton) = | G6: =(Landfill!J200) -> 163.7504367 | H6: 2037543
F7: Tonnage weighted average price = | G7: =ROUND(SUMPRODUCT(G5:G6,H5:H6)/SUM(H5:H6), 0) -> 354
G8: ="$"&G7&"/ton - weighted by physical form and incin/landfill proportion" -> $354/ton - weighted by physical form and incin/landfill proportion
G9: =G7/2200 -> 0.1609090909 | H9: per pound
G10: =G9+(0.06*1.192) -> 0.2324290909 | H10: including transportation
C11: Notes:
C12: A. Incineration price calculated on the Incineration tab
C13: B. Landfill price calculated on the Landfill tab
C14: * Source: Exhibit 2.5 of 2005 RCRA National Biennial Report
C15: See Reference tab for more information

Sheet Incineration (hidden)
B4: Incineration Cost
B5: 1993 BRS | C5: BRS treatment | D5: BRS
B6: wastestream | C6: code for | D6: physical | F6: 1993 tons
B7: count | C7: incineration | D7: form code | E7: Physical form code description | F7: incinerated | G7: <Tons based on OSW's 1996 NHWCS survey
B8: 1 | C8: M043 | D8: B001 | E8: Lab packs | F8: 13.1
B9: 2 | C9: M041 | D9: B101 | E9: Non-halogen liquids (inorganic liquids) | F9: 132.2
B10: 3 | C10: M041 | D10: B101 | E10: Non-halogen liquids (inorganic liquids) | F10: 553.5
B11: 4 | C11: M041 | D11: B101 | E11: Non-halogen liquids (inorganic liquids) | F11: 40989
B12: 5 | C12: M041 | D12: B101 | E12: Non-halogen liquids (inorganic liquids) | F12: 140006
B13: 6 | C13: M041 | D13: B101 | E13: Non-halogen liquids (inorganic liquids) | F13: 200937
B14: 7 | C14: M041 | D14: B102 | E14: Non-halogen liquids (inorganic liquids) | F14: 516.1
B15: 8 | C15: M041 | D15: B102 | E15: Non-halogen liquids (inorganic liquids) | F15: 782.6
B16: 9 | C16: M041 | D16: B102 | E16: Non-halogen liquids (inorganic liquids) | F16: 1058.4
B17: 10 | C17: M041 | D17: B102 | E17: Non-halogen liquids (inorganic liquids) | F17: 2601.6
B18: 11 | C18: M041 | D18: B102 | E18: Non-halogen liquids (inorganic liquids) | F18: 2807.7
B19: 12 | C19: M041 | D19: B102 | E19: Non-halogen liquids (inorganic liquids) | F19: 7818
B20: 13 | C20: M041 | D20: B102 | E20: Non-halogen liquids (inorganic liquids) | F20: 49077
B21: 14 | C21: M041 | D21: B102 | E21: Non-halogen liquids (inorganic liquids) | F21: 76709
B22: 15 | C22: M041 | D22: B105 | E22: Non-halogen liquids (inorganic liquids) | F22: 67194
B23: 16 | C23: M041 | D23: B105 | E23: Non-halogen liquids (inorganic liquids) | F23: 964109
B24: 17 | C24: M041 | D24: B119 | E24: Non-halogen liquids (inorganic liquids) | F24: 1512
B25: 18 | C25: M041 | D25: B201 | E25: Non-halogen liquids (organic liquids) | F25: 78
B26: 19 | C26: M041 | D26: B201 | E26: Non-halogen liquids (organic liquids) | F26: 267.2
B27: 20 | C27: M041 | D27: B201 | E27: Non-halogen liquids (organic liquids) | F27: 412.1
B28: 21 | C28: M041 | D28: B201 | E28: Non-halogen liquids (organic liquids) | F28: 461.5
B29: 22 | C29: M041 | D29: B201 | E29: Non-halogen liquids (organic liquids) | F29: 493.6
B30: 23 | C30: M041 | D30: B201 | E30: Non-halogen liquids (organic liquids) | F30: 551.6
B31: 24 | C31: M041 | D31: B201 | E31: Non-halogen liquids (organic liquids) | F31: 577.1
B32: 25 | C32: M041 | D32: B201 | E32: Non-halogen liquids (organic liquids) | F32: 668.3
B33: 26 | C33: M041 | D33: B201 | E33: Non-halogen liquids (organic liquids) | F33: 999.8
B34: 27 | C34: M041 | D34: B201 | E34: Non-halogen liquids (organic liquids) | F34: 1180
B35: 28 | C35: M041 | D35: B201 | E35: Non-halogen liquids (organic liquids) | F35: 1271.8
B36: 29 | C36: M041 | D36: B201 | E36: Non-halogen liquids (organic liquids) | F36: 1595
B37: 30 | C37: M041 | D37: B201 | E37: Non-halogen liquids (organic liquids) | F37: 1605.9
B38: 31 | C38: M041 | D38: B201 | E38: Non-halogen liquids (organic liquids) | F38: 1684.9
B39: 32 | C39: M041 | D39: B201 | E39: Non-halogen liquids (organic liquids) | F39: 1826.5
B40: 33 | C40: M041 | D40: B201 | E40: Non-halogen liquids (organic liquids) | F40: 3955
B41: 34 | C41: M041 | D41: B202 | E41: Organic liquids: halogenated | F41: 35.8
B42: 35 | C42: M041 | D42: B202 | E42: Organic liquids: halogenated | F42: 182.9
B43: 36 | C43: M041 | D43: B202 | E43: Organic liquids: halogenated | F43: 600.4
B44: 37 | C44: M041 | D44: B202 | E44: Organic liquids: halogenated | F44: 688
B45: 38 | C45: M041 | D45: B202 | E45: Organic liquids: halogenated | F45: 998
B46: 39 | C46: M041 | D46: B202 | E46: Organic liquids: halogenated | F46: 1034.2
B47: 40 | C47: M041 | D47: B202 | E47: Organic liquids: halogenated | F47: 1090.7
B48: 41 | C48: M041 | D48: B202 | E48: Organic liquids: halogenated | F48: 1236
B49: 42 | C49: M041 | D49: B202 | E49: Organic liquids: halogenated | F49: 3059
B50: 43 | C50: M041 | D50: B202 | E50: Organic liquids: halogenated | F50: 3421
B51: 44 | C51: M041 | D51: B202 | E51: Organic liquids: halogenated | F51: 8489
B52: 45 | C52: M041 | D52: B203 | E52: Non-halogen liquids (organic liquids) | F52: 25.4
B53: 46 | C53: M041 | D53: B203 | E53: Non-halogen liquids (organic liquids) | F53: 25.8
B54: 47 | C54: M041 | D54: B203 | E54: Non-halogen liquids (organic liquids) | F54: 425.1
B55: 48 | C55: M041 | D55: B203 | E55: Non-halogen liquids (organic liquids) | F55: 439.7
B56: 49 | C56: M041 | D56: B203 | E56: Non-halogen liquids (organic liquids) | F56: 455.5
B57: 50 | C57: M041 | D57: B203 | E57: Non-halogen liquids (organic liquids) | F57: 461.6
B58: 51 | C58: M041 | D58: B203 | E58: Non-halogen liquids (organic liquids) | F58: 465.6
B59: 52 | C59: M041 | D59: B203 | E59: Non-halogen liquids (organic liquids) | F59: 471.1
B60: 53 | C60: M041 | D60: B203 | E60: Non-halogen liquids (organic liquids) | F60: 487.7
B61: 54 | C61: M041 | D61: B203 | E61: Non-halogen liquids (organic liquids) | F61: 581.1
B62: 55 | C62: M041 | D62: B203 | E62: Non-halogen liquids (organic liquids) | F62: 605.6
B63: 56 | C63: M041 | D63: B203 | E63: Non-halogen liquids (organic liquids) | F63: 689.5
B64: 57 | C64: M041 | D64: B203 | E64: Non-halogen liquids (organic liquids) | F64: 891.3
B65: 58 | C65: M041 | D65: B203 | E65: Non-halogen liquids (organic liquids) | F65: 903.5
B66: 59 | C66: M041 | D66: B203 | E66: Non-halogen liquids (organic liquids) | F66: 906
B67: 60 | C67: M041 | D67: B203 | E67: Non-halogen liquids (organic liquids) | F67: 908.8
B68: 61 | C68: M041 | D68: B203 | E68: Non-halogen liquids (organic liquids) | F68: 909.7
B69: 62 | C69: M041 | D69: B203 | E69: Non-halogen liquids (organic liquids) | F69: 1065.5
B70: 63 | C70: M041 | D70: B203 | E70: Non-halogen liquids (organic liquids) | F70: 1087
B71: 64 | C71: M041 | D71: B203 | E71: Non-halogen liquids (organic liquids) | F71: 1152.5
B72: 65 | C72: M041 | D72: B203 | E72: Non-halogen liquids (organic liquids) | F72: 1176.3
B73: 66 | C73: M041 | D73: B203 | E73: Non-halogen liquids (organic liquids) | F73: 2092
B74: 67 | C74: M041 | D74: B203 | E74: Non-halogen liquids (organic liquids) | F74: 2245.5
B75: 68 | C75: M041 | D75: B203 | E75: Non-halogen liquids (organic liquids) | F75: 2289.1
B76: 69 | C76: M041 | D76: B203 | E76: Non-halogen liquids (organic liquids) | F76: 2617.4
B77: 70 | C77: M041 | D77: B203 | E77: Non-halogen liquids (organic liquids) | F77: 2845.7
B78: 71 | C78: M041 | D78: B203 | E78: Non-halogen liquids (organic liquids) | F78: 2942
B79: 72 | C79: M041 | D79: B203 | E79: Non-halogen liquids (organic liquids) | F79: 4633.4
B80: 73 | C80: M041 | D80: B204 | E80: Organic liquids: halogenated | F80: 21.2
B81: 74 | C81: M041 | D81: B204 | E81: Organic liquids: halogenated | F81: 198.4
B82: 75 | C82: M041 | D82: B204 | E82: Organic liquids: halogenated | F82: 243.8
B83: 76 | C83: M041 | D83: B204 | E83: Organic liquids: halogenated | F83: 376.8
B84: 77 | C84: M041 | D84: B204 | E84: Organic liquids: halogenated | F84: 400.9
B85: 78 | C85: M041 | D85: B204 | E85: Organic liquids: halogenated | F85: 418.8
B86: 79 | C86: M041 | D86: B204 | E86: Organic liquids: halogenated | F86: 432.3
B87: 80 | C87: M041 | D87: B204 | E87: Organic liquids: halogenated | F87: 453.6
B88: 81 | C88: M041 | D88: B204 | E88: Organic liquids: halogenated | F88: 483.3
B89: 82 | C89: M041 | D89: B204 | E89: Organic liquids: halogenated | F89: 544.1
B90: 83 | C90: M041 | D90: B204 | E90: Organic liquids: halogenated | F90: 643.3
B91: 84 | C91: M041 | D91: B204 | E91: Organic liquids: halogenated | F91: 651.3
B92: 85 | C92: M041 | D92: B204 | E92: Organic liquids: halogenated | F92: 674.2
B93: 86 | C93: M041 | D93: B204 | E93: Organic liquids: halogenated | F93: 692.6
B94: 87 | C94: M041 | D94: B204 | E94: Organic liquids: halogenated | F94: 774.1
B95: 88 | C95: M041 | D95: B204 | E95: Organic liquids: halogenated | F95: 1001
B96: 89 | C96: M041 | D96: B204 | E96: Organic liquids: halogenated | F96: 1089.2
B97: 90 | C97: M041 | D97: B204 | E97: Organic liquids: halogenated | F97: 1111.5
B98: 91 | C98: M041 | D98: B204 | E98: Organic liquids: halogenated | F98: 1263.4
B99: 92 | C99: M041 | D99: B204 | E99: Organic liquids: halogenated | F99: 1705.1
B100: 93 | C100: M041 | D100: B204 | E100: Organic liquids: halogenated | F100: 1759
B101: 94 | C101: M041 | D101: B204 | E101: Organic liquids: halogenated | F101: 1918.2
B102: 95 | C102: M041 | D102: B204 | E102: Organic liquids: halogenated | F102: 1975
B103: 96 | C103: M041 | D103: B204 | E103: Organic liquids: halogenated | F103: 2178
B104: 97 | C104: M041 | D104: B204 | E104: Organic liquids: halogenated | F104: 2180.1
B105: 98 | C105: M041 | D105: B204 | E105: Organic liquids: halogenated | F105: 2274.4
B106: 99 | C106: M041 | D106: B204 | E106: Organic liquids: halogenated | F106: 2291.4
B107: 100 | C107: M041 | D107: B204 | E107: Organic liquids: halogenated | F107: 2903
B108: 101 | C108: M041 | D108: B204 | E108: Organic liquids: halogenated | F108: 3945.9
B109: 102 | C109: M041 | D109: B204 | E109: Organic liquids: halogenated | F109: 4165.8
B110: 103 | C110: M041 | D110: B204 | E110: Organic liquids: halogenated | F110: 5915
B111: 104 | C111: M041 | D111: B204 | E111: Organic liquids: halogenated | F111: 6394.1
B112: 105 | C112: M041 | D112: B204 | E112: Organic liquids: halogenated | F112: 7720
B113: 106 | C113: M041 | D113: B204 | E113: Organic liquids: halogenated | F113: 8286.2
B114: 107 | C114: M041 | D114: B204 | E114: Organic liquids: halogenated | F114: 8779.3
B115: 108 | C115: M041 | D115: B204 | E115: Organic liquids: halogenated | F115: 9220.6
B116: 109 | C116: M043 | D116: B204 | E116: Organic liquids: halogenated | F116: 10.6
B117: 110 | C117: M043 | D117: B204 | E117: Organic liquids: halogenated | F117: 933.1
B118: 111 | C118: M041 | D118: B205 | E118: Non-halogen liquids (organic liquids) | F118: 21.1
B119: 112 | C119: M041 | D119: B205 | E119: Non-halogen liquids (organic liquids) | F119: 479
B120: 113 | C120: M041 | D120: B206 | E120: Non-halogen liquids (organic liquids) | F120: 634.3
B121: 114 | C121: M041 | D121: B206 | E121: Non-halogen liquids (organic liquids) | F121: 783.7
B122: 115 | C122: M041 | D122: B206 | E122: Non-halogen liquids (organic liquids) | F122: 9181
B123: 116 | C123: M041 | D123: B207 | E123: Non-halogen liquids (organic liquids) | F123: 429
B124: 117 | C124: M041 | D124: B207 | E124: Non-halogen liquids (organic liquids) | F124: 550.8
B125: 118 | C125: M041 | D125: B207 | E125: Non-halogen liquids (organic liquids) | F125: 638
B126: 119 | C126: M041 | D126: B207 | E126: Non-halogen liquids (organic liquids) | F126: 758
B127: 120 | C127: M041 | D127: B207 | E127: Non-halogen liquids (organic liquids) | F127: 857.3
B128: 121 | C128: M041 | D128: B207 | E128: Non-halogen liquids (organic liquids) | F128: 910.8
B129: 122 | C129: M041 | D129: B207 | E129: Non-halogen liquids (organic liquids) | F129: 1220.2
B130: 123 | C130: M041 | D130: B207 | E130: Non-halogen liquids (organic liquids) | F130: 1699.9
B131: 124 | C131: M041 | D131: B207 | E131: Non-halogen liquids (organic liquids) | F131: 2370.9
B132: 125 | C132: M041 | D132: B207 | E132: Non-halogen liquids (organic liquids) | F132: 3455.3
B133: 126 | C133: M041 | D133: B207 | E133: Non-halogen liquids (organic liquids) | F133: 5788.2
B134: 127 | C134: M041 | D134: B207 | E134: Non-halogen liquids (organic liquids) | F134: 9155
B135: 128 | C135: M041 | D135: B208 | E135: Non-halogen liquids (organic liquids) | F135: 458.1
B136: 129 | C136: M041 | D136: B208 | E136: Non-halogen liquids (organic liquids) | F136: 1195
B137: 130 | C137: M041 | D137: B208 | E137: Non-halogen liquids (organic liquids) | F137: 2105.7
B138: 131 | C138: M043 | D138: B209 | E138: Non-halogen liquids (organic liquids) | F138: 2.8
B139: 132 | C139: M041 | D139: B210 | E139: Non-halogen liquids (organic liquids) | F139: 1087.5
B140: 133 | C140: M041 | D140: B212 | E140: Non-halogen liquids (organic liquids) | F140: 375.1
B141: 134 | C141: M041 | D141: B212 | E141: Non-halogen liquids (organic liquids) | F141: 396.3
B142: 135 | C142: M041 | D142: B212 | E142: Non-halogen liquids (organic liquids) | F142: 501.5
B143: 136 | C143: M041 | D143: B212 | E143: Non-halogen liquids (organic liquids) | F143: 754.3
B144: 137 | C144: M041 | D144: B212 | E144: Non-halogen liquids (organic liquids) | F144: 1234
B145: 138 | C145: M041 | D145: B212 | E145: Non-halogen liquids (organic liquids) | F145: 1528.5
B146: 139 | C146: M041 | D146: B219 | E146: Non-halogen liquids (organic liquids) | F146: 28.9
B147: 140 | C147: M041 | D147: B219 | E147: Non-halogen liquids (organic liquids) | F147: 119.7
B148: 141 | C148: M041 | D148: B219 | E148: Non-halogen liquids (organic liquids) | F148: 232.4
B149: 142 | C149: M041 | D149: B219 | E149: Non-halogen liquids (organic liquids) | F149: 317.9
B150: 143 | C150: M041 | D150: B219 | E150: Non-halogen liquids (organic liquids) | F150: 371
B151: 144 | C151: M041 | D151: B219 | E151: Non-halogen liquids (organic liquids) | F151: 403.9
B152: 145 | C152: M041 | D152: B219 | E152: Non-halogen liquids (organic liquids) | F152: 482.1
B153: 146 | C153: M041 | D153: B219 | E153: Non-halogen liquids (organic liquids) | F153: 497.7
B154: 147 | C154: M041 | D154: B219 | E154: Non-halogen liquids (organic liquids) | F154: 530.2
B155: 148 | C155: M041 | D155: B219 | E155: Non-halogen liquids (organic liquids) | F155: 574.9
B156: 149 | C156: M041 | D156: B219 | E156: Non-halogen liquids (organic liquids) | F156: 593.5
B157: 150 | C157: M041 | D157: B219 | E157: Non-halogen liquids (organic liquids) | F157: 645
B158: 151 | C158: M041 | D158: B219 | E158: Non-halogen liquids (organic liquids) | F158: 815.3
B159: 152 | C159: M041 | D159: B219 | E159: Non-halogen liquids (organic liquids) | F159: 836
B160: 153 | C160: M041 | D160: B219 | E160: Non-halogen liquids (organic liquids) | F160: 838
B161: 154 | C161: M041 | D161: B219 | E161: Non-halogen liquids (organic liquids) | F161: 909
B162: 155 | C162: M041 | D162: B219 | E162: Non-halogen liquids (organic liquids) | F162: 1336
B163: 156 | C163: M041 | D163: B219 | E163: Non-halogen liquids (organic liquids) | F163: 1446.3
B164: 157 | C164: M041 | D164: B219 | E164: Non-halogen liquids (organic liquids) | F164: 1640.9
B165: 158 | C165: M041 | D165: B219 | E165: Non-halogen liquids (organic liquids) | F165: 3296
B166: 159 | C166: M041 | D166: B219 | E166: Non-halogen liquids (organic liquids) | F166: 3364
B167: 160 | C167: M041 | D167: B219 | E167: Non-halogen liquids (organic liquids) | F167: 3581
B168: 161 | C168: M041 | D168: B219 | E168: Non-halogen liquids (organic liquids) | F168: 4034
B169: 162 | C169: M041 | D169: B219 | E169: Non-halogen liquids (organic liquids) | F169: 7243
B170: 163 | C170: M041 | D170: B219 | E170: Non-halogen liquids (organic liquids) | F170: 13476
B171: 164 | C171: M041 | D171: B219 | E171: Non-halogen liquids (organic liquids) | F171: 15807.8
B172: 165 | C172: M041 | D172: B219 | E172: Non-halogen liquids (organic liquids) | F172: 17066
B173: 166 | C173: M041 | D173: B219 | E173: Non-halogen liquids (organic liquids) | F173: 18643
B174: 167 | C174: M041 | D174: B219 | E174: Non-halogen liquids (organic liquids) | F174: 24241.4
B175: 168 | C175: M043 | D175: B301 | E175: Soil | F175: 15.7
B176: 169 | C176: M043 | D176: B301 | E176: Soil | F176: 22.4
B177: 170 | C177: M043 | D177: B301 | E177: Soil | F177: 23
B178: 171 | C178: M043 | D178: B301 | E178: Soil | F178: 23.1
B179: 172 | C179: M043 | D179: B301 | E179: Soil | F179: 26.7
B180: 173 | C180: M043 | D180: B301 | E180: Soil | F180: 31.4
B181: 174 | C181: M043 | D181: B301 | E181: Soil | F181: 507.5
B182: 175 | C182: M043 | D182: B301 | E182: Soil | F182: 544.3
B183: 176 | C183: M043 | D183: B301 | E183: Soil | F183: 546.4
B184: 177 | C184: M043 | D184: B301 | E184: Soil | F184: 3479.4
B185: 178 | C185: M043 | D185: B302 | E185: Soil | F185: 843
B186: 179 | C186: M043 | D186: B303 | E186: Inorganic solids (assume = soil) | F186: 1915
B187: 180 | C187: M043 | D187: B306 | E187: Inorganic solids (assume = soil) | F187: 151
B188: 181 | C188: M043 | D188: B307 | E188: Inorganic solids (assume = soil) | F188: 0
B189: 182 | C189: M043 | D189: B312 | E189: Inorganic solids (assume = soil) | F189: 1070
B190: 183 | C190: M043 | D190: B319 | E190: Inorganic solids (assume = soil) | F190: 2
B191: 184 | C191: M043 | D191: B319 | E191: Inorganic solids (assume = soil) | F191: 38.6
B192: 185 | C192: M043 | D192: B319 | E192: Inorganic solids (assume = soil) | F192: 56
B193: 186 | C193: M043 | D193: B319 | E193: Inorganic solids (assume = soil) | F193: 577.3
B194: 187 | C194: M043 | D194: B319 | E194: Inorganic solids (assume = soil) | F194: 603
B195: 188 | C195: M043 | D195: B319 | E195: Inorganic solids (assume = soil) | F195: 621.8
B196: 189 | C196: M043 | D196: B319 | E196: Inorganic solids (assume = soil) | F196: 708.4
B197: 190 | C197: M043 | D197: B319 | E197: Inorganic solids (assume = soil) | F197: 718.6
B198: 191 | C198: M043 | D198: B319 | E198: Inorganic solids (assume = soil) | F198: 721.3
B199: 192 | C199: M043 | D199: B319 | E199: Inorganic solids (assume = soil) | F199: 758.4
B200: 193 | C200: M043 | D200: B319 | E200: Inorganic solids (assume = soil) | F200: 779.5
B201: 194 | C201: M043 | D201: B319 | E201: Inorganic solids (assume = soil) | F201: 1525.5
B202: 195 | C202: M043 | D202: B319 | E202: Inorganic solids (assume = soil) | F202: 2669.3
B203: 196 | C203: M043 | D203: B407 | E203: Organic solids (assume = soil) | F203: 2.1
... 54 more rows

Sheet Landfill (hidden)
B2: Landfill Cost
B3: 1993 BRS | C3: BRS treatment | D3: BRS
B4: wastestream | C4: code for | D4: physical | F4: 1993 tons
B5: count | C5: landfill | D5: form code | E5: Physical form code description | F5: landfilled | G5: <Tons based on OSW's 1996 NHWCS survey
B6: 1 | C6: M132 | D6: B207 | E6: Organic liquids (assume bulk w/treatment) | F6: 1575
B7: 2 | C7: M132 | D7: B208 | E7: Organic liquids (assume bulk w/treatment) | F7: 810.2
B8: 3 | C8: M132 | D8: B209 | E8: Organic liquids (assume bulk w/treatment) | F8: 810.2
B9: 4 | C9: M132 | D9: B301 | E9: Soil contaminated w/organics (assume treated) | F9: 415.3
B10: 5 | C10: M132 | D10: B301 | E10: Soil contaminated w/organics (assume treated) | F10: 426.9
B11: 6 | C11: M132 | D11: B301 | E11: Soil contaminated w/organics (assume treated) | F11: 438.5
B12: 7 | C12: M132 | D12: B301 | E12: Soil contaminated w/organics (assume treated) | F12: 499.7
B13: 8 | C13: M132 | D13: B301 | E13: Soil contaminated w/organics (assume treated) | F13: 552
B14: 9 | C14: M132 | D14: B301 | E14: Soil contaminated w/organics (assume treated) | F14: 752
B15: 10 | C15: M132 | D15: B301 | E15: Soil contaminated w/organics (assume treated) | F15: 757.9
B16: 11 | C16: M132 | D16: B301 | E16: Soil contaminated w/organics (assume treated) | F16: 877.4
B17: 12 | C17: M132 | D17: B301 | E17: Soil contaminated w/organics (assume treated) | F17: 882.6
B18: 13 | C18: M132 | D18: B301 | E18: Soil contaminated w/organics (assume treated) | F18: 967.4
B19: 14 | C19: M132 | D19: B301 | E19: Soil contaminated w/organics (assume treated) | F19: 971.2
B20: 15 | C20: M132 | D20: B301 | E20: Soil contaminated w/organics (assume treated) | F20: 1056.6
B21: 16 | C21: M132 | D21: B301 | E21: Soil contaminated w/organics (assume treated) | F21: 1258.2
B22: 17 | C22: M132 | D22: B301 | E22: Soil contaminated w/organics (assume treated) | F22: 1276.9
B23: 18 | C23: M132 | D23: B301 | E23: Soil contaminated w/organics (assume treated) | F23: 1352.1
B24: 19 | C24: M132 | D24: B301 | E24: Soil contaminated w/organics (assume treated) | F24: 1425
B25: 20 | C25: M132 | D25: B301 | E25: Soil contaminated w/organics (assume treated) | F25: 1575
B26: 21 | C26: M132 | D26: B301 | E26: Soil contaminated w/organics (assume treated) | F26: 1575
B27: 22 | C27: M132 | D27: B301 | E27: Soil contaminated w/organics (assume treated) | F27: 1601.2
B28: 23 | C28: M132 | D28: B301 | E28: Soil contaminated w/organics (assume treated) | F28: 1691
B29: 24 | C29: M132 | D29: B301 | E29: Soil contaminated w/organics (assume treated) | F29: 1816.5
B30: 25 | C30: M132 | D30: B301 | E30: Soil contaminated w/organics (assume treated) | F30: 1816.5
B31: 26 | C31: M132 | D31: B301 | E31: Soil contaminated w/organics (assume treated) | F31: 2104.9
B32: 27 | C32: M132 | D32: B301 | E32: Soil contaminated w/organics (assume treated) | F32: 2163.5
B33: 28 | C33: M132 | D33: B301 | E33: Soil contaminated w/organics (assume treated) | F33: 2884
B34: 29 | C34: M132 | D34: B301 | E34: Soil contaminated w/organics (assume treated) | F34: 3039.8
B35: 30 | C35: M132 | D35: B301 | E35: Soil contaminated w/organics (assume treated) | F35: 3039.8
B36: 31 | C36: M132 | D36: B301 | E36: Soil contaminated w/organics (assume treated) | F36: 3179.2
B37: 32 | C37: M132 | D37: B301 | E37: Soil contaminated w/organics (assume treated) | F37: 3286.3
B38: 33 | C38: M132 | D38: B301 | E38: Soil contaminated w/organics (assume treated) | F38: 3961.2
B39: 34 | C39: M132 | D39: B301 | E39: Soil contaminated w/organics (assume treated) | F39: 3961.2
B40: 35 | C40: M132 | D40: B301 | E40: Soil contaminated w/organics (assume treated) | F40: 3961.2
B41: 36 | C41: M132 | D41: B301 | E41: Soil contaminated w/organics (assume treated) | F41: 4065.5
B42: 37 | C42: M132 | D42: B301 | E42: Soil contaminated w/organics (assume treated) | F42: 4511
B43: 38 | C43: M132 | D43: B301 | E43: Soil contaminated w/organics (assume treated) | F43: 4703.1
B44: 39 | C44: M132 | D44: B301 | E44: Soil contaminated w/organics (assume treated) | F44: 5290.6
B45: 40 | C45: M132 | D45: B301 | E45: Soil contaminated w/organics (assume treated) | F45: 5772.7
B46: 41 | C46: M132 | D46: B301 | E46: Soil contaminated w/organics (assume treated) | F46: 5772.7
B47: 42 | C47: M132 | D47: B301 | E47: Soil contaminated w/organics (assume treated) | F47: 5966.9
B48: 43 | C48: M132 | D48: B301 | E48: Soil contaminated w/organics (assume treated) | F48: 6409.6
B49: 44 | C49: M132 | D49: B301 | E49: Soil contaminated w/organics (assume treated) | F49: 7181.3
B50: 45 | C50: M132 | D50: B301 | E50: Soil contaminated w/organics (assume treated) | F50: 7246.9
B51: 46 | C51: M132 | D51: B301 | E51: Soil contaminated w/organics (assume treated) | F51: 7444
B52: 47 | C52: M132 | D52: B301 | E52: Soil contaminated w/organics (assume treated) | F52: 8485.8
B53: 48 | C53: M132 | D53: B301 | E53: Soil contaminated w/organics (assume treated) | F53: 8485.8
B54: 49 | C54: M132 | D54: B301 | E54: Soil contaminated w/organics (assume treated) | F54: 8836.7
B55: 50 | C55: M132 | D55: B301 | E55: Soil contaminated w/organics (assume treated) | F55: 10906.8
B56: 51 | C56: M132 | D56: B301 | E56: Soil contaminated w/organics (assume treated) | F56: 10951.1
B57: 52 | C57: M132 | D57: B301 | E57: Soil contaminated w/organics (assume treated) | F57: 12699.6
B58: 53 | C58: M132 | D58: B301 | E58: Soil contaminated w/organics (assume treated) | F58: 14780.3
B59: 54 | C59: M132 | D59: B301 | E59: Soil contaminated w/organics (assume treated) | F59: 15739.7
B60: 55 | C60: M132 | D60: B301 | E60: Soil contaminated w/organics (assume treated) | F60: 16976.9
B61: 56 | C61: M132 | D61: B301 | E61: Soil contaminated w/organics (assume treated) | F61: 21862.5
B62: 57 | C62: M132 | D62: B301 | E62: Soil contaminated w/organics (assume treated) | F62: 27688.2
B63: 58 | C63: M132 | D63: B301 | E63: Soil contaminated w/organics (assume treated) | F63: 28928.7
B64: 59 | C64: M132 | D64: B301 | E64: Soil contaminated w/organics (assume treated) | F64: 31977.1
B65: 60 | C65: M132 | D65: B302 | E65: Soil contaminated w/inorganics (assume w/out treatment) | F65: 500.3
B66: 61 | C66: M132 | D66: B302 | E66: Soil contaminated w/inorganics (assume w/out treatment) | F66: 723.8
B67: 62 | C67: M132 | D67: B302 | E67: Soil contaminated w/inorganics (assume w/out treatment) | F67: 1119.4
B68: 63 | C68: M132 | D68: B302 | E68: Soil contaminated w/inorganics (assume w/out treatment) | F68: 1575
B69: 64 | C69: M132 | D69: B302 | E69: Soil contaminated w/inorganics (assume w/out treatment) | F69: 1630.7
B70: 65 | C70: M132 | D70: B302 | E70: Soil contaminated w/inorganics (assume w/out treatment) | F70: 1816.5
B71: 66 | C71: M132 | D71: B302 | E71: Soil contaminated w/inorganics (assume w/out treatment) | F71: 1947.1
B72: 67 | C72: M132 | D72: B302 | E72: Soil contaminated w/inorganics (assume w/out treatment) | F72: 2724.7
B73: 68 | C73: M132 | D73: B302 | E73: Soil contaminated w/inorganics (assume w/out treatment) | F73: 2741
B74: 69 | C74: M132 | D74: B302 | E74: Soil contaminated w/inorganics (assume w/out treatment) | F74: 3105.3
B75: 70 | C75: M132 | D75: B302 | E75: Soil contaminated w/inorganics (assume w/out treatment) | F75: 4255.9
B76: 71 | C76: M132 | D76: B302 | E76: Soil contaminated w/inorganics (assume w/out treatment) | F76: 5024.1
B77: 72 | C77: M132 | D77: B302 | E77: Soil contaminated w/inorganics (assume w/out treatment) | F77: 5281.7
B78: 73 | C78: M132 | D78: B302 | E78: Soil contaminated w/inorganics (assume w/out treatment) | F78: 5772.7
B79: 74 | C79: M132 | D79: B302 | E79: Soil contaminated w/inorganics (assume w/out treatment) | F79: 8485.8
B80: 75 | C80: M132 | D80: B302 | E80: Soil contaminated w/inorganics (assume w/out treatment) | F80: 9706.7
B81: 76 | C81: M132 | D81: B302 | E81: Soil contaminated w/inorganics (assume w/out treatment) | F81: 23320.4
B82: 77 | C82: M132 | D82: B302 | E82: Soil contaminated w/inorganics (assume w/out treatment) | F82: 45162.9
B83: 78 | C83: M132 | D83: B303 | E83: Inorganic solids (assume bulk w/out treatment) | F83: 451.3
B84: 79 | C84: M132 | D84: B303 | E84: Inorganic solids (assume bulk w/out treatment) | F84: 495.3
B85: 80 | C85: M132 | D85: B303 | E85: Inorganic solids (assume bulk w/out treatment) | F85: 498.9
B86: 81 | C86: M132 | D86: B303 | E86: Inorganic solids (assume bulk w/out treatment) | F86: 557
B87: 82 | C87: M132 | D87: B303 | E87: Inorganic solids (assume bulk w/out treatment) | F87: 1156.6
B88: 83 | C88: M132 | D88: B303 | E88: Inorganic solids (assume bulk w/out treatment) | F88: 1984
B89: 84 | C89: M132 | D89: B303 | E89: Inorganic solids (assume bulk w/out treatment) | F89: 2014.6
B90: 85 | C90: M132 | D90: B303 | E90: Inorganic solids (assume bulk w/out treatment) | F90: 2127
B91: 86 | C91: M132 | D91: B303 | E91: Inorganic solids (assume bulk w/out treatment) | F91: 2686.3
B92: 87 | C92: M132 | D92: B303 | E92: Inorganic solids (assume bulk w/out treatment) | F92: 3039.8
B93: 88 | C93: M132 | D93: B303 | E93: Inorganic solids (assume bulk w/out treatment) | F93: 4065.5
B94: 89 | C94: M132 | D94: B303 | E94: Inorganic solids (assume bulk w/out treatment) | F94: 16507.9
B95: 90 | C95: M132 | D95: B304 | E95: Inorganic solids (assume bulk w/out treatment) | F95: 936.3
B96: 91 | C96: M132 | D96: B304 | E96: Inorganic solids (assume bulk w/out treatment) | F96: 3179.2
B97: 92 | C97: M132 | D97: B304 | E97: Inorganic solids (assume bulk w/out treatment) | F97: 3179.2
B98: 93 | C98: M132 | D98: B304 | E98: Inorganic solids (assume bulk w/out treatment) | F98: 4703.1
B99: 94 | C99: M132 | D99: B304 | E99: Inorganic solids (assume bulk w/out treatment) | F99: 18722.2
B100: 95 | C100: M132 | D100: B305 | E100: Inorganic solids (assume bulk with treatment) | F100: 1242.4
B101: 96 | C101: M132 | D101: B305 | E101: Inorganic solids (assume bulk with treatment) | F101: 1531.1
B102: 97 | C102: M132 | D102: B305 | E102: Inorganic solids (assume bulk with treatment) | F102: 1816.5
B103: 98 | C103: M132 | D103: B305 | E103: Inorganic solids (assume bulk with treatment) | F103: 3179.2
B104: 99 | C104: M132 | D104: B305 | E104: Inorganic solids (assume bulk with treatment) | F104: 3961.2
B105: 100 | C105: M132 | D105: B305 | E105: Inorganic solids (assume bulk with treatment) | F105: 5632.3
B106: 101 | C106: M132 | D106: B305 | E106: Inorganic solids (assume bulk with treatment) | F106: 5772.7
B107: 102 | C107: M132 | D107: B305 | E107: Inorganic solids (assume bulk with treatment) | F107: 7980
B108: 103 | C108: M132 | D108: B305 | E108: Inorganic solids (assume bulk with treatment) | F108: 8485.8
B109: 104 | C109: M132 | D109: B305 | E109: Inorganic solids (assume bulk with treatment) | F109: 10781.5
B110: 105 | C110: M132 | D110: B305 | E110: Inorganic solids (assume bulk with treatment) | F110: 15500
B111: 106 | C111: M132 | D111: B305 | E111: Inorganic solids (assume bulk with treatment) | F111: 24080
B112: 107 | C112: M132 | D112: B305 | E112: Inorganic solids (assume bulk with treatment) | F112: 38004.1
B113: 108 | C113: M132 | D113: B305 | E113: Inorganic solids (assume bulk with treatment) | F113: 38272
B114: 109 | C114: M132 | D114: B305 | E114: Inorganic solids (assume bulk with treatment) | F114: 56789
B115: 110 | C115: M132 | D115: B305 | E115: Inorganic solids (assume bulk with treatment) | F115: 58500
B116: 111 | C116: M132 | D116: B305 | E116: Inorganic solids (assume bulk with treatment) | F116: 78274.4
B117: 112 | C117: M132 | D117: B306 | E117: Inorganic solids (assume bulk w/out treatment) | F117: 580
B118: 113 | C118: M132 | D118: B306 | E118: Inorganic solids (assume bulk w/out treatment) | F118: 1575
B119: 114 | C119: M132 | D119: B306 | E119: Inorganic solids (assume bulk w/out treatment) | F119: 16248
B120: 115 | C120: M132 | D120: B307 | E120: Inorganic solids (assume bulk w/out treatment) | F120: 3961.2
B121: 116 | C121: M132 | D121: B307 | E121: Inorganic solids (assume bulk w/out treatment) | F121: 4350
B122: 117 | C122: M132 | D122: B307 | E122: Inorganic solids (assume bulk w/out treatment) | F122: 5772.7
B123: 118 | C123: M132 | D123: B310 | E123: Inorganic solids (assume bulk w/out treatment) | F123: 5772.7
B124: 119 | C124: M132 | D124: B312 | E124: Inorganic solids (assume bulk with treatment) | F124: 3961.2
B125: 120 | C125: M132 | D125: B312 | E125: Inorganic solids (assume bulk with treatment) | F125: 3961.2
B126: 121 | C126: M132 | D126: B312 | E126: Inorganic solids (assume bulk with treatment) | F126: 3961.2
B127: 122 | C127: M132 | D127: B312 | E127: Inorganic solids (assume bulk with treatment) | F127: 5090.1
B128: 123 | C128: M132 | D128: B312 | E128: Inorganic solids (assume bulk with treatment) | F128: 5730.5
B129: 124 | C129: M132 | D129: B314 | E129: Inorganic solids (assume bulk with treatment) | F129: 2558
B130: 125 | C130: M132 | D130: B316 | E130: Inorganic solids (assume bulk with treatment) | F130: 489.1
B131: 126 | C131: M132 | D131: B316 | E131: Inorganic solids (assume bulk with treatment) | F131: 1575
B132: 127 | C132: M132 | D132: B316 | E132: Inorganic solids (assume bulk with treatment) | F132: 4255.9
B133: 128 | C133: M132 | D133: B316 | E133: Inorganic solids (assume bulk with treatment) | F133: 4703.1
B134: 129 | C134: M132 | D134: B316 | E134: Inorganic solids (assume bulk with treatment) | F134: 6570
B135: 130 | C135: M132 | D135: B316 | E135: Inorganic solids (assume bulk with treatment) | F135: 7253.4
B136: 131 | C136: M132 | D136: B316 | E136: Inorganic solids (assume bulk with treatment) | F136: 16128.3
B137: 132 | C137: M132 | D137: B319 | E137: Inorganic solids (assume debris drummed w/out treatment) | F137: 33
B138: 133 | C138: M132 | D138: B319 | E138: Inorganic solids (assume debris) | F138: 493.6
B139: 134 | C139: M132 | D139: B319 | E139: Inorganic solids (assume debris) | F139: 531.2
B140: 135 | C140: M132 | D140: B319 | E140: Inorganic solids (assume debris) | F140: 588
B141: 136 | C141: M132 | D141: B319 | E141: Inorganic solids (assume debris) | F141: 718.9
B142: 137 | C142: M132 | D142: B319 | E142: Inorganic solids (assume debris) | F142: 762.4
B143: 138 | C143: M132 | D143: B319 | E143: Inorganic solids (assume debris) | F143: 960
B144: 139 | C144: M132 | D144: B319 | E144: Inorganic solids (assume debris) | F144: 1070.2
B145: 140 | C145: M132 | D145: B319 | E145: Inorganic solids (assume debris) | F145: 1121.3
B146: 141 | C146: M132 | D146: B319 | E146: Inorganic solids (assume debris) | F146: 1575
B147: 142 | C147: M132 | D147: B319 | E147: Inorganic solids (assume debris) | F147: 1816.5
B148: 143 | C148: M132 | D148: B319 | E148: Inorganic solids (assume debris) | F148: 1816.5
B149: 144 | C149: M132 | D149: B319 | E149: Inorganic solids (assume debris) | F149: 1842.9
B150: 145 | C150: M132 | D150: B319 | E150: Inorganic solids (assume debris) | F150: 2449.8
B151: 146 | C151: M132 | D151: B319 | E151: Inorganic solids (assume debris) | F151: 3029.8
B152: 147 | C152: M132 | D152: B319 | E152: Inorganic solids (assume debris) | F152: 3039.8
B153: 148 | C153: M132 | D153: B319 | E153: Inorganic solids (assume debris) | F153: 3628.6
B154: 149 | C154: M132 | D154: B319 | E154: Inorganic solids (assume debris) | F154: 3717.8
B155: 150 | C155: M132 | D155: B319 | E155: Inorganic solids (assume debris) | F155: 4065.5
B156: 151 | C156: M132 | D156: B319 | E156: Inorganic solids (assume debris) | F156: 4065.5
B157: 152 | C157: M132 | D157: B319 | E157: Inorganic solids (assume debris) | F157: 4065.5
B158: 153 | C158: M132 | D158: B319 | E158: Inorganic solids (assume debris) | F158: 4255.9
B159: 154 | C159: M132 | D159: B319 | E159: Inorganic solids (assume debris) | F159: 4255.9
B160: 155 | C160: M132 | D160: B319 | E160: Inorganic solids (assume debris) | F160: 4703.1
B161: 156 | C161: M132 | D161: B319 | E161: Inorganic solids (assume debris) | F161: 5198.5
B162: 157 | C162: M132 | D162: B319 | E162: Inorganic solids (assume debris) | F162: 8485.8
B163: 158 | C163: M132 | D163: B319 | E163: Inorganic solids (assume debris) | F163: 8540.5
B164: 159 | C164: M132 | D164: B319 | E164: Inorganic solids (assume debris) | F164: 19158.9
B165: 160 | C165: M132 | D165: B319 | E165: Inorganic solids (assume debris) | F165: 22269.4
B166: 161 | C166: M132 | D166: B319 | E166: Inorganic solids (assume debris) | F166: 78829.4
B167: 162 | C167: M132 | D167: B403 | E167: Organic solids (assume bulk w/out treatment) | F167: 5772.7
B168: 163 | C168: M132 | D168: B407 | E168: Organic solids (assume bulk w/treatment) | F168: 4065.5
B169: 164 | C169: M132 | D169: B409 | E169: Organic solids (assume bulk w/treatment) | F169: 4065.5
B170: 165 | C170: M132 | D170: B409 | E170: Organic solids (assume bulk w/treatment) | F170: 4703.1
B171: 166 | C171: M132 | D171: B501 | E171: Inorganic sludges (assume bulk w/out treatment) | F171: 3134.7
B172: 167 | C172: M132 | D172: B503 | E172: Inorganic sludges (assume bulk w/treatment) | F172: 1084
B173: 168 | C173: M132 | D173: B503 | E173: Inorganic sludges (assume bulk w/treatment) | F173: 16805
B174: 169 | C174: M132 | D174: B504 | E174: Inorganic sludges (assume bulk w/treatment) | F174: 1816.5
B175: 170 | C175: M132 | D175: B504 | E175: Inorganic sludges (assume bulk w/treatment) | F175: 1816.5
B176: 171 | C176: M132 | D176: B504 | E176: Inorganic sludges (assume bulk w/treatment) | F176: 2610
B177: 172 | C177: M132 | D177: B504 | E177: Inorganic sludges (assume bulk w/treatment) | F177: 3961.2
B178: 173 | C178: M132 | D178: B504 | E178: Inorganic sludges (assume bulk w/treatment) | F178: 5772.7
B179: 174 | C179: M132 | D179: B512 | E179: Inorganic sludges (assume bulk w/treatment) | F179: 1057.4
B180: 175 | C180: M132 | D180: B512 | E180: Inorganic sludges (assume bulk w/treatment) | F180: 37767.9
B181: 176 | C181: M132 | D181: B603 | E181: Organic sludges (assume bulk w/treatment) | F181: 1462.5
B182: 177 | C182: M132 | D182: B603 | E182: Organic sludges (assume bulk w/treatment) | F182: 4255.9
B183: 178 | C183: M132 | D183: B603 | E183: Organic sludges (assume bulk w/treatment) | F183: 4523.9
B184: 179 | C184: M132 | D184: B603 | E184: Organic sludges (assume bulk w/treatment) | F184: 5772.7
B185: 180 | C185: M132 | D185: B606 | E185: Organic sludges (assume bulk w/treatment) | F185: 2059.3
B186: 181 | C186: M132 | D186: B607 | E186: Organic sludges (assume bulk w/out treatment) | F186: 8720.2
B187: 182 | C187: M132 | D187: B607 | E187: Organic sludges (assume bulk w/out treatment) | F187: 35858
E188: Column total = | F188: =SUM(F6:F187) -> 1351116.3
F190: 1993 BRS | G190: 2004 ETC | H190: 2016$ | J190: Equivalent
E191: ETC Landfill Price Categories* | F191: 'subtotal tons | G191: avg price | I191: Cost basis | J191: Per-ton price
D192: 1 | E192: Debris | F192: =SUM(F138:F166) -> 197056.2 | G192: 194 | H192: =G192*'Implicit GDP Price Deflators'!$AE$8/'Implicit GDP Price Deflators'!$Q$8 -> 241.484504 | I192: per ton | J192: =(H192) -> 241.484504
D193: 2 | E193: Bulk with Treatment | F193: =SUM(F6:F8,F100:F116,F124:F136,F168:F170,F172:F185) -> 532834.2 | G193: 133 | H193: =G193*'Implicit GDP Price Deflators'!$AE$8/'Implicit GDP Price Deflators'!$Q$8 -> 165.5538095 | I193: per ton | J193: =(H193) -> 165.5538095
D194: 3 | E194: Bulk without Treatment | F194: =SUM(F83:F99,F117:F123,F167,F171,F186:F187) -> 158049.4 | G194: 90 | H194: =G194*'Implicit GDP Price Deflators'!$AE$8/'Implicit GDP Price Deflators'!$Q$8 -> 112.0288936 | I194: per ton | J194: =(H194) -> 112.0288936
D195: 4 | E195: Drummed with Treatment | F195: 0 | G195: 175 | H195: =G195*'Implicit GDP Price Deflators'!$AE$8/'Implicit GDP Price Deflators'!$Q$8 -> 217.8339598 | I195: per drum | J195: =(H195)*2000/(55*8.3) -> 954.365651 | K195: Assume 55 gallons per drum @8.3 lbs per gallon
D196: 5 | E196: Drummed without Treatment | F196: =(F137) -> 33 | G196: 100 | H196: =G196*'Implicit GDP Price Deflators'!$AE$8/'Implicit GDP Price Deflators'!$Q$8 -> 124.4765485 | I196: per drum | J196: =(H196)*2000/(55*8.3) -> 545.3518005 | K196: Assume 55 gallons per drum @8.3 lbs per gallon
D197: 6 | E197: Soil Treated and Landfilled | F197: =SUM(F9:F64) -> 338249.5 | G197: 135 | H197: =G197*'Implicit GDP Price Deflators'!$AE$8/'Implicit GDP Price Deflators'!$Q$8 -> 168.0433404 | I197: per ton | J197: =(H197) -> 168.0433404
D198: 7 | E198: Soil Direct to Landfill | F198: =SUM(F65:F82) -> 124894 | G198: 70 | H198: =G198*'Implicit GDP Price Deflators'!$AE$8/'Implicit GDP Price Deflators'!$Q$8 -> 87.13358393 | I198: per ton | J198: =(H198) -> 87.13358393
E199: Check sum = | F199: =SUM(F192:F198) -> 1351116.3
I200: Tonnage weighted-average unit cost (per ton) = | J200: =SUMPRODUCT(F192:F198,J192:J198)/SUM(F192:F198) -> 163.7504367 | K200: per ton
E201: * Source: http://www.etc.org/costsurvey8.cfm | F201: WEIGHTAVG(F192…F198, J192…J198) | J201: =J200/2200 -> 0.07443201666 | K201: per pound
J202: =J200/2000*8.3 -> 0.6795643121 | K202: per gallon

Sheet State Elec. Prices & Premiums (hidden)
B2: Electricity Prices | F2: Green Electricity Premiums
B3: State | C3: Electricity Prices (Commercial End-Use Sector) (c/Kwh) | D3: Electricity Prices (Commercial End-Use Sector) ($/Kwh) | F3: State | G3: Electricity Prices (Commercial End-Use Sector) (c/Kwh) | H3: Electricity Prices (Commercial End-Use Sector) ($/Kwh)
B4: U.S. National | C4: 12.42 | D4: =C4/100 -> 0.1242 | F4: U.S. National | G4: 0.01958 | H4: =G4/100 -> 0.0001958
B5: AK | C5: 19.6 | D5: =C5/100 -> 0.196 | F5: AK | G5: 0.01958 | H5: =G5/100 -> 0.0001958
B6: AL | C6: 11.59 | D6: =C6/100 -> 0.1159 | F6: AL | G6: 1.973333333 | H6: =G6/100 -> 0.01973333333
B7: AR | C7: 9.29 | D7: 0.0929 | F7: AR | G7: 5 | H7: 0.05
B8: AZ | C8: 11.83 | D8: 0.1183 | F8: AZ | G8: 1.5675 | H8: 0.015675
B9: CA | C9: 16.35 | D9: 0.1635 | F9: CA | G9: 1.874404762 | H9: 0.01874404762
B10: CO | C10: 11.74 | D10: 0.1174 | F10: CO | G10: 1.501875 | H10: 0.01501875
B11: CT | C11: 21.97 | D11: 0.2197 | F11: CT | G11: 0.01958 | H11: 0.0001958
B12: DC | C12: 12.59 | D12: 0.1259 | F12: DC | G12: 0.01958 | H12: 0.0001958
B13: DE | C13: 13.08 | D13: 0.1308 | F13: DE | G13: 0.2 | H13: 0.002
B14: FL | C14: 11.78 | D14: 0.1178 | F14: FL | G14: 2.25 | H14: 0.0225
B15: GA | C15: 10.88 | D15: 0.1088 | F15: GA | G15: 3.455 | H15: 0.03455
B16: HI | C16: 31.07 | D16: 0.3107 | F16: HI | G16: 0.01958 | H16: 0.0001958
B17: ID | C17: 9.91 | D17: 0.0991 | F17: IA | G17: 1.9 | H17: 0.019
B18: IL | C18: 12.29 | D18: 0.1229 | F18: ID | G18: 1.133333333 | H18: 0.01133333333
B19: IN | C19: 10.98 | D19: 0.1098 | F19: IL | G19: 1.733333333 | H19: 0.01733333333
B20: IO | C20: 11.04 | D20: 0.1104 | F20: IN | G20: 1.306 | H20: 0.01306
B21: KS | C21: 12.08 | D21: 0.1208 | F21: KS | G21: 1 | H21: 0.01
B22: KY | C22: 9.82 | D22: 0.0982 | F22: KY | G22: 2.3375 | H22: 0.023375
B23: LA | C23: 9.03 | D23: 0.0903 | F23: LA | G23: 0.01958 | H23: 0.0001958
B24: MA | C24: 21.41 | D24: 0.2141 | F24: MA | G24: 2.5 | H24: 0.025
B25: MD | C25: 13.29 | D25: 0.1329 | F25: MD | G25: 0.01958 | H25: 0.0001958
B26: ME | C26: 15.81 | D26: 0.1581 | F26: ME | G26: 0.01958 | H26: 0.0001958
B27: MI | C27: 13.86 | D27: 0.1386 | F27: MI | G27: 2.05625 | H27: 0.0205625
B28: MN | C28: 11.83 | D28: 0.1183 | F28: MN | G28: 1.7995 | H28: 0.017995
B29: MO | C29: 9.91 | D29: 0.0991 | F29: MO | G29: 2.2475 | H29: 0.022475
B30: MS | C30: 11.41 | D30: 0.1141 | F30: MS | G30: 2.67 | H30: 0.0267
B31: MT | C31: 10.74 | D31: 0.1074 | F31: MT | G31: 1.11 | H31: 0.0111
B32: NC | C32: 11.07 | D32: 0.1107 | F32: NC | G32: 3.134 | H32: 0.03134
B33: ND | C33: 9.07 | D33: 0.0907 | F33: ND | G33: 1.15 | H33: 0.0115
B34: NE | C34: 9.91 | D34: 0.0991 | F34: NE | G34: 1.25 | H34: 0.0125
B35: NH | C35: 19.46 | D35: 0.1946 | F35: NH | G35: 0.01958 | H35: 0.0001958
B36: NJ | C36: 15.6 | D36: 0.156 | F36: NJ | G36: 0.01958 | H36: 0.0001958
B37: NM | C37: 12.31 | D37: 0.1231 | F37: NM | G37: 3.04 | H37: 0.0304
B38: NV | C38: 13.31 | D38: 0.1331 | F38: NV | G38: 1.95 | H38: 0.0195
B39: NY | C39: 18.87 | D39: 0.1887 | F39: NY | G39: 0.01958 | H39: 0.0001958
B40: OH | C40: 12.29 | D40: 0.1229 | F40: OH | G40: 1.4 | H40: 0.014
B41: OK | C41: 9.74 | D41: 0.0974 | F41: OK | G41: 0.984 | H41: 0.00984
B42: OR | C42: 10.51 | D42: 0.1051 | F42: OR | G42: 1.395833333 | H42: 0.01395833333
B43: PA | C43: 13.28 | D43: 0.1328 | F43: PA | G43: 0.01958 | H43: 0.0001958
B44: RI | C44: 19.44 | D44: 0.1944 | F44: RI | G44: 0.01958 | H44: 0.0001958
B45: SC | C45: 12.26 | D45: 0.1226 | F45: SC | G45: 3.75 | H45: 0.0375
B46: SD | C46: 10.43 | D46: 0.1043 | F46: SD | G46: 1.75 | H46: 0.0175
B47: TN | C47: 10.08 | D47: 0.1008 | F47: TN | G47: 2.67 | H47: 0.0267
B48: TX | C48: 11.8 | D48: 0.118 | F48: TX | G48: 2.445 | H48: 0.02445
B49: UT | C49: 10.57 | D49: 0.1057 | F49: UT | G49: 2.01 | H49: 0.0201
B50: VA | C50: 11.09 | D50: 0.1109 | F50: VA | G50: 1.3 | H50: 0.013
B51: VT | C51: 16.82 | D51: 0.1682 | F51: VT | G51: 4 | H51: 0.04
B52: WA | C52: 8.59 | D52: 0.0859 | F52: WA | G52: 1.592857143 | H52: 0.01592857143
B53: WI | C53: 14.12 | D53: 0.1412 | F53: WI | G53: 1.815714286 | H53: 0.01815714286
B54: WV | C54: 9.47 | D54: 0.0947 | F54: WV | G54: 0.01958 | H54: 0.0001958
B55: WY | C55: 10.63 | D55: 0.1063 | F55: WY | G55: 1.248 | H55: 0.01248
B57: Source: http://www.eia.gov/electricity/monthly, Table 5.6B | F57: Source: http://apps3.eere.energy.gov/greenpower/markets/, Green Pricing page,
B58: Average price of electricity to commercial sector, by state | F58: Table of Utility Programs by State
F59: Data averaged by state. National average is mean of state data.
F60: When premium ranges were given, the midpoint of the range was used.
F61: States with no information are assigned the national average (in bold italics).

Sheet Green Elec. Premium Worksheet (hidden)
B2: EERE Data (verified January 2015, with regular updates) | I2: Summary of Price Premiums | O2: National Average Premium Calculation | T2: State Average Premium
B3: State | C3: Utility Information | D3: Enrollment Information | E3: Type | F3: Start Date | G3: Premium | I3: State | J3: Lower End of Price Premium Range (cents) | K3: Upper End of Price Premium Range (cents) | L3: High End of Price Premium Range, or Price Premium if no Range (cents) | M3: Price Premiums (cents) | P3: Low Range | Q3: High Range | R3: High Range or Single Price Premium | T3: State | U3: Average Price Premium
B4: AL | C4: Alabama Power Company | D4: Renewable Energy Rate | E4: hydro, wind, biomass | F4: 2003/2000 | G4: 1.25¢/kWh | I4: AL | J4: 1.25 | L4: 1.25 | M4: 1.25 | O4: Mean | P4: =AVERAGE(J4:J200) -> 1.842465483 | Q4: =AVERAGE(L4:L200) -> 1.978027613 | R4: =AVERAGE(M4:M200) -> 1.958057199 | T4: AL | U4: 1.973333333 | V4: =AVERAGE(M4:M6) -> 1.973333333
B5: AL | C5: PowerSouth Energy Cooperative: City of Andalusia, Baldwin Electric Membership Cooperative, City of Brundidge, Central Alabama Electric Cooperative, Clarke-Washington Electric Membership Cooperative, Coosa Valley Electric Cooperative, Covington Electric Cooperative, Dixie Electric Cooperative, City of Elba, City of Opp, Pea River Electric Cooperative, Pioneer Electric Cooperative, South Alabama Electric Cooperative, Southern Pine Electric Cooperative, Tallapoosa River Electric Cooperative, Wiregrass Electric Cooperative | D5: Green Power Choice | E5: landfill gas, wind, hydro | F5: 2006 | G5: 2.0¢/kWh | I5: AL | J5: 2 | L5: 2 | M5: 2 | O5: Median | P5: =MEDIAN(J4:J200) -> 1.79166667 | Q5: =MEDIAN(L4:L200) -> 1.95 | R5: =MEDIAN(M4:M200) -> 1.95 | T5: AR | U5: 5 | V5: =M13 -> 5
B6: AL | C6: TVA: City of Athens Electric Department, Cherokee Electric Coop, Cullman Electric Coop, Cullman Power Board, Decatur Utilities, Florence Utilities, Guntersville Electric Board, Hartselle Utilities, Huntsville Utilities, Joe Wheeler EMC, Marshall-DeKalb Electric Coop, Muscle Shoals Electric Board, North Alabama Electric Coop, Sand Mountain Electric Coop, Scottsboro Electric Power Board, Sheffield Utilities, Tuscumbia Electric Department | D6: Green Power Switch | E6: landfill gas, PV, wind | F6: 2000 | G6: 2.67¢/kWh | I6: AL | J6: 2.67 | L6: 2.67 | M6: 2.67 | O6: Min | P6: =MIN(J4:J200) -> 0 | Q6: =MIN(L4:L200) -> 0 | R6: =MIN(M4:M200) -> 0 | T6: AZ | U6: 1.5675 | V6: =AVERAGE(M8:M12) -> 1.5675
B7: AK | C7: Golden Valley Electric Association | D7: Sustainable Natural Alternative Power (SNAP) | E7: various local projects | F7: 2005 | G7: 11.02¢/kWh | I7: AK | J7: 11.02 | L7: 11.02 | M7: 11.02 | O7: Max | P7: =MAX(J4:J200) -> 11.02 | Q7: =MAX(L4:L200) -> 11.02 | R7: =MAX(M4:M200) -> 11.02 | T7: CA | U7: 1.874404762 | V7: =AVERAGE(M14:M28) -> 1.874404762
B8: AZ | C8: Arizona Public Service | D8: Green Choice | E8: wind, biomass, landfill gas, geothermal, and solar | F8: 2007 | G8: 1.02¢/kWh | I8: AZ | J8: 1.02 | L8: 1.02 | M8: 1.02 | O8: n (data) | P8: =COUNT(J4:J200) -> 169 | Q8: =COUNT(L4:L200) -> 169 | R8: =COUNT(M4:M200) -> 169 | T8: CO | U8: 1.501875 | V8: =AVERAGE(M29:M36) -> 1.501875
B9: AZ | C9: Salt River Project | D9: EarthWise Energy | E9: PV for non-profits | F9: 1998/2001 | G9: Contribution | I9: AZ | J9: CONTRIBUTION | L9: CONTRIBUTION | M9: CONTRIBUTION | O9: n (total) | P9: =COUNTIF(J4:J200, "<>") -> 197 | Q9: =COUNTIF(L4:L200, "<>") -> 197 | R9: =COUNTIF(M4:M200, "<>") -> 197 | T9: DE | U9: 0.2 | V9: =AVERAGE(M37) -> 0.2
B10: AZ | C10: Tri-State Generation & Transmission: Columbus Electric Cooperative, Inc. | D10: Renewable Resource Power Rider | E10: wind, hydro | F10: 2001 | G10: 1.25¢/kWh | I10: AZ | J10: 1.25 | L10: 1.25 | M10: 1.25 | T10: FL | U10: 2.25 | V10: =AVERAGE(M38:M40) -> 2.25
B11: AZ | C11: Tucson Electric | D11: Bright Tucson Community Solar Program | E11: local PV | F11: 2010 | G11: 2.0¢/kWh | I11: AZ | J11: 2 | L11: 2 | M11: 2 | T11: GA | U11: 3.455 | V11: =AVERAGE(M41:M44) -> 3.455
B12: AZ | C12: UniSource Energy Services | D12: Bright Arizona Community Solar Program | E12: local PV | F12: 2004 | G12: 2.0¢/kWh | I12: AZ | J12: 2 | L12: 2 | M12: 2 | T12: HI | U12: CONTRIBUTION
B13: AR | C13: Electric Cooperatives of Arkansas: (17 distribution coops) Arkansas Valley Electric Cooperative Corp., Ashley-Chicot Electric Cooperative, Inc., C&L Electric Cooperative Corp, Carroll Electric Cooperative Corp., Clay County Electric Cooperative Corp., Craighead Electric Cooperative Corp., Farmers Electric Cooperative Corp., First Electric Cooperative Corp., Mississippi County Electric Cooperative, Inc., North Arkansas Electric Cooperative, Inc. Ouachita Electric Cooperative Corp., Ozarks Electric Cooperative Corp., Petit Jean Electric Cooperative Corp., Rich Mountain Electric Cooperative, Inc. Southwest Arkansas Electric Cooperative Corp., South Central Arkansas Electric Cooperative, Inc., Woodruff Electric Cooperative Corp. | D13: ECA Green Power | E13: hydro, solar, and wind | F13: 2008 | G13: 5.0¢/kWh | I13: AR | J13: 5 | L13: 5 | M13: 5 | T13: IA | U13: 1.9 | V13: =AVERAGE(M61:M70) -> 1.9
B14: CA | C14: Alameda Municipal Power | D14: Alameda Green | E14: wind, solar | F14: 2012 | G14: 1.5¢/kWh | I14: CA | J14: 1.5 | L14: 1.5 | M14: 1.5 | T14: ID | U14: 1.133333333 | V14: =AVERAGE(M46:M49) -> 1.133333333
B15: CA | C15: Anaheim Public Utilities | D15: Green Power for the Grid | E15: various renewables | F15: 2002 | G15: 2.0¢/kWh | I15: CA | J15: 2 | L15: 2 | M15: 2 | T15: IL | U15: 1.733333333 | V15: =AVERAGE(M50:M52) -> 1.733333333
B16: CA | C16: Anaheim Public Utilities | D16: Sun Power for the Schools | E16: PV | F16: 2002 | G16: Contribution | I16: CA | J16: CONTRIBUTION | L16: CONTRIBUTION | M16: CONTRIBUTION | T16: IN | U16: 1.306 | V16: =AVERAGE(M53:M57) -> 1.306
B17: CA | C17: Los Angeles Department of Water and Power | D17: Green Power for a Green LA | E17: wind, hydro and PV | F17: 1999 | G17: 3.0¢/kWh | I17: CA | J17: 3 | L17: 3 | M17: 3 | T17: KS | U17: 1 | V17: =AVERAGE(M71) -> 1
B18: CA | C18: Marin Clean Energy: City of Belvedere, Town of Fairfax, County of Marin, City of Mill Valley, Town of San Anselmo, City of San Rafael, City of Sausalito, Town of Tiburon | D18: Local Sol | E18: 100% local solar | F18: 2014 | G18: 6.0¢/kWh | I18: CA | J18: 6 | L18: 6 | M18: 6 | T18: KY | U18: 2.3375 | V18: =AVERAGE(M72:M75) -> 2.3375
B19: CA | C19: Marin Clean Energy: City of Belvedere, Town of Fairfax, County of Marin, City of Mill Valley, Town of San Anselmo, City of San Rafael, City of Sausalito, Town of Tiburon | D19: Deep Green | E19: 100% renewable | F19: 2010 | G19: 1.0¢/kWh | I19: CA | J19: 1 | L19: 1 | M19: 1 | T19: LA
B20: CA | C20: Marin Clean Energy: City of Belvedere, Town of Fairfax, County of Marin, City of Mill Valley, Town of San Anselmo, City of San Rafael, City of Sausalito, Town of Tiburon | D20: Light Green | E20: 50% renewable | F20: 2008 | G20: 0.0¢/kWh | I20: CA | J20: 0 | L20: 0 | M20: 0 | T20: MA | U20: 2.5 | V20: =AVERAGE(M76:M79) -> 2.5
B21: CA | C21: PacifiCorp: Pacific Power | D21: Blue Sky Block | E21: wind | F21: 2000 | G21: 1.95¢/kWh | I21: CA | J21: 1.95 | L21: 1.95 | M21: 1.95 | T21: MI | U21: 2.05625 | V21: =AVERAGE(M80:M87) -> 2.05625
B22: CA | C22: Pasadena Water & Power | D22: Green Power | E22: wind | F22: 2003 | G22: 2.5¢/kWh | I22: CA | J22: 2.5 | L22: 2.5 | M22: 2.5 | T22: MN | U22: 1.7995 | V22: =AVERAGE(M88:M98) -> 1.7995
B23: CA | C23: Roseville Electric | D23: Green Roseville | E23: wind, PV | F23: 2005 | G23: 0.5¢/kWh | I23: CA | J23: 0.5 | L23: 0.5 | M23: 0.5 | T23: MO | U23: 2.2475 | V23: =AVERAGE(M100:M103) -> 2.2475
B24: CA | C24: Sacramento Municipal Utility District | D24: Greenergy | E24: 100% wind, PV, landfill gas, hydro, geothermal | F24: 1997 | G24: $6/month or 1.0¢/kWh | I24: CA | J24: 1 | L24: 1 | M24: 1 | T24: MS | U24: 2.67 | V24: =M99 -> 2.67
B25: CA | C25: Sacramento Municipal Utility District | D25: SolarShares | E25: PV | F25: 2007 | G25: $10.75/mo or 1.8¢/kWh | I25: CA | J25: 1.79166667 | L25: 1.79166667 | M25: 1.79166667 | T25: MT | U25: 1.11 | V25: =AVERAGE(M104:M108) -> 1.11
B26: CA | C26: Silicon Valley Power / 3Degrees | D26: Santa Clara Green Power | E26: wind, PV | F26: 2004 | G26: 1.5¢/kWh | I26: CA | J26: 1.5 | L26: 1.5 | M26: 1.5 | T26: NC | U26: 3.134 | V26: =AVERAGE(M119:M123) -> 3.134
B27: CA | C27: Sonoma Clean Power | D27: Clean Start | E27: 36% biomass, geothermal, wind | F27: 2014 | G27: 0.0¢/kWh | I27: CA | J27: 0 | L27: 0 | M27: 0 | T27: ND | U27: 1.15 | V27: =AVERAGE(M124:M126) -> 1.15
B28: CA | C28: Sonoma Clean Power | D28: Evergreen | E28: 100% geothermal | F28: 2014 | G28: 3.5¢/kWh | I28: CA | J28: 3.5 | L28: 3.5 | M28: 3.5 | T28: NE | U28: 1.25 | V28: =AVERAGE(M109:M110) -> 1.25
B29: CO | C29: Colorado Springs Utilities | D29: Renewable Energy Certificates Program | E29: wind and geothermal | F29: 2008 | G29: 0.34¢/kWh | I29: CO | J29: 0.34 | L29: 0.34 | M29: 0.34 | T29: NM | U29: 3.04 | V29: =AVERAGE(M114:M118) -> 3.04
B30: CO | C30: Colorado Springs Utilities | D30: Green Power | E30: wind | F30: 1999 | G30: 3.0¢/kWh | I30: CO | J30: 3 | L30: 3 | M30: 2.33 | T30: NV | U30: 1.95 | V30: =AVERAGE(M111:M113) -> 1.95
B31: CO | C31: Holy Cross Energy | D31: Wind Power Pioneers | E31: wind | F31: 1998 | G31: 0.5¢/kWh-1.25¢/kWh | I31: CO | J31: 0.5 | K31: 1.25 | L31: 1.25 | M31: 0.875 | T31: OH | U31: 1.4 | V31: =AVERAGE(M127:M130) -> 1.4
B32: CO | C32: Holy Cross Energy | D32: Local Renewable Energy Pool | E32: small hydro | F32: 2002 | G32: 2.33¢/kWh | I32: CO | J32: 2.33 | L32: 2.33 | M32: 2.33 | T32: OK | U32: 0.984 | V32: =AVERAGE(M131:M135) -> 0.984
B33: CO | C33: Platte River Power Authority: Estes Park, Fort Collins Utilities, Longmont Power & Communications, Loveland Water & Power | D33: Nature's Energy | E33: wind | F33: 1999 | G33: 1.3¢/kWh-2.96¢/kWh | I33: CO | J33: 1.3 | K33: 2.96 | L33: 2.96 | M33: 2.13 | T33: OR | U33: 1.395833333 | V33: =AVERAGE(M136:M149) -> 1.395833333
B34: CO | C34: Tri-State Generation & Transmission : Delta-Montrose Electric Association, Empire Electric Association, Inc., Gunnison County Electric Association, Inc., Highline Electric Association, La Plata Electric Association, Inc., Morgan County Rural Electric Association, Mountain Parks Electric, Inc., Mountain View Electric Association, Inc., Poudre Valley Rural Electric Association, Inc., San Isabel Electric Association, Inc., San Luis Valley Rural Electric Cooperative, Inc., San Miguel Power Association, Inc., Sangre de Cristo Electric Association, Inc., Southeast Colorado Power Association, United Power, Inc., White River Electric Association, Inc., Y-W Electric Association, Inc. | D34: Green Power Program | E34: wind, solar, and hydro | F34: 1998 | G34: 1.25¢/kWh | I34: CO | J34: 1.25 | L34: 1.25 | M34: 1.25 | T34: SC | U34: 3.75 | V34: =AVERAGE(M150:M153) -> 3.75
B35: CO | C35: Xcel Energy | D35: WindSource | E35: wind | F35: 1997 | G35: 2.16¢/kWh | I35: CO | J35: 2.16 | L35: 2.16 | M35: 2.16 | T35: SD | U35: 1.75 | V35: =AVERAGE(M154:M156) -> 1.75
B36: CO | C36: Yampa Valley Electric Association | D36: Green Power Options | E36: wind and solar | F36: 1999 | G36: 0.6¢/kWh | I36: CO | J36: 0.6 | L36: 0.6 | M36: 0.6 | T36: TN | U36: 2.67 | V36: =AVERAGE(M157) -> 2.67
B37: DE | C37: Delaware Electric Cooperative | D37: Renewable Energy Rider | E37: landfill gas | F37: 2006 | G37: 0.2¢/kWh | I37: DE | J37: 0.2 | L37: 0.2 | M37: 0.2 | T37: TX | U37: 2.445 | V37: =AVERAGE(M158:M161) -> 2.445
B38: FL | C38: PowerSouth Energy Cooperative: CHELCO, Escambia River Electric Cooperative, Gulf Coast Electric Cooperative, West Florida Electric Cooperative | D38: Green Power Choice | E38: landfill gas | F38: 2006 | G38: 2.0¢/kWh | I38: FL | J38: 2 | L38: 2 | M38: 2 | T38: UT | U38: 2.01 | V38: =AVERAGE(M162:M166) -> 2.01
B39: FL | C39: Tampa Electric Company (TECO) | D39: Renewable Energy | E39: PV, landfill, biomass co-firing (wood) | F39: 2001 | G39: 2.5¢/kWh | I39: FL | J39: 2.5 | L39: 2.5 | M39: 2.5 | T39: VA | U39: 1.3 | V39: =AVERAGE(M168) -> 1.3
B40: FL | C40: Utilities Commission City of New Smyrna Beach | D40: Green Fund | E40: local PV projects | F40: 1999 | G40: Contribution | I40: FL | J40: CONTRIBUTION | L40: CONTRIBUTION | M40: CONTRIBUTION | T40: VT | U40: 4 | V40: =M167 -> 4
B41: GA | C41: Georgia Electric Membership Corporation (35 of 42 coops offer program): Altamaha EMC, Amicalola EMC, Canoochee EMC, Carroll EMC, Central Georgia EMC, Cobb EMC, Coastal Electric, Colquitt EMC, Coweta-Fayette EMC, Diverse Power, Flint Energies, Grady EMC, GreyStone Power, Habersham EMC, Hart EMC, Irwin EMC, Jackson EMC, Jefferson Energy, Little Ocmulgee EMC, Middle Georgia EMC, Mitchell EMC, Ocmulgee EMC, Oconee EMC, Planters EMC, Rayle EMC, Sawnee EMC, Slash Pine EMC, Snapping Shoals EMC, Southern Rivers Energy, Sumter EMC, Three Notch EMC, Tri-County EMC, Upson EMC, Walton EMC, Washington EMC | D41: Green Power EMC | E41: landfill gas, PV in schools, wind, woodwaste | F41: 2001 | G41: 2.0¢/kWh-3.3¢/kWh | I41: GA | J41: 2 | K41: 3.3 | L41: 3.3 | M41: 2.65 | T41: WA | U41: 1.592857143 | V41: =AVERAGE(M169:M186) -> 1.592857143
B42: GA | C42: Georgia Power | D42: Premium Green Energy with Solar Option | E42: biomass and landfill gas with at least 50% solar | F42: 2006 | G42: 5.0¢/kWh | I42: GA | J42: 5 | L42: 5 | M42: 5 | T42: WI | U42: 1.815714286 | V42: =AVERAGE(M187:M194) -> 1.815714286
B43: GA | C43: Georgia Power | D43: Standard Green Energy Option | E43: biomass, landfill gas, and solar | F43: 2006 | G43: 3.5¢/kWh | I43: GA | J43: 3.5 | L43: 3.5 | M43: 3.5 | T43: WV
B44: GA | C44: TVA: Blue Ridge Mountain EMC, North Georgia EMC, Tri-State EMC | D44: Green Power Switch | E44: landfill gas, PV, wind | F44: 2000 | G44: 2.67¢/kWh | I44: GA | J44: 2.67 | L44: 2.67 | M44: 2.67 | T44: WY | U44: 1.248 | V44: =AVERAGE(M195:M200) -> 1.248
B45: HI | C45: Hawaiian Electric | D45: Sun Power for Schools | E45: PV in schools | F45: 1997 | G45: Contribution | I45: HI | J45: CONTRIBUTION | L45: CONTRIBUTION | M45: CONTRIBUTION
B46: ID | C46: Avista Utilities | D46: Buck-A-Block | E46: wind, solar and biomass | F46: 2002 | G46: 0.35¢/kWh | I46: ID | J46: 0.35 | L46: 0.35 | M46: 0.35
B47: ID | C47: Idaho Power | D47: Green Power Program | E47: wind | F47: 2001 | G47: Contribution | I47: ID | J47: CONTRIBUTION | L47: CONTRIBUTION | M47: CONTRIBUTION
B48: ID | C48: PacifiCorp: Rocky Mountain Power | D48: Blue Sky | E48: wind | F48: 2003 | G48: 1.95¢/kWh | I48: ID | J48: 1.95 | L48: 1.95 | M48: 1.95
B49: ID | C49: Vigilante Electric Cooperative | D49: Alternative Renewable Energy Program | E49: wind | F49: 2003 | G49: 1.1¢/kWh | I49: ID | J49: 1.1 | L49: 1.1 | M49: 1.1
B50: IL | C50: City of Naperville / Community Energy | D50: Renewable Energy Program | E50: wind, PV | F50: 2005 | G50: 2.5¢/kWh | I50: IL | J50: 2.5 | L50: 2.5 | M50: 2.5
B51: IL | C51: Dairyland Power Cooperative: Jo-Carroll Energy/Elizabeth | D51: Evergreen Renewable Energy Program | E51: landfill gas, biogas, hydro, wind | F51: 1997 | G51: 1.5¢/kWh | I51: IL | J51: 1.5 | L51: 1.5 | M51: 1.5
B52: IL | C52: Wabash Valley Power Association (10 of 25 coops offer program): Boone REMC, Fulton County REMC, Kankakee Valley REMC, Kosciusko REMC, LaGrange County REMC, Miami-Cass REMC, NineStar Connect, Northeastern REMC, Parke County REMC, Tipmont REMC | D52: EnviroWatts | E52: wind, landfill gas | F52: 2000 | G52: 0.9¢/kWh-1.5¢/kWh | I52: IL | J52: 0.9 | K52: 1.5 | L52: 1.5 | M52: 1.2
B53: IN | C53: Duke Energy | D53: GoGreen Power | E53: wind, PV, landfill gas, digester gas | F53: 2001 | G53: 1.8-2.0¢/kWh | I53: IN | J53: 1.8 | K53: 2 | L53: 2 | M53: 1.9
B54: IN | C54: Hoosier Energy (6 of 17 coops offer program): Daviess-Martin County REMC, Decatur County REMC, Henry County REMC, South Central Indiana REMC, Southeastern Indiana REMC, Utilities District of Western Indiana REMC | D54: EnviroWatts | E54: landfill gas, wind and hydro | F54: 2001 | G54: 2.0¢/kWh-4.0¢/kWh | I54: IN | J54: 2 | K54: 4 | L54: 4 | M54: 3
B55: IN | C55: Indianapolis Power & Light | D55: Green Power Option | E55: wind | F55: 1998 | G55: 0.2¢/kWh | I55: IN | J55: 0.2 | L55: 0.2 | M55: 0.2
B56: IN | C56: Northern Indiana Public Service Company | D56: Green Power Program | E56: 100% wind | F56: 2013 | G56: 0.23¢/kWh | I56: IN | J56: 0.23 | L56: 0.23 | M56: 0.23
B57: IN | C57: Wabash Valley Power Association (10 of 25 coops offer program): Boone REMC, Fulton County REMC, Kankakee Valley REMC, Kosciusko REMC, LaGrange County REMC, Miami-Cass REMC, NineStar Connect, Northeastern REMC, Parke County REMC, Tipmont REMC | D57: EnviroWatts | E57: wind, landfill gas | F57: 2000 | G57: 0.9¢/kWh-1.5¢/kWh | I57: IN | J57: 0.9 | K57: 1.5 | L57: 1.5 | M57: 1.2
B58: IA | C58: Alliant Energy | D58: Second Nature | E58: landfill gas, wind | F58: 2001 | G58: 2.0¢/kWh | I58: IA | J58: 2 | L58: 2 | M58: 2
B59: IA | C59: Associated Electric Cooperative, Inc.: Access Energy Cooperative, Chariton Valley Electric Cooperative, Southern Iowa Electric Cooperative | D59: varies by utility | E59: biomass, wind | F59: 2003 | G59: 2.0¢/kWh-3.5¢/kWh | I59: IA | J59: 2 | K59: 3.5 | L59: 3.5 | M59: 2.75
B60: IA | C60: Basin Electric Power Cooperative: Lyon Rural, Harrison County, Nishnabotna Valley Cooperative, Northwest Rural Electric Cooperative, Western Iowa | D60: Prairie Winds | E60: wind | F60: 2000 | G60: varies by utillity | I60: IA | J60: VARIES BY UTILITY | L60: VARIES BY UTILITY | M60: VARIES BY UTILITY
B61: IA | C61: Cedar Falls Utilities | D61: Harvest the Wind | E61: wind | F61: 2000 | G61: 2.5¢/kWh | I61: IA | J61: 2.5 | L61: 2.5 | M61: 2.5
B62: IA | C62: Central Iowa Power Cooperatives (all 12 coops/1 muni): Maquoketa Valley Electric Cooperative, Eastern Iowa REC, East-Central Iowa REC, Linn County REC, Pella, TIP Rural Electric Cooperative, Clarke Electric Cooperative, Midland Power Cooperative, Guthrie County REC, Farmers Electric Cooperative, Southwest Iowa REC, Consumer Energy, South Iowa Municipal Electric Cooperative Association | D62: Alternative Energy Contribution Program | E62: wind | F62: 2006 | G62: 2.0¢/kWh | I62: IA | J62: 2 | L62: 2 | M62: 2
B63: IA | C63: Corn Belt Power Cooperatives (5 of 11 coops offer program): Butler County REC, Franklin REC, Grundy County REC, Humboldt County REC, Sac County REC | D63: Energy Wise Renewables | E63: wind | F63: 2003 | G63: 1.5¢/kWh | I63: IA | J63: 1.5 | L63: 1.5 | M63: 1.5
B64: IA | C64: Dairyland Power Cooperative: Allamakee-Clayton/Postville, Hawkeye Tri-County/Cresco, Heartland Power/Thompson & St. Ansgar | D64: Evergreen Renewable Energy Program | E64: hydro, wind, landfill gas, biogas and solar | F64: 1998 | G64: 1.5¢/kWh | I64: IA | J64: 1.5 | L64: 1.5 | M64: 1.5
B65: IA | C65: Farmers Electric Cooperative | D65: Green Power Project | E65: biodiesel, wind | F65: 2004 | G65: Contribution | I65: IA | J65: CONTRIBUTION | L65: CONTRIBUTION | M65: CONTRIBUTION
B66: IA | C66: Iowa Association of Municipal Utilities (84 of 137 munis offer program) Afton, Algona, Alta Vista, Aplington, Auburn, Bancroft, Bellevue, Bloomfield, Breda, Brooklyn, Buffalo, Burt, Callender, Carlisle, Cascade, Coggon, Coon Rapids, Corning, Corwith, Danville, Dayton, Durant, Dysart, Earlville, Eldridge, Ellsworth, Estherville, Fairbank, Farnhamville, Fontanelle, Forest City, Gowrie, Grafton, Grand Junction, Greenfield, Grundy Center, Guttenberg, Hopkinton, Hudson, Independence, Keosauqua, La Porte City, Lake Mills, Lake View, Laurens, Lenox, Livermore, Maquoketa, Marathon, McGregor, Milford, Montezuma, Mount Pleasant, Neola, New Hampton, Ogden, Orient, Osage, Panora, Pella, Pocahontas, Preston, Readlyn, Rockford, Sabula, Sergeant Bluff, Sibley, Spencer, Stanhope, State Center, Stratford, Strawberry Point, Stuart, Tipton, Villisca, Vinton, Webster City, West Bend, West Liberty, West Point, Westfield, Whittemore, Wilton, Winterset | D66: Green City Energy | E66: wind, biomass, PV | F66: 2003 | G66: Varies by utility | I66: IA | J66: VARIES BY UTILITY | L66: VARIES BY UTILITY | M66: VARIES BY UTILITY
B67: IA | C67: MidAmerican Energy | D67: Renewable Advantage | E67: wind | F67: 2004 | G67: Contribution | I67: IA | J67: CONTRIBUTION | L67: CONTRIBUTION | M67: CONTRIBUTION
B68: IA | C68: Missouri River Energy Services: Alton, Atlantic, Denison, Fontanelle, Hartley, Hawarden, Kimballton, Lake Park, Manilla, Orange City, Paullina, Primghar, Remsen, Rock Rapids, Sanborn, Shelby, Sioux Center, Woodbine | D68: RiverWinds | E68: wind | F68: 2003 | G68: 2.0¢/kWh | I68: IA | J68: 2 | L68: 2 | M68: 2
B69: IA | C69: Muscatine Power and Water | D69: Green Muscatine | E69: PV, wind, geothermal | F69: 2004 | G69: Contribution | I69: IA | J69: CONTRIBUTION | L69: CONTRIBUTION | M69: CONTRIBUTION
B70: IA | C70: Waverly Light & Power | D70: Green Power Choice | E70: wind | F70: 2003 | G70: Contribution | I70: IA | J70: CONTRIBUTION | L70: CONTRIBUTION | M70: CONTRIBUTION
B71: KS | C71: Westar Energy | D71: Renewable Energy Program Rider | E71: wind | F71: 2012 | G71: 1.0¢/kWh | I71: KS | J71: 1 | L71: 1 | M71: 1
B72: KY | C72: Big Rivers Electric Corporation: Jackson Purchase Energy Corporation, Kenergy Corporation, Meade County Rural Electric Cooperative Corporation | D72: Renewable Resources Energy (EnviroWatts) | E72: 100% biomass | F72: 2007 | G72: 3.63¢/kWh | I72: KY | J72: 3.63 | L72: 3.63 | M72: 3.63
B73: KY | C73: East Kentucky Power Cooperative: Blue Grass Energy, Clark, Cumberland, Fleming-Mason, Grayson, Inter-County Energy, Jackson, Licking Valley, Nolin, Owen Electric, Salt River, Shelby, South Kentucky | D73: EnviroWatts | E73: landfill gas | F73: 2002 | G73: 2.75¢/kWh | I73: KY | J73: 2.75 | L73: 2.75 | M73: 2.75
B74: KY | C74: E.ON U.S.: Louisville Gas and Electric Co., Kentucky Utilities Co. | D74: Green Energy | E74: biomass, low impact hydro, wind | F74: 2007 | G74: 0.3¢/kWh | I74: KY | J74: 0.3 | L74: 0.3 | M74: 0.3
B75: KY | C75: TVA: Bowling Green Municipal Utilities, Franklin Electric Plant Board, Hopkinsville Electric System, Murray Electric System, Pennyrile Rural Electric Coop, Russellville Electric Plant Board, Tri-County Electric, Warren Rural Electric Coop | D75: Green Power Switch | E75: landfill gas, PV, wind | F75: 2000 | G75: 2.67¢/kWh | I75: KY | J75: 2.67 | L75: 2.67 | M75: 2.67
B76: MA | C76: Braintree Electric Light Department | D76: BGreen | E76: solar and wind | F76: 2009 | G76: Contribution | I76: MA | J76: CONTRIBUTION | L76: CONTRIBUTION | M76: CONTRIBUTION
B77: MA | C77: Concord Municipal Light Plant (CMLP) | D77: Green Power | E77: hydro | F77: 2004 | G77: 3.0¢/kWh | I77: MA | J77: 3 | L77: 3 | M77: 3
B78: MA | C78: Shrewsbury Electric and Cable Operations | D78: SELCO Green Light | E78: wind | F78: 2009 | G78: 0.5¢/kWh | I78: MA | J78: 0.5 | L78: 0.5 | M78: 0.5
B79: MA | C79: Wellesley Municipal Light Plant | D79: Wellesley Renewable Energy | E79: solar, wind and biomass | F79: 2009 | G79: 4.0¢/kWh | I79: MA | J79: 4 | L79: 4 | M79: 4
B80: MI | C80: Consumers Energy | D80: Green Generation | E80: 75% wind, 25% landfill gas | F80: 2005 | G80: 1.0¢/kWh | I80: MI | J80: 1 | L80: 1 | M80: 1
B81: MI | C81: DTE Energy | D81: GreenCurrents | E81: wind, biomass | F81: 2007 | G81: 2.0¢/kWh-2.5¢/kWh | I81: MI | J81: 2 | K81: 2.5 | L81: 2.5 | M81: 2.25
B82: MI | C82: Lansing Board of Water and Light | D82: GreenWise Electric Power | E82: landfill gas, small hydro | F82: 2001 | G82: 3.0¢/kWh | I82: MI | J82: 3 | L82: 3 | M82: 3
B83: MI | C83: Upper Peninsula Power Company | D83: UPPCO Green | E83: wind, solar, and biomass | F83: 2004 | G83: 2.4¢/kWh | I83: MI | J83: 2.4 | L83: 2.4 | M83: 2.4
B84: MI | C84: Wabash Valley Power Association (10 of 25 coops offer program): Boone REMC, Fulton County REMC, Kankakee Valley REMC, Kosciusko REMC, LaGrange County REMC, Miami-Cass REMC, NineStar Connect, Northeastern REMC, Parke County REMC, Tipmont REMC | D84: EnviroWatts | E84: wind, landfill gas | F84: 2000 | G84: 0.9¢/kWh-1.5¢/kWh | I84: MI | J84: 0.9 | K84: 1.5 | L84: 1.5 | M84: 1.2
B85: MI | C85: We Energies | D85: Energy for Tomorrow | E85: wind, landfill gas, hydro, PV | F85: 2000 | G85: 3.0¢/kWh | I85: MI | J85: 3 | L85: 3 | M85: 3
B86: MI | C86: Wisconsin Public Service | D86: NatureWise | E86: wind, solar and biomass | F86: 2002 | G86: 2.4¢/kWh | I86: MI | J86: 2.4 | L86: 2.4 | M86: 2.4
B87: MI | C87: Xcel Energy | D87: WindSource | E87: wind | F87: 2011 | G87: 1.2¢/kWh | I87: MI | J87: 1.2 | L87: 1.2 | M87: 1.2
B88: MN | C88: Alliant Energy | D88: Second Nature | E88: landfill gas, wind | F88: 2002 | G88: 2.0¢/kWh | I88: MN | J88: 2 | L88: 2 | M88: 2
B89: MN | C89: Basin Electric Power Cooperative: Minnesota Valley Electric Coop, Sioux Valley Southwestern | D89: Prairie Winds | E89: wind | F89: 2002 | G89: varies by utillity | I89: MN | J89: VARIES BY UTILITY | L89: VARIES BY UTILITY | M89: VARIES BY UTILITY
B90: MN | C90: Central Minnesota Municipal Power Agency: Blue Earth, Delano, Glencoe, Granite Falls, Janesville, Kenyon, Lake Crystal, Madelia, Mt. Lake, New Ulm, Sleepy Eye, Springfield, Truman, and Windom | D90: Green Energy Program | E90: wind, landfill gas | F90: 2000 | G90: 1.5¢/kWh-2.5¢/kWh | I90: MN | J90: 1.5 | K90: 2.5 | L90: 2.5 | M90: 2
B91: MN | C91: Dairyland Power Cooperative: Freeborn-Mower Cooperative / Albert Lea, People's / Rochester, Tri-County / Rushford | D91: Evergreen Renewable Energy Program | E91: hydro, wind, landfill gas, biogas | F91: 1998 | G91: 1.5¢/kWh | I91: MN | J91: 1.5 | L91: 1.5 | M91: 1.5
B92: MN | C92: Great River Energy (all 28 coops offer program): Agralite, Arrowhead, BENCO Electric, Brown County Rural Electric, Connexus Energy, Co-op Light & Power, Crow Wing Power, Dakota Electric Association, East Central Electric Association, Federated Rural Electric, Goodhue County, Itasca Mantrap Cooperative, Kandiyohi Power Cooperative, Lake Country Power, Lake Region Electric Cooperative, McLeod Cooperative Power, Meeker Cooperative Light & Power, Mille Lacs Electric Cooperative, Minnesota Valley, Nobles Cooperative Electric, North Itasca, Redwood Electric Cooperative, Runestone Electric, South Central Electric Association, Stearns Electric, Steele-Waseca, Todd-Wadena, Wright-Hennepin Electric | D92: Wellspring Renewable Wind Energy Program | E92: wind | F92: 1998 | G92: 0.4¢/kWh | I92: MN | J92: 0.4 | L92: 0.4 | M92: 0.4
B93: MN | C93: Minnesota Power | D93: WindSense | E93: wind | F93: 2002 | G93: 2.5¢/kWh | I93: MN | J93: 2.5 | L93: 2.5 | M93: 2.5
B94: MN | C94: Minnkota Power Cooperative: Beltrami, Clearwater Polk, North Star, PKM, Red Lake, Red River, Roseau, Wild Rice; Northern Municipal Power Agency (10 municipals) | D94: Infinity Wind Energy | E94: wind | F94: 1999 | G94: 0.5¢/kWh | I94: MN | J94: 0.5 | L94: 0.5 | M94: 0.5
B95: MN | C95: Missouri River Energy Services: Adrian, Alexandria, Barnesville, Benson, Breckenridge, Detroit Lakes, Elbow Lake, Henning, Jackson, Lakefield, Lake Park, Luverne, Madison, Moorhead, Ortonville, St. James, Sauk Centre, Staples, Wadena, Westbrook, Worthington | D95: RiverWinds | E95: wind | F95: 2002 | G95: 2.0¢/kWh-2.5¢/kWh | I95: MN | J95: 2 | K95: 2.5 | L95: 2.5 | M95: 2
B96: MN | C96: Moorhead Public Service | D96: Capture the Wind | E96: wind | F96: 1998 | G96: 0.5¢/kWh | I96: MN | J96: 0.5 | L96: 0.5 | M96: 5
B97: MN | C97: Otter Tail Power Company | D97: TailWinds | E97: wind | F97: 2002 | G97: 1.3¢/kWh | I97: MN | J97: 1.3 | L97: 1.3 | M97: 1.3
B98: MN | C98: Xcel Energy | D98: WindSource | E98: wind | F98: 2003 | G98: 0.795¢/kWh | I98: MN | J98: 0.795 | L98: 0.795 | M98: 0.795
B99: MS | C99: TVA: 4-County Electric Power Association, Alcorn Electric Power Association, Central Electric Power Association, Columbus Light & Water, North East Mississippi Electric Power Association, Northcentral MS EPA, City of Okolona Electric Dept., City of Oxford Electric Dept., Starkville Electric System, Tallahatchie Valley EPA, Tippah Electric Power Association, Tishomingo County Electric Power Association, Tupelo Water & Light Department | D99: Green Power Switch | E99: landfill gas, PV, wind | F99: 2000 | G99: 2.67¢/kWh | I99: MS | J99: 2.67 | L99: 2.67 | M99: 2.67
B100: MO | C100: Ameren Missouri | D100: Pure Power | E100: wind | F100: 2007 | G100: 1.0¢/kWh | I100: MO | J100: 1 | L100: 1 | M100: 1
B101: MO | C101: Associated Electric Cooperative, Inc.: Black River Electric Cooperative, Boone Electric Cooperative, Callaway Electric Cooperative, Co-Mo Electric Cooperative , Crawford Electric Cooperative, Cuivre River Electric Cooperative, Howell-Oregon Electric Cooperative, Intercounty Electric Cooperative, Laclede Electric Cooperative, Lewis County Rural Electric Cooperative, Macon Electric Cooperative, White River Valley Electric Cooperative | D101: varies by utility | E101: biomass, wind | F101: 2003 | G101: 2.0¢/kWh-3.5¢/kWh | I101: MO | J101: 2 | K101: 3.5 | L101: 3.5 | M101: 2.75
B102: MO | C102: City Utilities of Springfield | D102: CU Solar Initiative | E102: solar | F102: 2000 | G102: 4.04¢/kWh | I102: MO | J102: 4.04 | L102: 4.04 | M102: 4.04
B103: MO | C103: Wabash Valley Power Association (10 of 25 coops offer program): Boone REMC, Fulton County REMC, Kankakee Valley REMC, Kosciusko REMC, LaGrange County REMC, Miami-Cass REMC, NineStar Connect, Northeastern REMC, Parke County REMC, Tipmont REMC | D103: EnviroWatts | E103: wind, landfill gas | F103: 2000 | G103: 0.9¢/kWh-1.5¢/kWh | I103: MO | J103: 0.9 | K103: 1.5 | L103: 1.5 | M103: 1.2
B104: MT | C104: Basin Electric Power Cooperative: Flathead Electric Coop, Lower Yellowstone, Powder River Energy | D104: Prairie Winds | E104: wind | F104: 2000 | G104: varies by utillity | I104: MT | J104: VARIES BY UTILITY | L104: VARIES BY UTILITY | M104: VARIES BY UTILITY
B105: MT | C105: Northwestern Energy | D105: E+ Green | E105: wind, PV | F105: 2003 | G105: 2.0¢/kWh | I105: MT | J105: 2 | L105: 2 | M105: 2
B106: MT | C106: Park Electric Cooperative | D106: Green Power Program | E106: various renewables | F106: 2002 | G106: 0.09¢/kWh | I106: MT | J106: 0.09 | L106: 0.09 | M106: 0.09
B107: MT | C107: Tri-State Generation & Transmission: Big Horn Rural Electric Company | D107: Renewable Resource Power Service | E107: wind, hydro | F107: 2001 | G107: 1.25¢/kWh | I107: MT | J107: 1.25 | L107: 1.25 | M107: 1.25
B108: MT | C108: Vigilante Electric Cooperative | D108: Alternative Renewable Energy Program | E108: wind | F108: 2003 | G108: 1.1¢/kWh | I108: MT | J108: 1.1 | L108: 1.1 | M108: 1.1
B109: NE | C109: Omaha Public Power District | D109: Green Power Program | E109: landfill gas, wind | F109: 2002 | G109: Contribution | I109: NE | J109: CONTRIBUTION | L109: CONTRIBUTION | M109: CONTRIBUTION
B110: NE | C110: Tri-State Generation & Transmission: Chimney Rock Public Power District, Highline Electric Association, Northwest Rural Public Power District | D110: Renewable Resource Power Service | E110: wind, hydro | F110: 2001 | G110: 1.25¢/kWh | I110: NE | J110: 1.25 | L110: 1.25 | M110: 1.25
B111: NV | C111: Deseret Power: Mt. Wheeler Power Cooperative | D111: GreenWay | E111: various | F111: 2005 | G111: 1.95¢/kWh | I111: NV | J111: 1.95 | L111: 1.95 | M111: 1.95
B112: NV | C112: NV Energy | D112: Desert Research Institute's GreenPower Program | E112: PV on schools | F112: Unknown | G112: Contribution | I112: NV | J112: CONTRIBUTION | L112: CONTRIBUTION | M112: CONTRIBUTION
B113: NV | C113: NV Energy | D113: NV Green Energy Rate | E113: 50% or 100% renewables | F113: 2013 | G113: varies quarterly | I113: NV | J113: VARIES QUARTERLY | L113: VARIES QUARTERLY | M113: VARIES QUARTERLY
B114: NM | C114: El Paso Electric Company | D114: Renewable Energy Tariff | E114: solar, wind, geothermal, hydro and biomass | F114: 2003 | G114: 5.84¢/kWh | I114: NM | J114: 5.84 | L114: 5.84 | M114: 5.84
B115: NM | C115: Los Alamos Department of Public Utilities | D115: LA Green | E115: wind, solar and hydro | F115: 2013 | G115: 0.5¢/kWh | I115: NM | J115: 0.5 | L115: 0.5 | M115: 0.5
B116: NM | C116: Public Service of New Mexico | D116: PNM Sky Blue | E116: solar and wind | F116: 2003 | G116: 1.7¢/kWh | I116: NM | J116: 1.7 | L116: 1.7 | M116: 1.7
B117: NM | C117: Tri-State Generation & Transmission: Central New Mexico Electric Cooperative, Inc., Columbus Electric Cooperative, Inc., Continental Divide Electric Cooperative, Inc., Jemez Mountains Electric Cooperative, Inc., Kit Carson Electric Cooperative, Inc., Mora-San Miguel Electric Cooperative, Inc., Navopache Electric Cooperative, Northern Rio Arriba Electric Cooperative, Otero County Electric Cooperative, Inc., Sierra Electric Cooperative, Inc., Socorro Electric Cooperative, Inc., Southwestern Electric Cooperative, Inc., Springer Electric Cooperative, Inc. | D117: Renewable Resource Power Service | E117: wind, hydro | F117: 2001 | G117: varies by utility | I117: NM | J117: VARIES BY UTILITY | L117: VARIES BY UTILITY | M117: VARIES BY UTILITY
B118: NM | C118: Xcel Energy | D118: WindSource | E118: wind | F118: 1999 | G118: 4.12¢/kWh | I118: NM | J118: 4.12 | L118: 4.12 | M118: 4.12
B119: NC | C119: Dominion North Carolina Power | D119: NC GreenPower | E119: biomass, hydro, landfill gas, PV, wind | F119: 2003 | G119: 2.5¢/kWh-4.0¢/kWh | I119: NC | J119: 2.5 | K119: 4 | L119: 4 | M119: 3.25
B120: NC | C120: Duke Energy | D120: NC GreenPower | E120: biomass, hydro, landfill gas, PV, wind | F120: 2003 | G120: 2.5¢/kWh-4.0¢/kWh | I120: NC | J120: 2.5 | K120: 4 | L120: 4 | M120: 3.25
B121: NC | C121: ElectriCities: City of Albemarle, Town of Apex, City of Concord, Town of Cornelius, Fayetteville PWC, Town of Granite Falls, Greenville Utilities, City of High Point, Town of Huntersville, City of Kinston, City of Laurinburg, City of Lexington, City of Monroe, City of New Bern, City of Newton, City of Shelby, City of Statesville, Town of Wake Forest, City of Washington, Town of Waynesville, City of Wilson-Wilson Energy | D121: NC GreenPower | E121: biomass, hydro, landfill gas, PV, wind | F121: 2003 | G121: 2.5¢/kWh-4.0¢/kWh | I121: NC | J121: 2.5 | K121: 4 | L121: 4 | M121: 3.25
B122: NC | C122: Progress Energy / CP&L | D122: NC GreenPower | E122: biomass, hydro, landfill gas, PV, wind | F122: 2003 | G122: 2.5¢/kWh-4.0¢/kWh | I122: NC | J122: 2.5 | K122: 4 | L122: 4 | M122: 3.25
B123: NC | C123: TVA: Mountain Electric Cooperative | D123: Green Power Switch | E123: landfill gas, PV, wind | F123: 2000 | G123: 2.67¢/kWh | I123: NC | J123: 2.67 | L123: 2.67 | M123: 2.67
B124: ND | C124: Basin Electric Power Cooperative: Burke Divide, Capital, Dakota Valley, KEM Electric Coop, Oliver Mercer Electric Coop, McKenzie Electric Coop, Montrail Williams, Mor-gran-sou Electric Coop, North Central Electric Coop, Northern Plains, Slope Electric Coop, Verendrye, West Plains | D124: PrairieWinds | E124: wind | F124: 2000 | G124: varies by utillity | I124: ND | J124: VARIES BY UTILITY | L124: VARIES BY UTILITY | M124: VARIES BY UTILITY
B125: ND | C125: Minnkota Power Cooperative: Cass County Electric, Cavalier Rural Electric, Nodak Electric; Northern Municipal Power Agency (2 municipals) | D125: Infinity Wind Energy | E125: wind | F125: 1999 | G125: 0.3¢/kWh | I125: ND | J125: 0.3 | L125: 0.3 | M125: 0.3
B126: ND | C126: Missouri River Energy Services: City of Lakota | D126: RiverWinds | E126: wind | F126: 2002 | G126: 2.0¢/kWh | I126: ND | J126: 2 | L126: 2 | M126: 2
B127: OH | C127: American Municipal Power-Ohio / Green Mountain Energy: City of Bowling Green, Cuyahoga Falls, Westerville, Wyandotte, Yellow Springs | D127: EcoSmart Choice | E127: small hydro, landfill gas, wind | F127: 2009 | G127: 0.5¢/kWh | I127: OH | J127: 0.5 | L127: 0.5 | M127: 0.5
B128: OH | C128: Buckeye Power (Ohio Rural Electric Cooperatives) | D128: EnviroWatts | E128: wind, solar, bio-digesters, landfill gas | F128: 2006 | G128: 2.0¢/kWh | I128: OH | J128: 2 | L128: 2 | M128: 2
B129: OH | C129: Duke Energy | D129: GoGreen Power | E129: wind, PV, landfill gas, digester gas | F129: 2001 | G129: 1.8-2.0¢/kWh | I129: OH | J129: 1.8 | K129: 2 | L129: 2 | M129: 1.9
B130: OH | C130: Wabash Valley Power Association (10 of 25 coops offer program): Boone REMC, Fulton County REMC, Kankakee Valley REMC, Kosciusko REMC, LaGrange County REMC, Miami-Cass REMC, NineStar Connect, Northeastern REMC, Parke County REMC, Tipmont REMC | D130: EnviroWatts | E130: wind, landfill gas | F130: 2000 | G130: 0.9¢/kWh-1.5¢/kWh | I130: OH | J130: 0.9 | K130: 1.5 | L130: 1.5 | M130: 1.2
B131: OK | C131: Associated Electric Cooperative, Inc.: Central Rural Electric Cooperative | D131: varies by utility | E131: biomass, wind | F131: 2003 | G131: 2.0¢/kWh-3.5¢/kWh | I131: OK | J131: 2 | K131: 3.5 | L131: 3.5 | M131: 2.75
B132: OK | C132: OG&E Electric Services | D132: OG&E Wind Power | E132: wind | F132: 2003 | G132: 0.35¢/kWh-0.45¢/kWh | I132: OK | J132: 0.35 | K132: 0.45 | L132: 0.45 | M132: 0.4
B133: OK | C133: Oklahoma Municipal Power Authority: Tonkawa, Altus, Frederick, Okeene, Prague Municipal Utilities and Edmond Electric | D133: Pure & Simple | E133: wind | F133: 2004 | G133: 0.27¢/kWh | I133: OK | J133: 0.27 | L133: 0.27 | M133: 0.27
B134: OK | C134: Public Service Company of Oklahoma | D134: WindChoice | E134: 100% wind | F134: 2011 | G134: 1.0¢/kWh | I134: OK | J134: 1 | L134: 1 | M134: 1
B135: OK | C135: Western Farmers Electric Cooperative (19 of 19 coops offer program): Alfalfa Electric Cooperative, Caddo Electric Cooperative, Canadian Valley Electric Cooperative, Choctaw Electri Cooperative, Cimmaron Electric Cooperative, Cotton Electric Cooperative, East Central Oklahoma Electric Cooperative, Harmon Electric Cooperative, Kay Electric Cooperative, Kiamichi Electric Cooperative, Kiwash Electric Cooperative, Northfork Electric Cooperative, Northwestern Electric Cooperative, Oklahoma Electric Cooperative, People's Electric Cooperative, Red River Valley Rural Electric Cooperative, Rural Electric Cooperative, Southeastern Electric Cooperative, Southwest Rural Electric Cooperative | D135: WindWorks | E135: wind | F135: 2004 | G135: 0.5¢/kWh | I135: OK | J135: 0.5 | L135: 0.5 | M135: 0.5
B136: OR | C136: City of Ashland / Bonneville Environmental Foundation | D136: Renewable Pioneers | E136: PV, wind | F136: 2003 | G136: 2.0¢/kWh | I136: OR | J136: 2 | L136: 2 | M136: 2
B137: OR | C137: Columbia River PUD | D137: Choice Energy | E137: wind | F137: 2005 | G137: 1.5¢/kWh | I137: OR | J137: 1.5 | L137: 1.5 | M137: 1.5
B138: OR | C138: Emerald People's Utility District | D138: GREEN for Homes | E138: wind and landfill gas | F138: 2011 | G138: 0.8¢/kWh | I138: OR | J138: 0.8 | L138: 0.8 | M138: 0.8
B139: OR | C139: Eugene Water & Electric Board | D139: EWEB Greenpower | E139: various renewables | F139: 2007 | G139: 1.0¢/kWh-1.5¢/kWh | I139: OR | J139: 1 | K139: 1.5 | L139: 1.5 | M139: 1.25
B140: OR | C140: Idaho Power | D140: Green Power Program | E140: wind | F140: 2001 | G140: Contribution | I140: OR | J140: CONTRIBUTION | L140: CONTRIBUTION | M140: CONTRIBUTION
B141: OR | C141: Midstate Electric Cooperative | D141: Environmentally-Preferred Power | E141: wind | F141: 1999 | G141: 2.5¢/kWh | I141: OR | J141: 2.5 | L141: 2.5 | M141: 2.5
B142: OR | C142: Oregon Trail Electric Cooperative | D142: Green Power | E142: wind | F142: 2002 | G142: 1.5¢/kWh | I142: OR | J142: 1.5 | L142: 1.5 | M142: 1.5
B143: OR | C143: Pacific Northwest Generating Cooperative: Blachly-Lane Electric Cooperative, Central Electric Cooperative, Clearwater Power, Consumers Power, Coos-Curry Electric Cooperative, Douglas Electric Cooperative, Fall River Rural Electric Cooperative, Lost River Electric Cooperative, Raft River Rural Electric Cooperative, Umatilla Electric Cooperative, West Oregon Electric Cooperative, (11 of 15 coops offer program) | D143: Green Power | E143: landfill gas | F143: 1998 | G143: 1.8¢/kWh-2.0¢/kWh | I143: OR | J143: 1.8 | K143: 2 | L143: 2 | M143: 1.9
B144: OR | C144: PacifiCorp: Pacific Power | D144: Blue Sky Block | E144: wind | F144: 2000 | G144: 1.95¢/kWh | I144: OR | J144: 1.95 | L144: 1.95 | M144: 1.95
B145: OR | C145: PacifiCorp: Pacific Power | D145: Blue Sky QS (Commercial Only) | E145: wind | F145: 2004 | G145: Sliding scale depending on size | I145: OR | J145: SLIDING SCALE | L145: SLIDING SCALE | M145: SLIDING SCALE
B146: OR | C146: Portland General Electric / Green Mountain Energy Company | D146: Clean Wind for Medium to Large Commercial & Industrial Accounts | E146: wind | F146: 2002 | G146: 0.3¢/kWh | I146: OR | J146: 0.3 | L146: 0.3 | M146: 0.3
B147: OR | C147: Portland General Electric / Green Mountain Energy Company | D147: Clean Wind | E147: wind | F147: 2002 | G147: 1.25¢/kWh | I147: OR | J147: 1.25 | L147: 1.25 | M147: 1.25
B148: OR | C148: Portland General Electric / Green Mountain Energy Company | D148: Green Source | E148: wind, landfill gas, low-impact hydro | F148: 2002 | G148: 0.8¢/kWh | I148: OR | J148: 0.8 | L148: 0.8 | M148: 0.8
B149: OR | C149: Springfield Utility Board | D149: ECOchoice | E149: various | F149: 2007 | G149: 1.0¢/kWh | I149: OR | J149: 1 | L149: 1 | M149: 1
B150: SC | C150: Duke Energy Carolinas | D150: Palmetto Clean Energy (PaCE) | E150: wind, solar, landfill gas | F150: 2008 | G150: 4.0¢/kWh | I150: SC | J150: 4 | L150: 4 | M150: 4
B151: SC | C151: Progress Energy Carolinas | D151: Palmetto Clean Energy (PaCE) | E151: wind, solar, landfill gas | F151: 2008 | G151: 4.0¢/kWh | I151: SC | J151: 4 | L151: 4 | M151: 4
B152: SC | C152: Santee Cooper: Aiken Electric Cooperative, Berkeley Electric Cooperative, Blue Ridge Electric, Coastal Electric Cooperative, Edisto Electric Cooperative, Fairfield Electric Cooperative, Horry Electric Cooperative, Laurens Electric Cooperative, Lynches River Electric Cooperative, Marlboro Electric Cooperative, Mid-Carolina Electric Cooperative, Palmetto Electric Cooperative, Pee Dee Electric Cooperative, Santee Electric Cooperative, Tri-County Electric Cooperative, York Electric Cooperative | D152: Green Power Program | E152: landfill gas, wind, solar | F152: 2001 | G152: 3.0¢/kWh | I152: SC | J152: 3 | L152: 3 | M152: 3
B153: SC | C153: SCE&G | D153: Palmetto Clean Energy (PaCE) | E153: wind, solar, landfill gas | F153: 2008 | G153: 4.0¢/kWh | I153: SC | J153: 4 | L153: 4 | M153: 4
B154: SD | C154: Basin Electric Power Cooperative: Bon Homme-Yankton Electric Assn., Central Electric Cooperative Association, Charles Mix Electric Association, City of Elk Point, Clay-Union Electric Corporation, Codington-Clark Electric Cooperative, Dakota Energy Cooperative, Douglas Electric Cooperative, FEM Electric Association, H-D Electric Cooperative, Kingsbury Electric Cooperative, Lyon-Lincoln Electric Cooperative, McCook Electric Cooperative, Northern Electric Cooperative, Oahe Electric Cooperative, Renville-Sibley Coop. Power Assn., Sioux Valley Southwestern Electric Coop, Southeastern Electric Coop, Union County Electric Cooperative, Whetstone Valley Electric Cooperative, Black Hills Electric Coop, LaCreek Electric Coop, West River Power Association, Butte Electric Coop, Cherry Todd Electric Coop, Moreau Grand, Grand Electric Cooperative, Rosebud | D154: Prairie Winds | E154: wind | F154: 2000 | G154: varies by utillity | I154: SD | J154: VARIES BY UTILITY | L154: VARIES BY UTILITY | M154: VARIES BY UTILITY
B155: SD | C155: Missouri River Energy Services: City of Vermillion | D155: RiverWinds | E155: wind | F155: 2002 | G155: 2.0¢/kWh-2.5¢/kWh | I155: SD | J155: 2 | K155: 2.5 | L155: 2.5 | M155: 2.25
B156: SD | C156: Tri-State Generation & Transmission: Niobrara Electric Association, Inc. | D156: Renewable Resource Power Service | E156: wind, hydro | F156: 2001 | G156: 1.25¢/kWh | I156: SD | J156: 1.25 | L156: 1.25 | M156: 1.25
B157: TN | C157: TVA: Alcoa Electric Department, Appalachian Electric Cooperative, Athens Utility Board, Bristol Tennessee Electric System, Brownsville Utility Department, Caney Fork Electric Cooperative, Chickasaw Electric Cooperative, Clarksville Department of Electricity, Cleveland Utilities, Clinton Utilities Board, Columbia Power & Water Systems, Cookeville Electric Department, Covington Electric System, Cumberland Electric Membership Corporation, Dickson Electric Department, Duck River Electric Membership Corporation, Dyersberg Electric System, City of Elizabethton Electric System, EPB (Chattanooga), Erwin Utilities, Etowah Utilities, Fayetteville Public Utilities, Fort Loudon Electric Cooperative, Gallatin Department of Electricity, Gibson Electric Membership Corporation, Greeneville Light and Power System, Harriman Utility Board, Holston Electric Cooperative, Jackson Energy Authority, Jellico Electric & Water, Johnson City Power Board, Knoxville Utilities Board, Lafollette Utilities Board, Lawrenceburg Power System, Lenoir City Utilities Board, Lexington Electric System, Loudon Utilities, City of Maryville Electric Department, McMinnville Electric System, Memphis Light Gas & Water, Meriwhether Lewis Electric Cooperative, Middle Tennessee Electric Membership Corporation, Milan Department of Public Utilities, Morristown Power System, Mountain Electric Cooperative, Murfreesboro Electric Department, Nashville Electric Service, Newport Utilities, Oak Ridge Electric Department, Paris Board of Public Utilities, Pickwick Electric Cooperative, Plateau Electric Cooperative, Powell Valley Electric Cooperative, Pulaski Electric System, Rockwood Electric Utility, Sequachee Valley Electric Cooperative, Sevier County Electric System, Shelbyville Power System, Smithville Electric System, Somerville Utility Department, Southwest Tennessee Electric Membership Corporation, Springfield Department of Electricity, Sweetwater Utilities Board, Tennessee Valley EC, Tri-County Electric, Tullahoma Utilities Board, Union City Electric System, Upper Cumberland Electric Membership Corporation, Volunteer Energy Cooperative, Weakley County Municipal Electric System, Winchester Utilities | D157: Green Power Switch | E157: landfill gas, PV, wind | F157: 2000 | G157: 2.67¢/kWh | I157: TN | J157: 2.67 | L157: 2.67 | M157: 2.67
B158: TX | C158: Austin Energy (City of Austin) | D158: GreenChoice | E158: wind | F158: 2000/1997 | G158: 0.75¢/kWh | I158: TX | J158: 0.75 | L158: 0.75 | M158: 0.75
B159: TX | C159: College Station Utilities | D159: Wind Watts (10%/50%/100%) | E159: new wind | F159: 2009 | G159: 0.5¢/kWh | I159: TX | J159: 0.5 | L159: 0.5 | M159: 5
B160: TX | C160: El Paso Electric Company | D160: Renewable Energy Tariff | E160: wind | F160: 2001 | G160: 3.53¢/kWh | I160: TX | J160: 3.53 | L160: 3.53 | M160: 3.53
B161: TX | C161: Pedernales Electric Cooperative | D161: Renewable Power | E161: wind, hydro | F161: 2006 | G161: 0.5¢/kWh | I161: TX | J161: 0.5 | L161: 0.5 | M161: 0.5
B162: UT | C162: City of St. George | D162: Clean Green Power | E162: wind, small hydro | F162: 2005 | G162: 2.95¢/kWh | I162: UT | J162: 2.95 | L162: 2.95 | M162: 2.95
B163: UT | C163: Deseret Power: Bridger Valley Electric, Dixie Escalante Rural Electric, Flowell Electric, Garkane Energy, Moon Lake Electric, Mt. Wheeler Power | D163: GreenWay | E163: various | F163: 2004 | G163: 1.95¢/kWh | I163: UT | J163: 1.95 | L163: 1.95 | M163: 1.95
B164: UT | C164: PacifiCorp: Rocky Mountain Power | D164: Blue Sky | E164: wind | F164: 2003 | G164: 1.95¢/kWh | I164: UT | J164: 1.95 | L164: 1.95 | M164: 1.95
B165: UT | C165: PacifiCorp: Utah Power | D165: Blue Sky | E165: wind | F165: 2000 | G165: 1.95¢/kWh | I165: UT | J165: 1.95 | L165: 1.95 | M165: 1.95
B166: UT | C166: Tri-State Generation & Transmission: Empire Electric Association, Inc. | D166: Renewable Resource Power Service | E166: wind, hydro | F166: 2001 | G166: 1.25¢/kWh | I166: UT | J166: 1.25 | L166: 1.25 | M166: 1.25
B167: VT | C167: Green Mountain Power | D167: Cow Power | E167: biogas | F167: 2004 | G167: 4.0¢/kWh | I167: VT | J167: 4 | L167: 4 | M167: 4
B168: VA | C168: Dominion Virginia Power / 3Degrees | D168: Dominion Green Power | E168: biomass, wind, landfill gas, solar | F168: 2009 | G168: 1.3¢/kWh | I168: VA | J168: 1.3 | L168: 1.3 | M168: 1.3
B169: WA | C169: Avista Utilities | D169: Buck-A-Block | E169: wind, solar and biomass | F169: 2002 | G169: 0.35¢/kWh | I169: WA | J169: 0.35 | L169: 0.35 | M169: 0.35
B170: WA | C170: Benton County Public Utility District | D170: Green Power Program | E170: landfill gas, wind, hydro | F170: 1999 | G170: Contribution | I170: WA | J170: CONTRIBUTION | L170: CONTRIBUTION | M170: CONTRIBUTION
B171: WA | C171: Chelan County PUD | D171: Sustainable Natural Alternative Power (SNAP) | E171: PV, wind, micro hydro | F171: 2001 | G171: Contribution | I171: WA | J171: CONTRIBUTION | L171: CONTRIBUTION | M171: CONTRIBUTION
B172: WA | C172: Clallam County PUD | D172: Watts Green | E172: landfill gas | F172: 2001 | G172: 1.7¢/kWh | I172: WA | J172: 1.7 | L172: 1.7 | M172: 1.7
B173: WA | C173: Clark Public Utilities | D173: Green Lights | E173: PV, wind | F173: 2002 | G173: 1.5¢/kWh | I173: WA | J173: 1.5 | L173: 1.5 | M173: 1.5
B174: WA | C174: Cowlitz PUD/Bonneville Environmental Foundation | D174: Renewable Resource Energy | E174: wind, PV | F174: 2002 | G174: 0.8¢/kWh | I174: WA | J174: 0.8 | L174: 0.8 | M174: 0.8
B175: WA | C175: Lewis County PUD | D175: Green Power Energy Rate | E175: wind | F175: 2003 | G175: 2.0¢/kWh | I175: WA | J175: 2 | L175: 2 | M175: 2
B176: WA | C176: Mason County PUD No. 3 | D176: Mason Evergreen Power | E176: wind | F176: 2003 | G176: 1.0¢/kWh | I176: WA | J176: 1 | L176: 1 | M176: 1
B177: WA | C177: Northen Wasco County PUD | D177: Pure Power | E177: wind | F177: 2007 | G177: 2.5¢/kWh | I177: WA | J177: 2.5 | L177: 2.5 | M177: 2.5
B178: WA | C178: Orcas Power & Light | D178: Go Green | E178: wind, hydro | F178: 1999 | G178: 4.0¢/kWh | I178: WA | J178: 4 | L178: 4 | M178: 4
B179: WA | C179: Pacific County PUD | D179: Green Power | E179: landfill gas | F179: 2002 | G179: 1.05¢/kWh | I179: WA | J179: 1.05 | L179: 1.05 | M179: 1.05
B180: WA | C180: PacifiCorp: Pacific Power | D180: Blue Sky Block | E180: wind | F180: 2000 | G180: 1.95¢/kWh | I180: WA | J180: 1.95 | L180: 1.95 | M180: 1.95
B181: WA | C181: Peninsula Light | D181: Renewable Option Program | E181: wind | F181: 2002 | G181: 1.5¢/kWh | I181: WA | J181: 1.5 | L181: 1.5 | M181: 1.5
B182: WA | C182: Puget Sound Energy | D182: Green Power Program | E182: wind, hydro, biogas, solar | F182: 2002 | G182: 1.25¢/kWh | I182: WA | J182: 1.25 | L182: 1.25 | M182: 1.25
B183: WA | C183: Seattle City Light | D183: Green Up | E183: geothermal, biomass, wind, hydro | F183: 2005 | G183: 1.5¢/kWh | I183: WA | J183: 1.5 | L183: 1.5 | M183: 1.5
B184: WA | C184: Seattle City Light | D184: Seattle Green Power | E184: PV, biogas | F184: 2002 | G184: Contribution | I184: WA | J184: CONTRIBUTION | L184: CONTRIBUTION | M184: CONTRIBUTION
B185: WA | C185: Snohomish County Public Utility District | D185: Planet Power | E185: wind | F185: 2002 | G185: Contribution | I185: WA | J185: CONTRIBUTION | L185: CONTRIBUTION | M185: CONTRIBUTION
B186: WA | C186: Tacoma Power | D186: EverGreen Options | E186: wind | F186: 2000 | G186: 1.2¢/kWh | I186: WA | J186: 1.2 | L186: 1.2 | M186: 1.2
B187: WI | C187: Alliant Energy | D187: Second Nature | E187: wind, landfill gas | F187: 2000 | G187: 2.0¢/kWh | I187: WI | J187: 2 | L187: 2 | M187: 2
B188: WI | C188: Dairyland Power Cooperative: Barron Electric, Bayfield/ Iron River, Chippewa / Cornell Valley, Clark / Greenwood, Dunn / Menomonie, Eau Claire / Fall Creek, Jackson / Black River Falls, Jump River / Ladysmith, Oakdale, Pierce-Pepin / Ellsworth, Polk-Burnett / Centuria, Price / Phillips, Richland, Riverland / Arcadia, St. Croix / Baldwin, Scenic Rivers / Lancaster, Taylor / Medford, Vernon / Westby | D188: Evergreen Renewable Energy Program | E188: hydro, wind, landfill gas, biogas | F188: 1998 | G188: 1.5¢/kWh | I188: WI | J188: 1.5 | L188: 1.5 | M188: 1.5
B189: WI | C189: Madison Gas and Electric | D189: Green Power Tomorrow | E189: wind solar | F189: 1999 | G189: 2.44¢/kWh | I189: WI | J189: 2.44 | L189: 2.44 | M189: 2.44
B190: WI | C190: We Energies | D190: Energy for Tomorrow | E190: landfill gas, PV, hydro, wind | F190: 1996 | G190: 2.0¢/kWh | I190: WI | J190: 2 | L190: 2 | M190: 2
B191: WI | C191: Wisconsin Public Service | D191: Solar Wise for Schools | E191: PV in schools | F191: 1996 | G191: Contribution | I191: WI | J191: CONTRIBUTION | L191: CONTRIBUTION | M191: CONTRIBUTION
B192: WI | C192: Wisconsin Public Service | D192: NatureWise | E192: wind, solar and biomass | F192: 2002 | G192: 2.4¢/kWh | I192: WI | J192: 2.4 | L192: 2.4 | M192: 2.4
B193: WI | C193: WPPI Energy (34 of 37 munis offer program): Algoma, Cedarburg, Florence, Kaukauna, Muscoda, Stoughton, Reedsburg, Oconomowoc, Waterloo, Whitehall, Columbus, Hartford, Lake Mills, New Holstein, Richland Center, Boscobel, Cuba City, Hustisford, Sturgeon Bay, Waunakee, Lodi, New London, Plymouth, River Falls, Sun Prairie, Waupun, Eagle River, Jefferson, Menasha, New Richmond, Prairie du Sac, Slinger, Two Rivers, Westby | D193: Renewable Energy Program | E193: wind,solar and biogas | F193: 2001 | G193: 1.0¢/kWh | I193: WI | J193: 1 | L193: 1 | M193: 1
B194: WI | C194: Xcel Energy | D194: WindSource | E194: wind | F194: 2010 | G194: 1.37¢/kWh | I194: WI | J194: 1.37 | L194: 1.37 | M194: 1.37
B195: WY | C195: Basin Electric Power Cooperative: Powder River Energy | D195: Prairie Winds | E195: wind | F195: 2000 | G195: varies by utillity | I195: WY | J195: VARIES BY UTILITY | L195: VARIES BY UTILITY | M195: VARIES BY UTILITY
B196: WY | C196: Cheyenne Light, Fuel and Power Company/Bonneville Environmental Foundation | D196: Renewable Premium Program | E196: 99% new wind, 1% new solar | F196: 2006 | G196: 1.24¢/kWh | I196: WY | J196: 1.24 | L196: 1.24 | M196: 1.24
B197: WY | C197: Lower Valley Energy | D197: Green Power | E197: wind | F197: 2003 | G197: 1.2¢/kWh | I197: WY | J197: 1.2 | L197: 1.2 | M197: 1.2
B198: WY | C198: PacifiCorp: Pacific Power | D198: Blue Sky | E198: wind | F198: 2000 | G198: 1.95¢/kWh | I198: WY | J198: 1.95 | L198: 1.95 | M198: 1.95
B199: WY | C199: Tri-State Generation & Transmission: Carbon Power & Light, Inc. | D199: Renewable Resource Power Service | E199: wind, hydro | F199: 2001 | G199: 1.25¢/kWh | I199: WY | J199: 1.25 | L199: 1.25 | M199: 1.25
B200: WY | C200: Yampa Valley Electric Association | D200: Green Power Options | E200: wind and solar | F200: 1999 | G200: 0.6¢/kWh | I200: WY | J200: 0.6 | L200: 0.6 | M200: 0.6

Sheet Implicit GDP Price Deflators (hidden)
A1: Table 1.1.9. Implicit Price Deflators for Gross Domestic Product
A2: [Index numbers, 2009=100]
A3: Bureau of Economic Analysis
A4: Last Revised on: August 27, 2015 - Next Release Date September 25, 2015
A5: Table 1.1.9 from Interactive Data explorer at http://www.bea.gov/iTable/iTable.cfm?reqid=9&step=3&isuri=1&903=13#reqid=9&step=3&isuri=1&903=13
A7: Line | C7: 1990 | D7: 1991 | E7: 1992 | F7: 1993 | G7: 1994 | H7: 1995 | I7: 1996 | J7: 1997 | K7: 1998 | L7: 1999 | M7: 2000 | N7: 2001 | O7: 2002 | P7: 2003 | Q7: 2004 | R7: 2005 | S7: 2006 | T7: 2007 | U7: 2008 | V7: 2009 | W7: 2010 | X7: 2011 | Y7: 2012 | Z7: 2013 | AA7: 2014 | AB7: 2015 | AC7: 2016 (I) | AD7: 2016 (2) | AE7: 2016 (YTD)
A8: 1 | B8: Gross domestic product | C8: 72.262 | D8: 74.824 | E8: 76.598 | F8: 78.29 | G8: 79.94 | H8: 81.606 | I8: 83.159 | J8: 84.628 | K8: 85.584 | L8: 86.842 | M8: 88.723 | N8: 90.727 | O8: 92.196 | P8: 94.135 | Q8: 89.12 | R8: 91.988 | S8: 94.814 | T8: 97.337 | U8: 99.246 | V8: 100 | W8: 101.221 | X8: 103.311 | Y8: 105.214 | Z8: 106.929 | AA8: 108.686 | AB8: =AVERAGE(108.976,109.47,109.782,109.89) -> 109.5295 | AC8: 110.63 | AD8: 111.237 | AE8: =(AC8+AD8)/2 -> 110.9335
A9: 2 | B9: Personal consumption expenditures | C9: 72.18 | D9: 74.789 | E9: 76.989 | F9: 78.679 | G9: 80.302 | H9: 82.078 | I9: 83.864 | J9: 85.433 | K9: 86.246 | L9: 87.636 | M9: 89.818 | N9: 91.53 | O9: 92.778 | P9: 94.659 | Q9: 89.703 | R9: 92.261 | S9: 94.729 | T9: 97.102 | U9: 100.065 | V9: 100 | W9: 101.653 | X9: 104.149 | Y9: 106.121 | Z9: 107.572 | AA9: 109.105
A10: 3 | B10: Goods | C10: 89.801 | D10: 91.996 | E10: 93.107 | F10: 93.915 | G10: 94.87 | H10: 95.757 | I10: 96.809 | J10: 96.696 | K10: 95.237 | L10: 95.735 | M10: 97.655 | N10: 97.563 | O10: 96.563 | P10: 96.493 | Q10: 95.03 | R10: 96.951 | S10: 98.277 | T10: 99.403 | U10: 102.362 | V10: 100 | W10: 101.637 | X10: 105.413 | Y10: 106.701 | Z10: 106.2 | AA10: 105.823
A11: 4 | B11: Durable goods | C11: 117.54 | D11: 119.263 | E11: 120.087 | F11: 121.269 | G11: 123.642 | H11: 124.544 | I11: 123.287 | J11: 120.593 | K11: 117.181 | L11: 114.005 | M11: 111.953 | N11: 109.733 | O11: 106.92 | P11: 103.113 | Q11: 108.752 | R11: 107.668 | S11: 105.915 | T11: 103.764 | U11: 101.758 | V11: 100 | W11: 98.621 | X11: 97.724 | Y11: 96.413 | Z11: 94.665 | AA11: 92.494
A12: 5 | B12: Nondurable goods | C12: 76.745 | D12: 78.985 | E12: 80.133 | F12: 80.784 | G12: 81.215 | H12: 82.063 | I12: 83.922 | J12: 84.798 | K12: 84.169 | L12: 86.268 | M12: 90.016 | N12: 90.961 | O12: 90.888 | P12: 92.797 | Q12: 88.214 | R12: 91.592 | S12: 94.438 | T12: 97.214 | U12: 102.653 | V12: 100 | W12: 103.084 | X12: 109.188 | Y12: 111.84 | Z12: 112.031 | AA12: 112.688
A13: 6 | B13: Services | C13: 63.808 | D13: 66.581 | E13: 69.236 | F13: 71.294 | G13: 73.2 | H13: 75.365 | I13: 77.473 | J13: 79.812 | K13: 81.689 | L13: 83.509 | M13: 85.818 | N13: 88.422 | O13: 90.801 | P13: 93.686 | Q13: 87.058 | R13: 89.933 | S13: 92.976 | T13: 95.981 | U13: 98.947 | V13: 100 | W13: 101.661 | X13: 103.524 | Y13: 105.84 | Z13: 108.292 | AA13: 110.818
A14: 7 | B14: Gross private domestic investment | C14: 86.977 | D14: 88.293 | E14: 87.969 | F14: 89.021 | G14: 90.205 | H14: 91.207 | I14: 90.837 | J14: 90.455 | K14: 89.454 | L14: 89.33 | M14: 90.276 | N14: 91.053 | O14: 91.479 | P14: 92.489 | Q14: 90.656 | R14: 94.556 | S14: 98.191 | T14: 99.985 | U14: 101.203 | V14: 100 | W14: 99.076 | X14: 100.424 | Y14: 101.864 | Z14: 103.405 | AA14: 105.238
A15: 8 | B15: Fixed investment | C15: 86.064 | D15: 87.342 | E15: 87.09 | F15: 88.163 | G15: 89.352 | H15: 90.393 | I15: 90.149 | J15: 89.921 | K15: 89.085 | L15: 89.028 | M15: 90.083 | N15: 90.888 | O15: 91.261 | P15: 92.375 | Q15: 90.546 | R15: 94.507 | S15: 98.167 | T15: 99.988 | U15: 100.996 | V15: 100 | W15: 99.179 | X15: 100.524 | Y15: 102.062 | Z15: 103.652 | AA15: 105.663
A16: 9 | B16: Nonresidential | C16: 101.238 | D16: 102.804 | E16: 101.947 | F16: 102.1 | G16: 102.592 | H16: 102.811 | I16: 101.612 | J16: 100.326 | K16: 98.125 | L16: 96.704 | M16: 96.75 | N16: 96.317 | O16: 95.889 | P16: 95.471 | Q16: 91.141 | R16: 93.829 | S16: 96.561 | T16: 98.574 | U16: 100.336 | V16: 100 | W16: 99.069 | X16: 100.545 | Y16: 102.215 | Z16: 102.993 | AA16: 103.977
A17: 10 | B17: Structures | C17: 53.322 | D17: 54.287 | E17: 54.298 | F17: 56.103 | G17: 58.089 | H17: 60.6 | I17: 62.141 | J17: 64.516 | K17: 67.48 | L17: 69.559 | M17: 72.298 | N17: 76.087 | O17: 79.292 | P17: 82.174 | Q17: 72.879 | R17: 82.056 | S17: 92.048 | T17: 97.62 | U17: 102.259 | V17: 100 | W17: 98.843 | X17: 101.851 | Y17: 105.884 | Z17: 107.541 | AA17: 109.12
A18: 11 | B18: Equipment and software | C18: 126.31 | D18: 128.112 | E18: 126.605 | F18: 125.322 | G18: 124.604 | H18: 123.163 | I18: 120.2 | J18: 116.639 | K18: 111.454 | L18: 108.195 | M18: 106.893 | N18: 104.364 | O18: 102.24 | P18: 100.45 | Q18: 96.7345 | R18: 97.3125 | S18: 97.9125 | T18: 98.8915 | U18: 99.7585 | V18: 100 | W18: 99.274 | X18: 100.37 | Y18: 101.4135 | Z18: 101.98 | AA18: 102.824
A19: 12 | B19: Residential | C19: 58.011 | D19: 58.771 | E19: 59.486 | F19: 61.89 | G19: 64.068 | H19: 66.403 | I19: 67.827 | J19: 69.556 | K19: 71.412 | L19: 74.151 | M19: 77.415 | N19: 80.994 | O19: 83.002 | P19: 86.953 | Q19: 91.546 | R19: 98.103 | S19: 103.821 | T19: 105.176 | U19: 103.647 | V19: 100 | W19: 99.644 | X19: 100.395 | Y19: 101.324 | Z19: 106.458 | AA19: 112.903
A20: 13 | B20: Change in private inventories | C20: --- | D20: --- | E20: --- | F20: --- | G20: --- | H20: --- | I20: --- | J20: --- | K20: --- | L20: --- | M20: --- | N20: --- | O20: --- | P20: --- | Q20: --- | R20: --- | S20: --- | T20: --- | U20: --- | V20: --- | W20: --- | X20: --- | Y20: --- | Z20: --- | AA20: ---
A21: 14 | B21: Net exports of goods and services | C21: --- | D21: --- | E21: --- | F21: --- | G21: --- | H21: --- | I21: --- | J21: --- | K21: --- | L21: --- | M21: --- | N21: --- | O21: --- | P21: --- | Q21: --- | R21: --- | S21: --- | T21: --- | U21: --- | V21: --- | W21: --- | X21: --- | Y21: --- | Z21: --- | AA21: ---
A22: 15 | B22: Exports | C22: 92.063 | D22: 93.284 | E22: 92.904 | F22: 92.879 | G22: 93.914 | H22: 96.07 | I22: 94.799 | J22: 93.174 | K22: 91.042 | L22: 90.477 | M22: 92.07 | N22: 91.697 | O22: 91.322 | P22: 93.282 | Q22: 90.845 | R22: 94.717 | S22: 97.979 | T22: 101.107 | U22: 105.809 | V22: 100 | W22: 104.263 | X22: 110.96 | Y22: 111.97 | Z22: 112.147 | AA22: 112.25
A23: 16 | B23: Goods | C23: 100.348 | D23: 100.243 | E23: 98.635 | F23: 98.077 | G23: 99.125 | H23: 101.478 | I23: 98.857 | J23: 96.127 | K23: 93.095 | L23: 91.834 | M23: 92.999 | N23: 92.423 | O23: 91.82 | P23: 93.616 | Q23: 92.248 | R23: 95.47 | S23: 98.828 | T23: 102.187 | U23: 107.204 | V23: 100 | W23: 105.033 | X23: 113.048 | Y23: 113.526 | Z23: 112.923 | AA23: 112.125
A24: 17 | B24: Services | C24: 74.414 | D24: 78.131 | E24: 80.13 | F24: 81.142 | G24: 82.139 | H24: 83.872 | I24: 85.491 | J24: 86.335 | K24: 86.285 | L24: 87.314 | M24: 89.92 | N24: 90.042 | O24: 90.202 | P24: 92.533 | Q24: 87.787 | R24: 93.179 | S24: 96.219 | T24: 98.823 | U24: 102.813 | V24: 100 | W24: 102.641 | X24: 106.477 | Y24: 108.64 | Z24: 110.514 | AA24: 112.608
A25: 18 | B25: Imports | C25: 93.63 | D25: 92.849 | E25: 92.922 | F25: 92.21 | G25: 93.075 | H25: 95.625 | I25: 93.958 | J25: 90.692 | K25: 85.809 | L25: 86.311 | M25: 90.027 | N25: 87.824 | O25: 86.846 | P25: 89.851 | Q25: 88.471 | R25: 93.802 | S25: 97.663 | T25: 101.024 | U25: 111.588 | V25: 100 | W25: 105.8 | X25: 113.942 | Y25: 114.671 | Z25: 113.798 | AA25: 113.566
A26: 19 | B26: Goods | C26: 99.175 | D26: 97.3 | E26: 96.767 | F26: 95.686 | G26: 96.383 | H26: 98.952 | I26: 96.444 | J26: 92.46 | K26: 86.875 | L26: 86.948 | M26: 91.205 | N26: 88.557 | O26: 87.004 | P26: 89.541 | Q26: 88.7 | R26: 94.581 | S26: 98.666 | T26: 102.188 | U26: 113.853 | V26: 100 | W26: 106.737 | X26: 116.178 | Y26: 116.918 | Z26: 115.598 | AA26: 115.025
A27: 20 | B27: Services | C27: 71.019 | D27: 73.612 | E27: 75.673 | F27: 76.313 | G27: 77.806 | H27: 80.235 | I27: 82.235 | J27: 82.233 | K27: 80.628 | L27: 83.185 | M27: 84.209 | N27: 84.219 | O27: 86.089 | P27: 91.469 | Q27: 88.577 | R27: 91.089 | S27: 93.826 | T27: 96.417 | U27: 101.809 | V27: 100 | W27: 101.816 | X27: 104.105 | Y27: 104.789 | Z27: 105.929 | AA27: 107.247
A28: 21 | B28: Government consumption expenditures and gross investment | C28: 63.395 | D28: 65.596 | E28: 67.266 | F28: 68.938 | G28: 70.808 | H28: 72.742 | I28: 74.477 | J28: 75.854 | K28: 76.879 | L28: 79.337 | M28: 82.513 | N28: 84.764 | O28: 87.003 | P28: 90.65 | Q28: 83.947 | R28: 88.235 | S28: 92.086 | T28: 96.14 | U28: 100.282 | V28: 100 | W28: 102.673 | X28: 105.717 | Y28: 107.378 | Z28: 109.086 | AA28: 111.057
A29: 22 | B29: Federal | C29: 63.512 | D29: 66.032 | E29: 68.062 | F29: 69.79 | G29: 71.683 | H29: 73.674 | I29: 75.719 | J29: 77.047 | K29: 77.931 | L29: 79.886 | M29: 82.524 | N29: 84.201 | O29: 87.318 | P29: 91.024 | Q29: 87.736 | R29: 91.449 | S29: 94.448 | T29: 97.319 | U29: 100.286 | V29: 100 | W29: 102.614 | X29: 105.422 | Y29: 106.512 | Z29: 107.562 | AA29: 109.274
A30: 23 | B30: National defense | C30: 63.917 | D30: 66.222 | E30: 68.522 | F30: 69.712 | G30: 71.438 | H30: 73.161 | I30: 75.431 | J30: 76.517 | K30: 77.328 | L30: 79.225 | M30: 81.821 | N30: 83.484 | O30: 86.624 | P30: 90.659 | Q30: 87.371 | R30: 91.395 | S30: 94.633 | T30: 97.572 | U30: 100.809 | V30: 100 | W30: 102.365 | X30: 105.274 | Y30: 106.466 | Z30: 107.13 | AA30: 108.584
A31: 24 | B31: Nondefense | C31: 62.462 | D31: 65.561 | E31: 66.92 | F31: 69.883 | G31: 72.144 | H31: 74.703 | I31: 76.276 | J31: 78.095 | K31: 79.12 | L31: 81.188 | M31: 83.907 | N31: 85.612 | O31: 88.689 | P31: 91.774 | Q31: 88.377 | R31: 91.529 | S31: 94.101 | T31: 96.85 | U31: 99.321 | V31: 100 | W31: 103.064 | X31: 105.691 | Y31: 106.6 | Z31: 108.308 | AA31: 110.444
A32: 25 | B32: State and local | C32: 63.479 | D32: 65.448 | E32: 66.862 | F32: 68.499 | G32: 70.357 | H32: 72.258 | I32: 73.812 | J32: 75.219 | K32: 76.32 | L32: 79.036 | M32: 82.482 | N32: 85.019 | O32: 86.81 | P32: 90.425 | Q32: 81.719 | R32: 86.333 | S32: 90.677 | T32: 95.426 | U32: 100.279 | V32: 100 | W32: 102.714 | X32: 105.923 | Y32: 107.985 | Z32: 110.143 | AA32: 112.287
B33: Addendum:
A34: 26 | B34: Gross national product | C34: 72.26 | D34: 74.819 | E34: 76.586 | F34: 78.291 | G34: 79.942 | H34: 81.611 | I34: 83.166 | J34: 84.63 | K34: 85.581 | L34: 86.84 | M34: 88.72 | N34: 90.725 | O34: 92.191 | P34: 94.131 | Q34: 89.095 | R34: 91.965 | S34: 94.791 | T34: 97.318 | U34: 99.239 | V34: 100 | W34: 101.333 | X34: 103.435 | Y34: 105.338 | Z34: 107.052 | AA34: 108.8
AB38: =1*AE8/Q8 -> 1.244765485
AB39: =1.38*8.3 -> 11.454 | AO39: 101.642
AO40: 104.081
AO41: =AVERAGE(AO39:AO40) -> 102.8615

Sheet Drop down lists (hidden)
A6: Haz Inputs and Wastes
A7: (Select)
A8: lbs
A9: gal
A11: Air Emissions
A12: (Select)
A13: lbs
A14: kg
A15: tons
A16: metric tons
A18: Energy
A19: (Select)
A20: therms
A21: BTU
A22: cubic feet
A24: Electricity
A25: (Select)
A26: kWh
A27: Gj
A28: therms
A29: BTU
A31: Waste
A32: (Select)
A33: tons
A34: kg
A35: lbs
A36: gal
